Workbook

Sheet Capital Maintenance & Renewal
A1: Appendix D: Capital Maintenance and Renewal | S1: =SUBTOTAL(9,S7:S697) -> $867,500 | T1: =SUBTOTAL(9,T7:T697) -> $938,000 | U1: =SUBTOTAL(9,U7:U697) -> 0 | V1: =SUM(S1:U1) -> $1,805,500 | W1: Total Requests
D3: HMB: | G3: NORTH PEACE HOUSING FOUNDATION
S5: Estimated Cost To Complete The Work
A6: 12 Digit Project Number/ HMB Project Code | B6: HMB Code | C6: Building Name | D6: Building Address | E6: Concatenate | F6: Municipality | G6: Building Ownership | H6: Program | I6: # of Affected Units | J6: Importance of System Functionality | K6: Condition of System | L6: Reason for Work | M6: Impact of Failure | N6: Major Expense Type | O6: "Detailed" Description Of Work | P6: Reason for Work (Why is this project required?) | Q6: Is the Required CMR Impacting Suite Rental? | R6: Is the Required CMR Resulting in Lost Income? | S6: 2025/26 | T6: 2026/27 | U6: 2027/28 | V6: Project Total | W6: Project Priority | X6: Data Corrections?
A7: 1254-2751-0165 | B7: =IF(A7="","",VLOOKUP(A7,Data!$B$2:$D$4020,3,FALSE)) -> NPF | C7: =IF(A7="","",VLOOKUP(A7,Data!$B$2:$F$4020,5,FALSE)) -> Del-Air Lodge | D7: #202 1 Avenue SW | E7: =CONCATENATE(A7,D7) -> 125427510165#202 1 Avenue SW | F7: =IF(ISNA(VLOOKUP(E7,Data!$A$2:$I$4020,7,FALSE)),"",VLOOKUP(E7,Data!$A$2:$I$4020,7,FALSE)) -> Manning | G7: =IF(ISNA(VLOOKUP(E7,Data!$A$2:$I$4020,9,FALSE)),"",VLOOKUP(E7,Data!$A$2:$I$4020,9,FALSE)) -> Alberta Social Housing Corporation | H7: =IF(ISNA(VLOOKUP(E7,Data!$A$2:$J$4020,10,FALSE)),"",VLOOKUP(E7,Data!$A$2:$J$4020,10,FALSE)) -> Seniors Lodge Program | I7: 52 | J7: 4 - Significant - Limited Back Up | K7: 3 - Poor | L7: 5 - Health and Safety/Legislation | M7: 5 - Critical | N7: Mechanical | O7: Replacement of existing mechanical system (backflow preventers, domestic water pumps, domestic water conditioning equipment, heating boilers and accessories, furnaces, exhaust fans, hot water distribution system, unit heaters, etc.). Estimating the cost of this project is very difficult without first having the engineering completed. This will be more complex now that the new Continuing Care wing has been built and has it's own mechanical system separate from the existing building; a redesign of the old system may be required. | P7: Engineering and replacement of the Del Air mechanical systems was to be included as part of the approved Del Air Redevelopment, but due to budget constraints, the existing mechanical systems will not be upgraded. Instead, a new DSL wing will be added on to the existing building. This is critical work as outlined in a 2017 Facility Condition Rating report completed by Alberta Infrastructure. | Q7: No | R7: No | S7: $35,000.00 | T7: $850,000.00 | V7: =SUM(S7:U7) -> $885,000.00 | W7: $1.00
A8: 1254-2731-2877 | B8: =IF(A8="","",VLOOKUP(A8,Data!$B$2:$D$4020,3,FALSE)) -> NPF | C8: =IF(A8="","",VLOOKUP(A8,Data!$B$2:$F$4020,5,FALSE)) -> Manning 1 | D8: 405 A&B - 1 Street NE | E8: =CONCATENATE(A8,D8) -> 125427312877405 A&B - 1 Street NE | F8: =IF(ISNA(VLOOKUP(E8,Data!$A$2:$I$4020,7,FALSE)),"",VLOOKUP(E8,Data!$A$2:$I$4020,7,FALSE)) -> Manning | G8: =IF(ISNA(VLOOKUP(E8,Data!$A$2:$I$4020,9,FALSE)),"",VLOOKUP(E8,Data!$A$2:$I$4020,9,FALSE)) -> Alberta Social Housing Corporation | H8: =IF(ISNA(VLOOKUP(E8,Data!$A$2:$J$4020,10,FALSE)),"",VLOOKUP(E8,Data!$A$2:$J$4020,10,FALSE)) -> Community Housing Program | I8: 2 | J8: 5 - Significant - No Back Up | K8: 3 - Poor | L8: 5 - Ensure Reliability | M8: 3 - Moderate | N8: Roofing | O8: Replace shingles and eavestroughs - 1 duplex, 2 units | P8: 18+ years old, require replacement | Q8: No | R8: No | S8: $14,000.00 | V8: =SUM(S8:U8) -> $14,000.00 | W8: $11.00 | X8: Note: These units are listed as a potential Asset Transfer
A9: 1254-2731-2877 | B9: =IF(A9="","",VLOOKUP(A9,Data!$B$2:$D$4020,3,FALSE)) -> NPF | C9: =IF(A9="","",VLOOKUP(A9,Data!$B$2:$F$4020,5,FALSE)) -> Manning 1 | D9: 407 A&B - 1 Street NE | E9: =CONCATENATE(A9,D9) -> 125427312877407 A&B - 1 Street NE | F9: =IF(ISNA(VLOOKUP(E9,Data!$A$2:$I$4020,7,FALSE)),"",VLOOKUP(E9,Data!$A$2:$I$4020,7,FALSE)) -> Manning | G9: =IF(ISNA(VLOOKUP(E9,Data!$A$2:$I$4020,9,FALSE)),"",VLOOKUP(E9,Data!$A$2:$I$4020,9,FALSE)) -> Alberta Social Housing Corporation | H9: =IF(ISNA(VLOOKUP(E9,Data!$A$2:$J$4020,10,FALSE)),"",VLOOKUP(E9,Data!$A$2:$J$4020,10,FALSE)) -> Community Housing Program | I9: 2 | J9: 5 - Significant - No Back Up | K9: 3 - Poor | L9: 5 - Ensure Reliability | M9: 3 - Moderate | N9: Roofing | O9: Replace shingles and eavestroughs - 1 duplex, 2 units | P9: 18+ years old, require replacement | Q9: No | R9: No | S9: $14,000.00 | V9: =SUM(S9:U9) -> $14,000.00 | W9: $12.00 | X9: Note: These units are listed as a potential Asset Transfer
A10: 1254-2731-2877 | B10: =IF(A10="","",VLOOKUP(A10,Data!$B$2:$D$4020,3,FALSE)) -> NPF | C10: =IF(A10="","",VLOOKUP(A10,Data!$B$2:$F$4020,5,FALSE)) -> Manning 1 | D10: 410 A&B - 2 Street NE | E10: =CONCATENATE(A10,D10) -> 125427312877410 A&B - 2 Street NE | F10: =IF(ISNA(VLOOKUP(E10,Data!$A$2:$I$4020,7,FALSE)),"",VLOOKUP(E10,Data!$A$2:$I$4020,7,FALSE)) -> Manning | G10: =IF(ISNA(VLOOKUP(E10,Data!$A$2:$I$4020,9,FALSE)),"",VLOOKUP(E10,Data!$A$2:$I$4020,9,FALSE)) -> Alberta Social Housing Corporation | H10: =IF(ISNA(VLOOKUP(E10,Data!$A$2:$J$4020,10,FALSE)),"",VLOOKUP(E10,Data!$A$2:$J$4020,10,FALSE)) -> Community Housing Program | I10: 2 | J10: 5 - Significant - No Back Up | K10: 3 - Poor | L10: 5 - Ensure Reliability | M10: 3 - Moderate | N10: Roofing | O10: Replace shingles and eavestroughs - 1 duplex, 2 units | P10: 18+ years old, require replacement | Q10: No | R10: No | S10: $14,000.00 | V10: =SUM(S10:U10) -> $14,000.00 | W10: $13.00 | X10: Note: These units are listed as a potential Asset Transfer | AA10: Asbestos and Mold Remediation
A11: 1254-2731-2877 | B11: =IF(A11="","",VLOOKUP(A11,Data!$B$2:$D$4020,3,FALSE)) -> NPF | C11: =IF(A11="","",VLOOKUP(A11,Data!$B$2:$F$4020,5,FALSE)) -> Manning 1 | D11: 401 A&B - 1 Street NE | E11: =CONCATENATE(A11,D11) -> 125427312877401 A&B - 1 Street NE | F11: =IF(ISNA(VLOOKUP(E11,Data!$A$2:$I$4020,7,FALSE)),"",VLOOKUP(E11,Data!$A$2:$I$4020,7,FALSE)) -> Manning | G11: =IF(ISNA(VLOOKUP(E11,Data!$A$2:$I$4020,9,FALSE)),"",VLOOKUP(E11,Data!$A$2:$I$4020,9,FALSE)) -> Alberta Social Housing Corporation | H11: =IF(ISNA(VLOOKUP(E11,Data!$A$2:$J$4020,10,FALSE)),"",VLOOKUP(E11,Data!$A$2:$J$4020,10,FALSE)) -> Community Housing Program | I11: 2 | J11: 5 - Significant - No Back Up | K11: 3 - Poor | L11: 5 - Ensure Reliability | M11: 3 - Moderate | N11: Roofing | O11: Replace shingles and eavestroughs - 1 duplex, 2 units | P11: 18+ years old, require replacement | Q11: No | R11: No | S11: $14,000.00 | V11: =SUM(S11:U11) -> $14,000.00 | W11: $14.00 | X11: Note: These units are listed as a potential Asset Transfer | AA11: Building Envelope | AH11: Importance of System Functionality | AI11: Condition of System | AJ11: Reason for Work | AK11: Impact of Failure
A12: 1254-2731-2792 | B12: =IF(A12="","",VLOOKUP(A12,Data!$B$2:$D$4020,3,FALSE)) -> NPF | C12: =IF(A12="","",VLOOKUP(A12,Data!$B$2:$F$4020,5,FALSE)) -> Manning 2 | D12: 504 A&B - 2 Street NW | E12: =CONCATENATE(A12,D12) -> 125427312792504 A&B - 2 Street NW | F12: =IF(ISNA(VLOOKUP(E12,Data!$A$2:$I$4020,7,FALSE)),"",VLOOKUP(E12,Data!$A$2:$I$4020,7,FALSE)) -> Manning | G12: =IF(ISNA(VLOOKUP(E12,Data!$A$2:$I$4020,9,FALSE)),"",VLOOKUP(E12,Data!$A$2:$I$4020,9,FALSE)) -> Alberta Social Housing Corporation | H12: =IF(ISNA(VLOOKUP(E12,Data!$A$2:$J$4020,10,FALSE)),"",VLOOKUP(E12,Data!$A$2:$J$4020,10,FALSE)) -> Community Housing Program | I12: 2 | J12: 3 - Moderate - Inconvenient Back Up | K12: 3 - Poor | L12: 5 - Health and Safety/Legislation | M12: 3 - Moderate | N12: Grounds Maintenance | O12: Replace deteriorated concrete steps and landing and landscaping | P12: Original concrete steps are deteriorating and creating a hazard | Q12: No | R12: No | S12: $16,000.00 | V12: $16,000.00 | W12: $15.00 | AA12: Building Exterior | AH12: 5 - Significant - No Back Up | AI12: 5 - Failed/Imminent | AJ12: 5 - Health and Safety/Legislation | AK12: 5 - Critical
A13: 1254-2731-2792 | B13: =IF(A13="","",VLOOKUP(A13,Data!$B$2:$D$4020,3,FALSE)) -> NPF | C13: =IF(A13="","",VLOOKUP(A13,Data!$B$2:$F$4020,5,FALSE)) -> Manning 2 | D13: 502 A&B - 2 Street NW | E13: =CONCATENATE(A13,D13) -> 125427312792502 A&B - 2 Street NW | F13: =IF(ISNA(VLOOKUP(E13,Data!$A$2:$I$4020,7,FALSE)),"",VLOOKUP(E13,Data!$A$2:$I$4020,7,FALSE)) -> Manning | G13: =IF(ISNA(VLOOKUP(E13,Data!$A$2:$I$4020,9,FALSE)),"",VLOOKUP(E13,Data!$A$2:$I$4020,9,FALSE)) -> Alberta Social Housing Corporation | H13: =IF(ISNA(VLOOKUP(E13,Data!$A$2:$J$4020,10,FALSE)),"",VLOOKUP(E13,Data!$A$2:$J$4020,10,FALSE)) -> Community Housing Program | I13: 2 | J13: 3 - Moderate - Inconvenient Back Up | K13: 3 - Poor | L13: 5 - Health and Safety/Legislation | M13: 3 - Moderate | N13: Grounds Maintenance | O13: Replace deteriorated concrete steps and landing and landscaping | P13: Original concrete steps are deteriorating and creating a hazard | Q13: No | R13: No | S13: $16,000.00 | V13: $16,000.00 | W13: $16.00 | AA13: Building Interior | AH13: 4 - Significant - Limited Back Up | AI13: 3 - Poor | AJ13: 5 - Ensure Reliability | AK13: 3 - Moderate
A14: 1254-2731-2792 | B14: =IF(A14="","",VLOOKUP(A14,Data!$B$2:$D$4020,3,FALSE)) -> NPF | C14: =IF(A14="","",VLOOKUP(A14,Data!$B$2:$F$4020,5,FALSE)) -> Manning 2 | D14: 500 A&B - 2 Street NW | E14: =CONCATENATE(A14,D14) -> 125427312792500 A&B - 2 Street NW | F14: =IF(ISNA(VLOOKUP(E14,Data!$A$2:$I$4020,7,FALSE)),"",VLOOKUP(E14,Data!$A$2:$I$4020,7,FALSE)) -> Manning | G14: =IF(ISNA(VLOOKUP(E14,Data!$A$2:$I$4020,9,FALSE)),"",VLOOKUP(E14,Data!$A$2:$I$4020,9,FALSE)) -> Alberta Social Housing Corporation | H14: =IF(ISNA(VLOOKUP(E14,Data!$A$2:$J$4020,10,FALSE)),"",VLOOKUP(E14,Data!$A$2:$J$4020,10,FALSE)) -> Community Housing Program | I14: 2 | J14: 3 - Moderate - Inconvenient Back Up | K14: 3 - Poor | L14: 5 - Health and Safety/Legislation | M14: 3 - Moderate | N14: Grounds Maintenance | O14: Replace deteriorated concrete steps and landing and landscaping | P14: Original concrete steps are deteriorating and creating a hazard | Q14: No | R14: No | S14: $16,000.00 | V14: $16,000.00 | W14: $17.00 | AA14: Electrical Systems | AH14: 3 - Moderate - Inconvenient Back Up | AI14: 0 - Good | AJ14: 5 - Impacts Revenue | AK14: 0 - No impact
A15: 1254-2731-2792 | B15: =IF(A15="","",VLOOKUP(A15,Data!$B$2:$D$4020,3,FALSE)) -> NPF | C15: =IF(A15="","",VLOOKUP(A15,Data!$B$2:$F$4020,5,FALSE)) -> Manning 2 | D15: 500 A&B - 2 Street NW | E15: =CONCATENATE(A15,D15) -> 125427312792500 A&B - 2 Street NW | F15: =IF(ISNA(VLOOKUP(E15,Data!$A$2:$I$4020,7,FALSE)),"",VLOOKUP(E15,Data!$A$2:$I$4020,7,FALSE)) -> Manning | G15: =IF(ISNA(VLOOKUP(E15,Data!$A$2:$I$4020,9,FALSE)),"",VLOOKUP(E15,Data!$A$2:$I$4020,9,FALSE)) -> Alberta Social Housing Corporation | H15: =IF(ISNA(VLOOKUP(E15,Data!$A$2:$J$4020,10,FALSE)),"",VLOOKUP(E15,Data!$A$2:$J$4020,10,FALSE)) -> Community Housing Program | I15: 1 | J15: 5 - Significant - No Back Up | K15: 3 - Poor | L15: 5 - Impacts Revenue | M15: 5 - Critical | N15: Suite Renewal - vacant due to condition | O15: Renovate 1 units - kitchen cabinets, counters, flooring, full bathroom renovation, painting, plumbing and electrical fixtures | P15: Original 30+ (cabinets, vanity, bathroom fixtures) | Q15: Yes | R15: Yes | S15: $59,500.00 | V15: =SUM(S15:U15) -> $59,500.00 | W15: $24.00 | AA15: Elevators | AH15: 2 - Moderate - Back Up Available | AI15: 0 - Excellent | AJ15: 4 - Lifecycle Requirements
A16: 1224-2722-3169 | B16: =IF(A16="","",VLOOKUP(A16,Data!$B$2:$D$4020,3,FALSE)) -> NPF | C16: =IF(A16="","",VLOOKUP(A16,Data!$B$2:$F$4020,5,FALSE)) -> Fairview R&N 4 | D16: 11505 - 107 Avenue | E16: =CONCATENATE(A16,D16) -> 12242722316911505 - 107 Avenue | F16: =IF(ISNA(VLOOKUP(E16,Data!$A$2:$I$4020,7,FALSE)),"",VLOOKUP(E16,Data!$A$2:$I$4020,7,FALSE)) -> Fairview | G16: =IF(ISNA(VLOOKUP(E16,Data!$A$2:$I$4020,9,FALSE)),"",VLOOKUP(E16,Data!$A$2:$I$4020,9,FALSE)) -> Alberta Social Housing Corporation | H16: =IF(ISNA(VLOOKUP(E16,Data!$A$2:$J$4020,10,FALSE)),"",VLOOKUP(E16,Data!$A$2:$J$4020,10,FALSE)) -> Community Housing Program | I16: 1 | J16: 5 - Significant - No Back Up | K16: 3 - Poor | L16: 4 - Lifecycle Requirements | M16: 3 - Moderate | N16: Roofing | O16: Replace shingles and eavestroughs | P16: Shingles are curling, 19+ years old | Q16: No | R16: No | S16: $10,000.00 | V16: =SUM(S16:U16) -> $10,000.00 | W16: $25.00 | AA16: Grounds Maintenance | AH16: 1 - None - Back Up Not Required | AJ16: 3 - Operational Efficiencies
A17: 1224-2722-3111 | B17: =IF(A17="","",VLOOKUP(A17,Data!$B$2:$D$4020,3,FALSE)) -> NPF | C17: =IF(A17="","",VLOOKUP(A17,Data!$B$2:$F$4020,5,FALSE)) -> Fairview R&N 2 | D17: 10916 - 114 Street | E17: =CONCATENATE(A17,D17) -> 12242722311110916 - 114 Street | F17: =IF(ISNA(VLOOKUP(E17,Data!$A$2:$I$4020,7,FALSE)),"",VLOOKUP(E17,Data!$A$2:$I$4020,7,FALSE)) -> Fairview | G17: =IF(ISNA(VLOOKUP(E17,Data!$A$2:$I$4020,9,FALSE)),"",VLOOKUP(E17,Data!$A$2:$I$4020,9,FALSE)) -> Alberta Social Housing Corporation | H17: =IF(ISNA(VLOOKUP(E17,Data!$A$2:$J$4020,10,FALSE)),"",VLOOKUP(E17,Data!$A$2:$J$4020,10,FALSE)) -> Community Housing Program | I17: 1 | J17: 5 - Significant - No Back Up | K17: 3 - Poor | L17: 4 - Lifecycle Requirements | M17: 3 - Moderate | N17: Roofing | O17: Replace shingles and eavestroughs | P17: Shingles are curling, 18+ years old | Q17: No | R17: No | S17: $10,000.00 | V17: =SUM(S17:U17) -> $10,000.00 | W17: $26.00 | AA17: Heating, Ventilation and Plumbing | AJ17: 2 - Responsible Stewardship
A18: 1224-2722-3111 | B18: =IF(A18="","",VLOOKUP(A18,Data!$B$2:$D$4020,3,FALSE)) -> NPF | C18: =IF(A18="","",VLOOKUP(A18,Data!$B$2:$F$4020,5,FALSE)) -> Fairview R&N 2 | D18: 10515 - 105 Street | E18: =CONCATENATE(A18,D18) -> 12242722311110515 - 105 Street | F18: =IF(ISNA(VLOOKUP(E18,Data!$A$2:$I$4020,7,FALSE)),"",VLOOKUP(E18,Data!$A$2:$I$4020,7,FALSE)) -> Fairview | G18: =IF(ISNA(VLOOKUP(E18,Data!$A$2:$I$4020,9,FALSE)),"",VLOOKUP(E18,Data!$A$2:$I$4020,9,FALSE)) -> Alberta Social Housing Corporation | H18: =IF(ISNA(VLOOKUP(E18,Data!$A$2:$J$4020,10,FALSE)),"",VLOOKUP(E18,Data!$A$2:$J$4020,10,FALSE)) -> Community Housing Program | I18: 1 | J18: 5 - Significant - No Back Up | K18: 3 - Poor | L18: 4 - Lifecycle Requirements | M18: 5 - Critical | N18: Roofing | O18: Replace shingles and eavestroughs | P18: Shingles are curling, 19+ years old | Q18: No | R18: No | S18: $10,000.00 | V18: =SUM(S18:U18) -> $10,000.00 | W18: $4.00 | AA18: Mechanical | AJ18: 1 - Aesthetic Preservation
A19: 1224-2722-3111 | B19: =IF(A19="","",VLOOKUP(A19,Data!$B$2:$D$4020,3,FALSE)) -> NPF | C19: =IF(A19="","",VLOOKUP(A19,Data!$B$2:$F$4020,5,FALSE)) -> Fairview R&N 2 | D19: 10421 - 106 Avenue | E19: =CONCATENATE(A19,D19) -> 12242722311110421 - 106 Avenue | F19: =IF(ISNA(VLOOKUP(E19,Data!$A$2:$I$4020,7,FALSE)),"",VLOOKUP(E19,Data!$A$2:$I$4020,7,FALSE)) -> Fairview | G19: =IF(ISNA(VLOOKUP(E19,Data!$A$2:$I$4020,9,FALSE)),"",VLOOKUP(E19,Data!$A$2:$I$4020,9,FALSE)) -> Alberta Social Housing Corporation | H19: =IF(ISNA(VLOOKUP(E19,Data!$A$2:$J$4020,10,FALSE)),"",VLOOKUP(E19,Data!$A$2:$J$4020,10,FALSE)) -> Community Housing Program | I19: 1 | J19: 5 - Significant - No Back Up | K19: 3 - Poor | L19: 4 - Lifecycle Requirements | M19: 3 - Moderate | N19: Roofing | O19: Replace shingles and eavestroughs | P19: Shingles are curling, 19+ years old | Q19: No | R19: No | S19: $10,000.00 | V19: =SUM(S19:U19) -> $10,000.00 | W19: $27.00 | AA19: Roofing
A20: 1224-2722-3111 | B20: =IF(A20="","",VLOOKUP(A20,Data!$B$2:$D$4020,3,FALSE)) -> NPF | C20: =IF(A20="","",VLOOKUP(A20,Data!$B$2:$F$4020,5,FALSE)) -> Fairview R&N 2 | D20: 10421 - 106 Avenue | E20: =CONCATENATE(A20,D20) -> 12242722311110421 - 106 Avenue | F20: =IF(ISNA(VLOOKUP(E20,Data!$A$2:$I$4020,7,FALSE)),"",VLOOKUP(E20,Data!$A$2:$I$4020,7,FALSE)) -> Fairview | G20: =IF(ISNA(VLOOKUP(E20,Data!$A$2:$I$4020,9,FALSE)),"",VLOOKUP(E20,Data!$A$2:$I$4020,9,FALSE)) -> Alberta Social Housing Corporation | H20: =IF(ISNA(VLOOKUP(E20,Data!$A$2:$J$4020,10,FALSE)),"",VLOOKUP(E20,Data!$A$2:$J$4020,10,FALSE)) -> Community Housing Program | I20: 1 | J20: 5 - Significant - No Back Up | K20: 5 - Failed/Imminent | L20: 4 - Lifecycle Requirements | M20: 3 - Moderate | N20: Grounds Maintenance | O20: Replace fence | P20: Original, damaged posts and boards | Q20: No | R20: No | S20: $20,000.00 | V20: =SUM(S20:U20) -> $20,000.00 | W20: $31.00 | AA20: Suite Renewal - anticipated or expected turnover
A21: 1224-2755-2252 | B21: =IF(A21="","",VLOOKUP(A21,Data!$B$2:$D$4020,3,FALSE)) -> NPF | C21: =IF(A21="","",VLOOKUP(A21,Data!$B$2:$F$4020,5,FALSE)) -> Garrison Manor Addition | D21: 10705 - 104 Avenue | E21: =CONCATENATE(A21,D21) -> 12242755225210705 - 104 Avenue | F21: =IF(ISNA(VLOOKUP(E21,Data!$A$2:$I$4020,7,FALSE)),"",VLOOKUP(E21,Data!$A$2:$I$4020,7,FALSE)) -> Fairview | G21: =IF(ISNA(VLOOKUP(E21,Data!$A$2:$I$4020,9,FALSE)),"",VLOOKUP(E21,Data!$A$2:$I$4020,9,FALSE)) -> Alberta Social Housing Corporation | H21: =IF(ISNA(VLOOKUP(E21,Data!$A$2:$J$4020,10,FALSE)),"",VLOOKUP(E21,Data!$A$2:$J$4020,10,FALSE)) -> Seniors Self Contained Program | I21: 46 | J21: 5 - Significant - No Back Up | K21: 3 - Poor | L21: 5 - Health and Safety/Legislation | M21: 5 - Critical | N21: Elevators | O21: Elevator Modernization | P21: Elevator parts are becoming obsolete | Q21: No | R21: No | S21: 0 | V21: =SUM(S21:U21) -> 0 | W21: $2.00 | AA21: Suite Renewal - vacant due to condition
A22: 1272-2731-2878 | B22: =IF(A22="","",VLOOKUP(A22,Data!$B$2:$D$4020,3,FALSE)) -> NPF | C22: =IF(A22="","",VLOOKUP(A22,Data!$B$2:$F$4020,5,FALSE)) -> Peace River 1 | D22: 9708/9710 78 Avenue | E22: =CONCATENATE(A22,D22) -> 1272273128789708/9710 78 Avenue | F22: =IF(ISNA(VLOOKUP(E22,Data!$A$2:$I$4020,7,FALSE)),"",VLOOKUP(E22,Data!$A$2:$I$4020,7,FALSE)) -> Peace River | G22: =IF(ISNA(VLOOKUP(E22,Data!$A$2:$I$4020,9,FALSE)),"",VLOOKUP(E22,Data!$A$2:$I$4020,9,FALSE)) -> Alberta Social Housing Corporation | H22: =IF(ISNA(VLOOKUP(E22,Data!$A$2:$J$4020,10,FALSE)),"",VLOOKUP(E22,Data!$A$2:$J$4020,10,FALSE)) -> Community Housing Program | I22: 1 | J22: 6 - Significant - No Back Up | K22: 5 - Failed/Imminent | L22: 5 - Impacts Revenue | M22: 5 - Critical | N22: Suite Renewal - vacant due to condition | O22: Renovate 1 units - kitchen cabinets, counters, flooring, full bathroom renovation, painting, plumbing and electrical fixtures | P22: Unit has been down for years due to extensive damage. | Q22: Yes | R22: Yes | S22: $50,000.00 | V22: =SUM(S22:U22) -> $50,000.00 | W22: $20.00
A23: 1272-2731-2878 | B23: =IF(A23="","",VLOOKUP(A23,Data!$B$2:$D$4020,3,FALSE)) -> NPF | C23: =IF(A23="","",VLOOKUP(A23,Data!$B$2:$F$4020,5,FALSE)) -> Peace River 1 | D23: 9704/9706 78 Avenue | E23: =CONCATENATE(A23,D23) -> 1272273128789704/9706 78 Avenue | F23: =IF(ISNA(VLOOKUP(E23,Data!$A$2:$I$4020,7,FALSE)),"",VLOOKUP(E23,Data!$A$2:$I$4020,7,FALSE)) -> Peace River | G23: =IF(ISNA(VLOOKUP(E23,Data!$A$2:$I$4020,9,FALSE)),"",VLOOKUP(E23,Data!$A$2:$I$4020,9,FALSE)) -> Alberta Social Housing Corporation | H23: =IF(ISNA(VLOOKUP(E23,Data!$A$2:$J$4020,10,FALSE)),"",VLOOKUP(E23,Data!$A$2:$J$4020,10,FALSE)) -> Community Housing Program | I23: 2 | J23: 7 - Significant - No Back Up | K23: 5 - Failed/Imminent | L23: 5 - Impacts Revenue | M23: 5 - Critical | N23: Suite Renewal - vacant due to condition | O23: Renovate 1 units - kitchen cabinets, counters, flooring, full bathroom renovation, painting, plumbing and electrical fixtures | P23: Unit has been down for years due to extensive damage. | Q23: Yes | R23: Yes | S23: $100,000.00 | V23: =SUM(S23:U23) -> $100,000.00 | W23: $21.00 | AH23: Yes
A24: 1272-2731-2878 | B24: =IF(A24="","",VLOOKUP(A24,Data!$B$2:$D$4020,3,FALSE)) -> NPF | C24: =IF(A24="","",VLOOKUP(A24,Data!$B$2:$F$4020,5,FALSE)) -> Peace River 1 | D24: 9703/9705 78 Avenue | E24: =CONCATENATE(A24,D24) -> 1272273128789703/9705 78 Avenue | F24: =IF(ISNA(VLOOKUP(E24,Data!$A$2:$I$4020,7,FALSE)),"",VLOOKUP(E24,Data!$A$2:$I$4020,7,FALSE)) -> Peace River | G24: =IF(ISNA(VLOOKUP(E24,Data!$A$2:$I$4020,9,FALSE)),"",VLOOKUP(E24,Data!$A$2:$I$4020,9,FALSE)) -> Alberta Social Housing Corporation | H24: =IF(ISNA(VLOOKUP(E24,Data!$A$2:$J$4020,10,FALSE)),"",VLOOKUP(E24,Data!$A$2:$J$4020,10,FALSE)) -> Community Housing Program | I24: 2 | J24: 8 - Significant - No Back Up | K24: 3 - Poor | L24: 5 - Impacts Revenue | M24: 5 - Critical | N24: Suite Renewal - vacant due to condition | O24: Renovate 1 units - kitchen cabinets, counters, flooring, full bathroom renovation, painting, plumbing and electrical fixtures | P24: Both units have had bed bug infestation and are recently vacated due to eviction. Both are in need of a full renovation. | Q24: Yes | R24: Yes | S24: $120,000.00 | V24: =SUM(S24:U24) -> $120,000.00 | W24: $22.00 | AH24: Yes
A25: 1272-2731-2878 | B25: =IF(A25="","",VLOOKUP(A25,Data!$B$2:$D$4020,3,FALSE)) -> NPF | C25: =IF(A25="","",VLOOKUP(A25,Data!$B$2:$F$4020,5,FALSE)) -> Peace River 1 | D25: 9701/9702 78 Avenue | E25: =CONCATENATE(A25,D25) -> 1272273128789701/9702 78 Avenue | F25: =IF(ISNA(VLOOKUP(E25,Data!$A$2:$I$4020,7,FALSE)),"",VLOOKUP(E25,Data!$A$2:$I$4020,7,FALSE)) -> Peace River | G25: =IF(ISNA(VLOOKUP(E25,Data!$A$2:$I$4020,9,FALSE)),"",VLOOKUP(E25,Data!$A$2:$I$4020,9,FALSE)) -> Alberta Social Housing Corporation | H25: =IF(ISNA(VLOOKUP(E25,Data!$A$2:$J$4020,10,FALSE)),"",VLOOKUP(E25,Data!$A$2:$J$4020,10,FALSE)) -> Community Housing Program | I25: 1 | J25: 9 - Significant - No Back Up | K25: 5 - Failed/Imminent | L25: 5 - Impacts Revenue | M25: 5 - Critical | N25: Suite Renewal - vacant due to condition | O25: Renovate 1 units - kitchen cabinets, counters, flooring, full bathroom renovation, painting, plumbing and electrical fixtures | P25: Unit has been down for years due to extensive damage. | Q25: Yes | R25: Yes | S25: $50,000.00 | V25: =SUM(S25:U25) -> $50,000.00 | W25: $23.00 | AH25: No
A26: 1272-2731-2878 | B26: =IF(A26="","",VLOOKUP(A26,Data!$B$2:$D$4020,3,FALSE)) -> NPF | C26: =IF(A26="","",VLOOKUP(A26,Data!$B$2:$F$4020,5,FALSE)) -> Peace River 1 | D26: 9704/9706 78 Avenue | E26: =CONCATENATE(A26,D26) -> 1272273128789704/9706 78 Avenue | F26: =IF(ISNA(VLOOKUP(E26,Data!$A$2:$I$4020,7,FALSE)),"",VLOOKUP(E26,Data!$A$2:$I$4020,7,FALSE)) -> Peace River | G26: =IF(ISNA(VLOOKUP(E26,Data!$A$2:$I$4020,9,FALSE)),"",VLOOKUP(E26,Data!$A$2:$I$4020,9,FALSE)) -> Alberta Social Housing Corporation | H26: =IF(ISNA(VLOOKUP(E26,Data!$A$2:$J$4020,10,FALSE)),"",VLOOKUP(E26,Data!$A$2:$J$4020,10,FALSE)) -> Community Housing Program | I26: 2 | J26: 4 - Significant - Limited Back Up | K26: 3 - Poor | L26: 5 - Ensure Reliability | M26: 3 - Moderate | N26: Roofing | O26: Replace shingles and eavestroughs | P26: Shingles are curling, 19+ years old | Q26: No | R26: No | S26: $10,000.00 | V26: =SUM(S26:U26) -> $10,000.00 | W26: $8.00
A27: 1272-2731-2878 | B27: =IF(A27="","",VLOOKUP(A27,Data!$B$2:$D$4020,3,FALSE)) -> NPF | C27: =IF(A27="","",VLOOKUP(A27,Data!$B$2:$F$4020,5,FALSE)) -> Peace River 1 | D27: 9701/9702 78 Avenue | E27: =CONCATENATE(A27,D27) -> 1272273128789701/9702 78 Avenue | F27: =IF(ISNA(VLOOKUP(E27,Data!$A$2:$I$4020,7,FALSE)),"",VLOOKUP(E27,Data!$A$2:$I$4020,7,FALSE)) -> Peace River | G27: =IF(ISNA(VLOOKUP(E27,Data!$A$2:$I$4020,9,FALSE)),"",VLOOKUP(E27,Data!$A$2:$I$4020,9,FALSE)) -> Alberta Social Housing Corporation | H27: =IF(ISNA(VLOOKUP(E27,Data!$A$2:$J$4020,10,FALSE)),"",VLOOKUP(E27,Data!$A$2:$J$4020,10,FALSE)) -> Community Housing Program | I27: 2 | J27: 4 - Significant - Limited Back Up | K27: 3 - Poor | L27: 5 - Ensure Reliability | M27: 3 - Moderate | N27: Roofing | O27: Replace shingles and eavestroughs | P27: Shingles are curling, 19+ years old | Q27: No | R27: No | S27: $10,000.00 | V27: =SUM(S27:U27) -> $10,000.00 | W27: $9.00
A28: 1272-2731-2878 | B28: =IF(A28="","",VLOOKUP(A28,Data!$B$2:$D$4020,3,FALSE)) -> NPF | C28: =IF(A28="","",VLOOKUP(A28,Data!$B$2:$F$4020,5,FALSE)) -> Peace River 1 | D28: 9703/9705 78 Avenue | E28: =CONCATENATE(A28,D28) -> 1272273128789703/9705 78 Avenue | F28: =IF(ISNA(VLOOKUP(E28,Data!$A$2:$I$4020,7,FALSE)),"",VLOOKUP(E28,Data!$A$2:$I$4020,7,FALSE)) -> Peace River | G28: =IF(ISNA(VLOOKUP(E28,Data!$A$2:$I$4020,9,FALSE)),"",VLOOKUP(E28,Data!$A$2:$I$4020,9,FALSE)) -> Alberta Social Housing Corporation | H28: =IF(ISNA(VLOOKUP(E28,Data!$A$2:$J$4020,10,FALSE)),"",VLOOKUP(E28,Data!$A$2:$J$4020,10,FALSE)) -> Community Housing Program | I28: 2 | J28: 4 - Significant - Limited Back Up | K28: 3 - Poor | L28: 5 - Ensure Reliability | M28: 3 - Moderate | N28: Roofing | O28: Replace shingles and eavestroughs | P28: Shingles are curling, 19+ years old | Q28: No | R28: No | S28: $10,000.00 | V28: =SUM(S28:U28) -> $10,000.00 | W28: $10.00
A29: 1272-2731-2202 | B29: =IF(A29="","",VLOOKUP(A29,Data!$B$2:$D$4020,3,FALSE)) -> NPF | C29: =IF(A29="","",VLOOKUP(A29,Data!$B$2:$F$4020,5,FALSE)) -> Peace River 3 | D29: 9906 - 90 Avenue Units 301 - 307 | E29: =CONCATENATE(A29,D29) -> 1272273122029906 - 90 Avenue Units 301 - 307 | F29: =IF(ISNA(VLOOKUP(E29,Data!$A$2:$I$4020,7,FALSE)),"",VLOOKUP(E29,Data!$A$2:$I$4020,7,FALSE)) -> Peace River | G29: =IF(ISNA(VLOOKUP(E29,Data!$A$2:$I$4020,9,FALSE)),"",VLOOKUP(E29,Data!$A$2:$I$4020,9,FALSE)) -> Alberta Social Housing Corporation | H29: =IF(ISNA(VLOOKUP(E29,Data!$A$2:$J$4020,10,FALSE)),"",VLOOKUP(E29,Data!$A$2:$J$4020,10,FALSE)) -> Community Housing Program | I29: 7 | J29: 4 - Significant - Limited Back Up | K29: 3 - Poor | L29: 5 - Ensure Reliability | M29: 3 - Moderate | N29: Roofing | O29: Replace shingles and eavestroughs in townhouse sections | P29: Shingles are curling, 18+ years old | Q29: No | R29: No | S29: $38,500.00 | V29: =SUM(S29:U29) -> $38,500.00 | W29: $6.00
A30: 1272-2731-2202 | B30: =IF(A30="","",VLOOKUP(A30,Data!$B$2:$D$4020,3,FALSE)) -> NPF | C30: =IF(A30="","",VLOOKUP(A30,Data!$B$2:$F$4020,5,FALSE)) -> Peace River 3 | D30: 10002 - 90 Avenue Units 314 - 317 | E30: =CONCATENATE(A30,D30) -> 12722731220210002 - 90 Avenue Units 314 - 317 | F30: =IF(ISNA(VLOOKUP(E30,Data!$A$2:$I$4020,7,FALSE)),"",VLOOKUP(E30,Data!$A$2:$I$4020,7,FALSE)) -> Peace River | G30: =IF(ISNA(VLOOKUP(E30,Data!$A$2:$I$4020,9,FALSE)),"",VLOOKUP(E30,Data!$A$2:$I$4020,9,FALSE)) -> Alberta Social Housing Corporation | H30: =IF(ISNA(VLOOKUP(E30,Data!$A$2:$J$4020,10,FALSE)),"",VLOOKUP(E30,Data!$A$2:$J$4020,10,FALSE)) -> Community Housing Program | I30: 4 | J30: 4 - Significant - Limited Back Up | K30: 3 - Poor | L30: 5 - Ensure Reliability | M30: 3 - Moderate | N30: Roofing | O30: Replace shingles and eavestroughs in townhouse sections | P30: Shingles 17+ years old. | Q30: No | R30: No | S30: $28,500.00 | V30: =SUM(S30:U30) -> $28,500.00 | W30: $7.00
A31: 1242-2731-2295 | B31: =IF(A31="","",VLOOKUP(A31,Data!$B$2:$D$4020,3,FALSE)) -> NPF | C31: =IF(A31="","",VLOOKUP(A31,Data!$B$2:$F$4020,5,FALSE)) -> Grimshaw 2 (FCLS) | D31: 4214 - 52 Street | E31: =CONCATENATE(A31,D31) -> 1242273122954214 - 52 Street | F31: =IF(ISNA(VLOOKUP(E31,Data!$A$2:$I$4020,7,FALSE)),"",VLOOKUP(E31,Data!$A$2:$I$4020,7,FALSE)) -> Grimshaw | G31: =IF(ISNA(VLOOKUP(E31,Data!$A$2:$I$4020,9,FALSE)),"",VLOOKUP(E31,Data!$A$2:$I$4020,9,FALSE)) -> Alberta Social Housing Corporation | H31: =IF(ISNA(VLOOKUP(E31,Data!$A$2:$J$4020,10,FALSE)),"",VLOOKUP(E31,Data!$A$2:$J$4020,10,FALSE)) -> Community Housing Program | I31: 1 | J31: 5 - Significant - No Back Up | K31: 5 - Failed/Imminent | L31: 5 - Ensure Reliability | M31: 5 - Critical | N31: Roofing | O31: Replace shingles and eavestroughs | P31: Original roof, 19+ years old | Q31: No | R31: No | S31: $9,000.00 | V31: =SUM(S31:U31) -> $9,000.00 | W31: $5.00 | X31: Note: This unit is listed as a potential Asset Transfer.
A32: 1242-2722-3204 | B32: =IF(A32="","",VLOOKUP(A32,Data!$B$2:$D$4020,3,FALSE)) -> NPF | C32: =IF(A32="","",VLOOKUP(A32,Data!$B$2:$F$4020,5,FALSE)) -> Grimshaw R&N 1 | D32: 5418 - 53 Street | E32: =CONCATENATE(A32,D32) -> 1242272232045418 - 53 Street | F32: =IF(ISNA(VLOOKUP(E32,Data!$A$2:$I$4020,7,FALSE)),"",VLOOKUP(E32,Data!$A$2:$I$4020,7,FALSE)) -> Grimshaw | G32: =IF(ISNA(VLOOKUP(E32,Data!$A$2:$I$4020,9,FALSE)),"",VLOOKUP(E32,Data!$A$2:$I$4020,9,FALSE)) -> Alberta Social Housing Corporation | H32: =IF(ISNA(VLOOKUP(E32,Data!$A$2:$J$4020,10,FALSE)),"",VLOOKUP(E32,Data!$A$2:$J$4020,10,FALSE)) -> Community Housing Program | I32: 1 | J32: 6 - Significant - No Back Up | K32: 3 - Poor | L32: 5 - Ensure Reliability | M32: 3 - Moderate | N32: Roofing | O32: Replace shingles and eavestroughs | P32: Shingles 17+ years old. | Q32: No | R32: No | S32: $9,000.00 | V32: =SUM(S32:U32) -> $9,000.00 | W32: $28.00 | X32: Note: This unit is listed as a potential Asset Transfer.
A33: 1242-2722-3013 | B33: =IF(A33="","",VLOOKUP(A33,Data!$B$2:$D$4020,3,FALSE)) -> NPF | C33: =IF(A33="","",VLOOKUP(A33,Data!$B$2:$F$4020,5,FALSE)) -> Grimshaw R&N 3 | D33: 4330 - 54 Street | E33: =CONCATENATE(A33,D33) -> 1242272230134330 - 54 Street | F33: =IF(ISNA(VLOOKUP(E33,Data!$A$2:$I$4020,7,FALSE)),"",VLOOKUP(E33,Data!$A$2:$I$4020,7,FALSE)) -> Grimshaw | G33: =IF(ISNA(VLOOKUP(E33,Data!$A$2:$I$4020,9,FALSE)),"",VLOOKUP(E33,Data!$A$2:$I$4020,9,FALSE)) -> Alberta Social Housing Corporation | H33: =IF(ISNA(VLOOKUP(E33,Data!$A$2:$J$4020,10,FALSE)),"",VLOOKUP(E33,Data!$A$2:$J$4020,10,FALSE)) -> Community Housing Program | I33: 1 | J33: 7 - Significant - No Back Up | K33: 3 - Poor | L33: 5 - Ensure Reliability | M33: 3 - Moderate | N33: Roofing | O33: Replace shingles and eavestroughs | P33: Shingles are curling, 18+ years old | Q33: No | R33: No | S33: $9,000.00 | V33: =SUM(S33:U33) -> $9,000.00 | W33: $29.00 | X33: Note: This unit is listed as a potential Asset Transfer.
A34: 1242-2722-3172 | B34: =IF(A34="","",VLOOKUP(A34,Data!$B$2:$D$4020,3,FALSE)) -> NPF | C34: =IF(A34="","",VLOOKUP(A34,Data!$B$2:$F$4020,5,FALSE)) -> Grimshaw R&N 4 | D34: 4717 - 44 Avenue | E34: =CONCATENATE(A34,D34) -> 1242272231724717 - 44 Avenue | F34: =IF(ISNA(VLOOKUP(E34,Data!$A$2:$I$4020,7,FALSE)),"",VLOOKUP(E34,Data!$A$2:$I$4020,7,FALSE)) -> Grimshaw | G34: =IF(ISNA(VLOOKUP(E34,Data!$A$2:$I$4020,9,FALSE)),"",VLOOKUP(E34,Data!$A$2:$I$4020,9,FALSE)) -> Alberta Social Housing Corporation | H34: =IF(ISNA(VLOOKUP(E34,Data!$A$2:$J$4020,10,FALSE)),"",VLOOKUP(E34,Data!$A$2:$J$4020,10,FALSE)) -> Community Housing Program | I34: 1 | J34: 8 - Significant - No Back Up | K34: 5 - Failed/Imminent | L34: 5 - Impacts Revenue | M34: 5 - Critical | N34: Suite Renewal - vacant due to condition | O34: Renovate 1 unit - kitchen cabinets, counters, flooring, full bathroom renovation, painting, plumbing and electrical fixtures | P34: Long term tenancy resulting in significant damage. | Q34: Yes | R34: Yes | S34: $60,000.00 | V34: =SUM(S34:U34) -> $60,000.00 | W34: $30.00 | X34: Note: This unit is listed as a potential Asset Transfer.
A35: 1224-2755-2252 | B35: =IF(A35="","",VLOOKUP(A35,Data!$B$2:$D$4020,3,FALSE)) -> NPF | C35: =IF(A35="","",VLOOKUP(A35,Data!$B$2:$F$4020,5,FALSE)) -> Garrison Manor Addition | D35: 10705 - 104 Avenue | E35: =CONCATENATE(A35,D35) -> 12242755225210705 - 104 Avenue | F35: =IF(ISNA(VLOOKUP(E35,Data!$A$2:$I$4020,7,FALSE)),"",VLOOKUP(E35,Data!$A$2:$I$4020,7,FALSE)) -> Fairview | G35: =IF(ISNA(VLOOKUP(E35,Data!$A$2:$I$4020,9,FALSE)),"",VLOOKUP(E35,Data!$A$2:$I$4020,9,FALSE)) -> Alberta Social Housing Corporation | H35: =IF(ISNA(VLOOKUP(E35,Data!$A$2:$J$4020,10,FALSE)),"",VLOOKUP(E35,Data!$A$2:$J$4020,10,FALSE)) -> Seniors Self Contained Program | I35: 30 | J35: 9 - Significant - No Back Up | K35: 3 - Poor | L35: 5 - Ensure Reliability | M35: 3 - Moderate | N35: Roofing | O35: Replace shingles and eavestroughs | P35: Shingles 18+ years old. | Q35: No | R35: No | T35: $60,000.00 | V35: =SUM(S35:U35) -> $60,000.00 | W35: $32.00
A36: 1224-2755-2082 | B36: =IF(A36="","",VLOOKUP(A36,Data!$B$2:$D$4020,3,FALSE)) -> NPF | C36: =IF(A36="","",VLOOKUP(A36,Data!$B$2:$F$4020,5,FALSE)) -> Garrison Manor | D36: 10705 - 104 Avenue | E36: =CONCATENATE(A36,D36) -> 12242755208210705 - 104 Avenue | F36: =IF(ISNA(VLOOKUP(E36,Data!$A$2:$I$4020,7,FALSE)),"",VLOOKUP(E36,Data!$A$2:$I$4020,7,FALSE)) -> Fairview | G36: =IF(ISNA(VLOOKUP(E36,Data!$A$2:$I$4020,9,FALSE)),"",VLOOKUP(E36,Data!$A$2:$I$4020,9,FALSE)) -> Alberta Social Housing Corporation | H36: =IF(ISNA(VLOOKUP(E36,Data!$A$2:$J$4020,10,FALSE)),"",VLOOKUP(E36,Data!$A$2:$J$4020,10,FALSE)) -> Seniors Self Contained Program | I36: 16 | J36: 10 - Significant - No Back Up | K36: 3 - Poor | L36: 5 - Ensure Reliability | M36: 3 - Moderate | N36: Roofing | O36: Replace shingles and eavestroughs | P36: Shingles 18+ years old. | Q36: No | R36: No | T36: $28,000.00 | V36: =SUM(S36:U36) -> $28,000.00 | W36: $33.00
A37: 1242-2755-2204 | B37: NPF | C37: Legion Court | D37: 4703 - 50 Street | E37: =CONCATENATE(A37,D37) -> 1242275522044703 - 50 Street | F37: Grimshaw | G37: =IF(ISNA(VLOOKUP(E37,Data!$A$2:$I$4020,9,FALSE)),"",VLOOKUP(E37,Data!$A$2:$I$4020,9,FALSE)) -> Alberta Social Housing Corporation | H37: =IF(ISNA(VLOOKUP(E37,Data!$A$2:$J$4020,10,FALSE)),"",VLOOKUP(E37,Data!$A$2:$J$4020,10,FALSE)) -> Seniors Self Contained Program | I37: 16 | J37: 4 - Significant - Limited Back Up | K37: 5 - Failed/Imminent | L37: 5 - Health and Safety/Legislation | M37: 5 - Critical | N37: Elevators | O37: Elevator replacement or repair | P37: Doors open while elevator is still moving and before reaching bottom | Q37: No | R37: No | S37: 0 | V37: =SUM(S37:U37) -> 0 | W37: $3.00
A38: 1254-2731-2877 | B38: =IF(A38="","",VLOOKUP(A38,Data!$B$2:$D$4020,3,FALSE)) -> NPF | C38: =IF(A38="","",VLOOKUP(A38,Data!$B$2:$F$4020,5,FALSE)) -> Manning 1 | D38: 406 A&B - 2 Street NE | E38: =CONCATENATE(A38,D38) -> 125427312877406 A&B - 2 Street NE | F38: Manning | G38: =IF(ISNA(VLOOKUP(E38,Data!$A$2:$I$4020,9,FALSE)),"",VLOOKUP(E38,Data!$A$2:$I$4020,9,FALSE)) -> Alberta Social Housing Corporation | H38: =IF(ISNA(VLOOKUP(E38,Data!$A$2:$J$4020,10,FALSE)),"",VLOOKUP(E38,Data!$A$2:$J$4020,10,FALSE)) -> Community Housing Program | I38: 1 | J38: 5 - Significant - No Back Up | K38: 5 - Failed/Imminent | L38: 5 - Ensure Reliability | M38: 5 - Critical | N38: Grounds Maintenance | O38: Install weeping tile, initial fix of membrane installation did not work. | P38: Basement floods and house is not rentable. | Q38: Yes | R38: Yes | S38: $35,000.00 | V38: =SUM(S38:U38) -> $35,000.00 | W38: $18.00
A39: 1254-2731-2877 | B39: =IF(A39="","",VLOOKUP(A39,Data!$B$2:$D$4020,3,FALSE)) -> NPF | C39: =IF(A39="","",VLOOKUP(A39,Data!$B$2:$F$4020,5,FALSE)) -> Manning 1 | D39: 403 A&B - 1 Street NE | E39: =CONCATENATE(A39,D39) -> 125427312877403 A&B - 1 Street NE | F39: Manning | G39: =IF(ISNA(VLOOKUP(E39,Data!$A$2:$I$4020,9,FALSE)),"",VLOOKUP(E39,Data!$A$2:$I$4020,9,FALSE)) -> Alberta Social Housing Corporation | H39: =IF(ISNA(VLOOKUP(E39,Data!$A$2:$J$4020,10,FALSE)),"",VLOOKUP(E39,Data!$A$2:$J$4020,10,FALSE)) -> Community Housing Program | I39: 2 | J39: 5 - Significant - No Back Up | K39: 5 - Failed/Imminent | L39: 5 - Ensure Reliability | M39: 5 - Critical | N39: Grounds Maintenance | O39: Install weeping tile, initial fix of membrane installation did not work. | P39: Basement floods and units are not rentable. | Q39: Yes | R39: Yes | S39: $70,000.00 | V39: =SUM(S39:U39) -> $70,000.00 | W39: $19.00
B40: =IF(A40="","",VLOOKUP(A40,Data!$B$2:$D$4020,3,FALSE)) ->  | C40: =IF(A40="","",VLOOKUP(A40,Data!$B$2:$F$4020,5,FALSE)) ->  | E40: =CONCATENATE(A40,D40) ->  | F40: =IF(ISNA(VLOOKUP(E40,Data!$A$2:$I$4020,7,FALSE)),"",VLOOKUP(E40,Data!$A$2:$I$4020,7,FALSE)) ->  | G40: =IF(ISNA(VLOOKUP(E40,Data!$A$2:$I$4020,9,FALSE)),"",VLOOKUP(E40,Data!$A$2:$I$4020,9,FALSE)) ->  | H40: =IF(ISNA(VLOOKUP(E40,Data!$A$2:$J$4020,10,FALSE)),"",VLOOKUP(E40,Data!$A$2:$J$4020,10,FALSE)) ->  | V40: =SUM(S40:U40) -> 0
B41: =IF(A41="","",VLOOKUP(A41,Data!$B$2:$D$4020,3,FALSE)) ->  | C41: =IF(A41="","",VLOOKUP(A41,Data!$B$2:$F$4020,5,FALSE)) ->  | E41: =CONCATENATE(A41,D41) ->  | F41: =IF(ISNA(VLOOKUP(E41,Data!$A$2:$I$4020,7,FALSE)),"",VLOOKUP(E41,Data!$A$2:$I$4020,7,FALSE)) ->  | G41: =IF(ISNA(VLOOKUP(E41,Data!$A$2:$I$4020,9,FALSE)),"",VLOOKUP(E41,Data!$A$2:$I$4020,9,FALSE)) ->  | H41: =IF(ISNA(VLOOKUP(E41,Data!$A$2:$J$4020,10,FALSE)),"",VLOOKUP(E41,Data!$A$2:$J$4020,10,FALSE)) ->  | V41: =SUM(S41:U41) -> 0
B42: =IF(A42="","",VLOOKUP(A42,Data!$B$2:$D$4020,3,FALSE)) ->  | C42: =IF(A42="","",VLOOKUP(A42,Data!$B$2:$F$4020,5,FALSE)) ->  | E42: =CONCATENATE(A42,D42) ->  | F42: =IF(ISNA(VLOOKUP(E42,Data!$A$2:$I$4020,7,FALSE)),"",VLOOKUP(E42,Data!$A$2:$I$4020,7,FALSE)) ->  | G42: =IF(ISNA(VLOOKUP(E42,Data!$A$2:$I$4020,9,FALSE)),"",VLOOKUP(E42,Data!$A$2:$I$4020,9,FALSE)) ->  | H42: =IF(ISNA(VLOOKUP(E42,Data!$A$2:$J$4020,10,FALSE)),"",VLOOKUP(E42,Data!$A$2:$J$4020,10,FALSE)) ->  | V42: =SUM(S42:U42) -> 0
B43: =IF(A43="","",VLOOKUP(A43,Data!$B$2:$D$4020,3,FALSE)) ->  | C43: =IF(A43="","",VLOOKUP(A43,Data!$B$2:$F$4020,5,FALSE)) ->  | E43: =CONCATENATE(A43,D43) ->  | F43: =IF(ISNA(VLOOKUP(E43,Data!$A$2:$I$4020,7,FALSE)),"",VLOOKUP(E43,Data!$A$2:$I$4020,7,FALSE)) ->  | G43: =IF(ISNA(VLOOKUP(E43,Data!$A$2:$I$4020,9,FALSE)),"",VLOOKUP(E43,Data!$A$2:$I$4020,9,FALSE)) ->  | H43: =IF(ISNA(VLOOKUP(E43,Data!$A$2:$J$4020,10,FALSE)),"",VLOOKUP(E43,Data!$A$2:$J$4020,10,FALSE)) ->  | V43: =SUM(S43:U43) -> 0
B44: =IF(A44="","",VLOOKUP(A44,Data!$B$2:$D$4020,3,FALSE)) ->  | C44: =IF(A44="","",VLOOKUP(A44,Data!$B$2:$F$4020,5,FALSE)) ->  | E44: =CONCATENATE(A44,D44) ->  | F44: =IF(ISNA(VLOOKUP(E44,Data!$A$2:$I$4020,7,FALSE)),"",VLOOKUP(E44,Data!$A$2:$I$4020,7,FALSE)) ->  | G44: =IF(ISNA(VLOOKUP(E44,Data!$A$2:$I$4020,9,FALSE)),"",VLOOKUP(E44,Data!$A$2:$I$4020,9,FALSE)) ->  | H44: =IF(ISNA(VLOOKUP(E44,Data!$A$2:$J$4020,10,FALSE)),"",VLOOKUP(E44,Data!$A$2:$J$4020,10,FALSE)) ->  | V44: =SUM(S44:U44) -> 0
B45: =IF(A45="","",VLOOKUP(A45,Data!$B$2:$D$4020,3,FALSE)) ->  | C45: =IF(A45="","",VLOOKUP(A45,Data!$B$2:$F$4020,5,FALSE)) ->  | E45: =CONCATENATE(A45,D45) ->  | F45: =IF(ISNA(VLOOKUP(E45,Data!$A$2:$I$4020,7,FALSE)),"",VLOOKUP(E45,Data!$A$2:$I$4020,7,FALSE)) ->  | G45: =IF(ISNA(VLOOKUP(E45,Data!$A$2:$I$4020,9,FALSE)),"",VLOOKUP(E45,Data!$A$2:$I$4020,9,FALSE)) ->  | H45: =IF(ISNA(VLOOKUP(E45,Data!$A$2:$J$4020,10,FALSE)),"",VLOOKUP(E45,Data!$A$2:$J$4020,10,FALSE)) ->  | V45: =SUM(S45:U45) -> 0
B46: =IF(A46="","",VLOOKUP(A46,Data!$B$2:$D$4020,3,FALSE)) ->  | C46: =IF(A46="","",VLOOKUP(A46,Data!$B$2:$F$4020,5,FALSE)) ->  | E46: =CONCATENATE(A46,D46) ->  | F46: =IF(ISNA(VLOOKUP(E46,Data!$A$2:$I$4020,7,FALSE)),"",VLOOKUP(E46,Data!$A$2:$I$4020,7,FALSE)) ->  | G46: =IF(ISNA(VLOOKUP(E46,Data!$A$2:$I$4020,9,FALSE)),"",VLOOKUP(E46,Data!$A$2:$I$4020,9,FALSE)) ->  | H46: =IF(ISNA(VLOOKUP(E46,Data!$A$2:$J$4020,10,FALSE)),"",VLOOKUP(E46,Data!$A$2:$J$4020,10,FALSE)) ->  | V46: =SUM(S46:U46) -> 0
B47: =IF(A47="","",VLOOKUP(A47,Data!$B$2:$D$4020,3,FALSE)) ->  | C47: =IF(A47="","",VLOOKUP(A47,Data!$B$2:$F$4020,5,FALSE)) ->  | E47: =CONCATENATE(A47,D47) ->  | F47: =IF(ISNA(VLOOKUP(E47,Data!$A$2:$I$4020,7,FALSE)),"",VLOOKUP(E47,Data!$A$2:$I$4020,7,FALSE)) ->  | G47: =IF(ISNA(VLOOKUP(E47,Data!$A$2:$I$4020,9,FALSE)),"",VLOOKUP(E47,Data!$A$2:$I$4020,9,FALSE)) ->  | H47: =IF(ISNA(VLOOKUP(E47,Data!$A$2:$J$4020,10,FALSE)),"",VLOOKUP(E47,Data!$A$2:$J$4020,10,FALSE)) ->  | V47: =SUM(S47:U47) -> 0
B48: =IF(A48="","",VLOOKUP(A48,Data!$B$2:$D$4020,3,FALSE)) ->  | C48: =IF(A48="","",VLOOKUP(A48,Data!$B$2:$F$4020,5,FALSE)) ->  | E48: =CONCATENATE(A48,D48) ->  | F48: =IF(ISNA(VLOOKUP(E48,Data!$A$2:$I$4020,7,FALSE)),"",VLOOKUP(E48,Data!$A$2:$I$4020,7,FALSE)) ->  | G48: =IF(ISNA(VLOOKUP(E48,Data!$A$2:$I$4020,9,FALSE)),"",VLOOKUP(E48,Data!$A$2:$I$4020,9,FALSE)) ->  | H48: =IF(ISNA(VLOOKUP(E48,Data!$A$2:$J$4020,10,FALSE)),"",VLOOKUP(E48,Data!$A$2:$J$4020,10,FALSE)) ->  | V48: =SUM(S48:U48) -> 0
B49: =IF(A49="","",VLOOKUP(A49,Data!$B$2:$D$4020,3,FALSE)) ->  | C49: =IF(A49="","",VLOOKUP(A49,Data!$B$2:$F$4020,5,FALSE)) ->  | E49: =CONCATENATE(A49,D49) ->  | F49: =IF(ISNA(VLOOKUP(E49,Data!$A$2:$I$4020,7,FALSE)),"",VLOOKUP(E49,Data!$A$2:$I$4020,7,FALSE)) ->  | G49: =IF(ISNA(VLOOKUP(E49,Data!$A$2:$I$4020,9,FALSE)),"",VLOOKUP(E49,Data!$A$2:$I$4020,9,FALSE)) ->  | H49: =IF(ISNA(VLOOKUP(E49,Data!$A$2:$J$4020,10,FALSE)),"",VLOOKUP(E49,Data!$A$2:$J$4020,10,FALSE)) ->  | V49: =SUM(S49:U49) -> 0
B50: =IF(A50="","",VLOOKUP(A50,Data!$B$2:$D$4020,3,FALSE)) ->  | C50: =IF(A50="","",VLOOKUP(A50,Data!$B$2:$F$4020,5,FALSE)) ->  | E50: =CONCATENATE(A50,D50) ->  | F50: =IF(ISNA(VLOOKUP(E50,Data!$A$2:$I$4020,7,FALSE)),"",VLOOKUP(E50,Data!$A$2:$I$4020,7,FALSE)) ->  | G50: =IF(ISNA(VLOOKUP(E50,Data!$A$2:$I$4020,9,FALSE)),"",VLOOKUP(E50,Data!$A$2:$I$4020,9,FALSE)) ->  | H50: =IF(ISNA(VLOOKUP(E50,Data!$A$2:$J$4020,10,FALSE)),"",VLOOKUP(E50,Data!$A$2:$J$4020,10,FALSE)) ->  | V50: =SUM(S50:U50) -> 0
B51: =IF(A51="","",VLOOKUP(A51,Data!$B$2:$D$4020,3,FALSE)) ->  | C51: =IF(A51="","",VLOOKUP(A51,Data!$B$2:$F$4020,5,FALSE)) ->  | E51: =CONCATENATE(A51,D51) ->  | F51: =IF(ISNA(VLOOKUP(E51,Data!$A$2:$I$4020,7,FALSE)),"",VLOOKUP(E51,Data!$A$2:$I$4020,7,FALSE)) ->  | G51: =IF(ISNA(VLOOKUP(E51,Data!$A$2:$I$4020,9,FALSE)),"",VLOOKUP(E51,Data!$A$2:$I$4020,9,FALSE)) ->  | H51: =IF(ISNA(VLOOKUP(E51,Data!$A$2:$J$4020,10,FALSE)),"",VLOOKUP(E51,Data!$A$2:$J$4020,10,FALSE)) ->  | V51: =SUM(S51:U51) -> 0
B52: =IF(A52="","",VLOOKUP(A52,Data!$B$2:$D$4020,3,FALSE)) ->  | C52: =IF(A52="","",VLOOKUP(A52,Data!$B$2:$F$4020,5,FALSE)) ->  | E52: =CONCATENATE(A52,D52) ->  | F52: =IF(ISNA(VLOOKUP(E52,Data!$A$2:$I$4020,7,FALSE)),"",VLOOKUP(E52,Data!$A$2:$I$4020,7,FALSE)) ->  | G52: =IF(ISNA(VLOOKUP(E52,Data!$A$2:$I$4020,9,FALSE)),"",VLOOKUP(E52,Data!$A$2:$I$4020,9,FALSE)) ->  | H52: =IF(ISNA(VLOOKUP(E52,Data!$A$2:$J$4020,10,FALSE)),"",VLOOKUP(E52,Data!$A$2:$J$4020,10,FALSE)) ->  | V52: =SUM(S52:U52) -> 0
B53: =IF(A53="","",VLOOKUP(A53,Data!$B$2:$D$4020,3,FALSE)) ->  | C53: =IF(A53="","",VLOOKUP(A53,Data!$B$2:$F$4020,5,FALSE)) ->  | E53: =CONCATENATE(A53,D53) ->  | F53: =IF(ISNA(VLOOKUP(E53,Data!$A$2:$I$4020,7,FALSE)),"",VLOOKUP(E53,Data!$A$2:$I$4020,7,FALSE)) ->  | G53: =IF(ISNA(VLOOKUP(E53,Data!$A$2:$I$4020,9,FALSE)),"",VLOOKUP(E53,Data!$A$2:$I$4020,9,FALSE)) ->  | H53: =IF(ISNA(VLOOKUP(E53,Data!$A$2:$J$4020,10,FALSE)),"",VLOOKUP(E53,Data!$A$2:$J$4020,10,FALSE)) ->  | V53: =SUM(S53:U53) -> 0
B54: =IF(A54="","",VLOOKUP(A54,Data!$B$2:$D$4020,3,FALSE)) ->  | C54: =IF(A54="","",VLOOKUP(A54,Data!$B$2:$F$4020,5,FALSE)) ->  | E54: =CONCATENATE(A54,D54) ->  | F54: =IF(ISNA(VLOOKUP(E54,Data!$A$2:$I$4020,7,FALSE)),"",VLOOKUP(E54,Data!$A$2:$I$4020,7,FALSE)) ->  | G54: =IF(ISNA(VLOOKUP(E54,Data!$A$2:$I$4020,9,FALSE)),"",VLOOKUP(E54,Data!$A$2:$I$4020,9,FALSE)) ->  | H54: =IF(ISNA(VLOOKUP(E54,Data!$A$2:$J$4020,10,FALSE)),"",VLOOKUP(E54,Data!$A$2:$J$4020,10,FALSE)) ->  | V54: =SUM(S54:U54) -> 0
B55: =IF(A55="","",VLOOKUP(A55,Data!$B$2:$D$4020,3,FALSE)) ->  | C55: =IF(A55="","",VLOOKUP(A55,Data!$B$2:$F$4020,5,FALSE)) ->  | E55: =CONCATENATE(A55,D55) ->  | F55: =IF(ISNA(VLOOKUP(E55,Data!$A$2:$I$4020,7,FALSE)),"",VLOOKUP(E55,Data!$A$2:$I$4020,7,FALSE)) ->  | G55: =IF(ISNA(VLOOKUP(E55,Data!$A$2:$I$4020,9,FALSE)),"",VLOOKUP(E55,Data!$A$2:$I$4020,9,FALSE)) ->  | H55: =IF(ISNA(VLOOKUP(E55,Data!$A$2:$J$4020,10,FALSE)),"",VLOOKUP(E55,Data!$A$2:$J$4020,10,FALSE)) ->  | V55: =SUM(S55:U55) -> 0
B56: =IF(A56="","",VLOOKUP(A56,Data!$B$2:$D$4020,3,FALSE)) ->  | C56: =IF(A56="","",VLOOKUP(A56,Data!$B$2:$F$4020,5,FALSE)) ->  | E56: =CONCATENATE(A56,D56) ->  | F56: =IF(ISNA(VLOOKUP(E56,Data!$A$2:$I$4020,7,FALSE)),"",VLOOKUP(E56,Data!$A$2:$I$4020,7,FALSE)) ->  | G56: =IF(ISNA(VLOOKUP(E56,Data!$A$2:$I$4020,9,FALSE)),"",VLOOKUP(E56,Data!$A$2:$I$4020,9,FALSE)) ->  | H56: =IF(ISNA(VLOOKUP(E56,Data!$A$2:$J$4020,10,FALSE)),"",VLOOKUP(E56,Data!$A$2:$J$4020,10,FALSE)) ->  | V56: =SUM(S56:U56) -> 0
B57: =IF(A57="","",VLOOKUP(A57,Data!$B$2:$D$4020,3,FALSE)) ->  | C57: =IF(A57="","",VLOOKUP(A57,Data!$B$2:$F$4020,5,FALSE)) ->  | E57: =CONCATENATE(A57,D57) ->  | F57: =IF(ISNA(VLOOKUP(E57,Data!$A$2:$I$4020,7,FALSE)),"",VLOOKUP(E57,Data!$A$2:$I$4020,7,FALSE)) ->  | G57: =IF(ISNA(VLOOKUP(E57,Data!$A$2:$I$4020,9,FALSE)),"",VLOOKUP(E57,Data!$A$2:$I$4020,9,FALSE)) ->  | H57: =IF(ISNA(VLOOKUP(E57,Data!$A$2:$J$4020,10,FALSE)),"",VLOOKUP(E57,Data!$A$2:$J$4020,10,FALSE)) ->  | V57: =SUM(S57:U57) -> 0
B58: =IF(A58="","",VLOOKUP(A58,Data!$B$2:$D$4020,3,FALSE)) ->  | C58: =IF(A58="","",VLOOKUP(A58,Data!$B$2:$F$4020,5,FALSE)) ->  | E58: =CONCATENATE(A58,D58) ->  | F58: =IF(ISNA(VLOOKUP(E58,Data!$A$2:$I$4020,7,FALSE)),"",VLOOKUP(E58,Data!$A$2:$I$4020,7,FALSE)) ->  | G58: =IF(ISNA(VLOOKUP(E58,Data!$A$2:$I$4020,9,FALSE)),"",VLOOKUP(E58,Data!$A$2:$I$4020,9,FALSE)) ->  | H58: =IF(ISNA(VLOOKUP(E58,Data!$A$2:$J$4020,10,FALSE)),"",VLOOKUP(E58,Data!$A$2:$J$4020,10,FALSE)) ->  | V58: =SUM(S58:U58) -> 0
B59: =IF(A59="","",VLOOKUP(A59,Data!$B$2:$D$4020,3,FALSE)) ->  | C59: =IF(A59="","",VLOOKUP(A59,Data!$B$2:$F$4020,5,FALSE)) ->  | E59: =CONCATENATE(A59,D59) ->  | F59: =IF(ISNA(VLOOKUP(E59,Data!$A$2:$I$4020,7,FALSE)),"",VLOOKUP(E59,Data!$A$2:$I$4020,7,FALSE)) ->  | G59: =IF(ISNA(VLOOKUP(E59,Data!$A$2:$I$4020,9,FALSE)),"",VLOOKUP(E59,Data!$A$2:$I$4020,9,FALSE)) ->  | H59: =IF(ISNA(VLOOKUP(E59,Data!$A$2:$J$4020,10,FALSE)),"",VLOOKUP(E59,Data!$A$2:$J$4020,10,FALSE)) ->  | V59: =SUM(S59:U59) -> 0
B60: =IF(A60="","",VLOOKUP(A60,Data!$B$2:$D$4020,3,FALSE)) ->  | C60: =IF(A60="","",VLOOKUP(A60,Data!$B$2:$F$4020,5,FALSE)) ->  | E60: =CONCATENATE(A60,D60) ->  | F60: =IF(ISNA(VLOOKUP(E60,Data!$A$2:$I$4020,7,FALSE)),"",VLOOKUP(E60,Data!$A$2:$I$4020,7,FALSE)) ->  | G60: =IF(ISNA(VLOOKUP(E60,Data!$A$2:$I$4020,9,FALSE)),"",VLOOKUP(E60,Data!$A$2:$I$4020,9,FALSE)) ->  | H60: =IF(ISNA(VLOOKUP(E60,Data!$A$2:$J$4020,10,FALSE)),"",VLOOKUP(E60,Data!$A$2:$J$4020,10,FALSE)) ->  | V60: =SUM(S60:U60) -> 0
B61: =IF(A61="","",VLOOKUP(A61,Data!$B$2:$D$4020,3,FALSE)) ->  | C61: =IF(A61="","",VLOOKUP(A61,Data!$B$2:$F$4020,5,FALSE)) ->  | E61: =CONCATENATE(A61,D61) ->  | F61: =IF(ISNA(VLOOKUP(E61,Data!$A$2:$I$4020,7,FALSE)),"",VLOOKUP(E61,Data!$A$2:$I$4020,7,FALSE)) ->  | G61: =IF(ISNA(VLOOKUP(E61,Data!$A$2:$I$4020,9,FALSE)),"",VLOOKUP(E61,Data!$A$2:$I$4020,9,FALSE)) ->  | H61: =IF(ISNA(VLOOKUP(E61,Data!$A$2:$J$4020,10,FALSE)),"",VLOOKUP(E61,Data!$A$2:$J$4020,10,FALSE)) ->  | V61: =SUM(S61:U61) -> 0
B62: =IF(A62="","",VLOOKUP(A62,Data!$B$2:$D$4020,3,FALSE)) ->  | C62: =IF(A62="","",VLOOKUP(A62,Data!$B$2:$F$4020,5,FALSE)) ->  | E62: =CONCATENATE(A62,D62) ->  | F62: =IF(ISNA(VLOOKUP(E62,Data!$A$2:$I$4020,7,FALSE)),"",VLOOKUP(E62,Data!$A$2:$I$4020,7,FALSE)) ->  | G62: =IF(ISNA(VLOOKUP(E62,Data!$A$2:$I$4020,9,FALSE)),"",VLOOKUP(E62,Data!$A$2:$I$4020,9,FALSE)) ->  | H62: =IF(ISNA(VLOOKUP(E62,Data!$A$2:$J$4020,10,FALSE)),"",VLOOKUP(E62,Data!$A$2:$J$4020,10,FALSE)) ->  | V62: =SUM(S62:U62) -> 0
B63: =IF(A63="","",VLOOKUP(A63,Data!$B$2:$D$4020,3,FALSE)) ->  | C63: =IF(A63="","",VLOOKUP(A63,Data!$B$2:$F$4020,5,FALSE)) ->  | E63: =CONCATENATE(A63,D63) ->  | F63: =IF(ISNA(VLOOKUP(E63,Data!$A$2:$I$4020,7,FALSE)),"",VLOOKUP(E63,Data!$A$2:$I$4020,7,FALSE)) ->  | G63: =IF(ISNA(VLOOKUP(E63,Data!$A$2:$I$4020,9,FALSE)),"",VLOOKUP(E63,Data!$A$2:$I$4020,9,FALSE)) ->  | H63: =IF(ISNA(VLOOKUP(E63,Data!$A$2:$J$4020,10,FALSE)),"",VLOOKUP(E63,Data!$A$2:$J$4020,10,FALSE)) ->  | V63: =SUM(S63:U63) -> 0
B64: =IF(A64="","",VLOOKUP(A64,Data!$B$2:$D$4020,3,FALSE)) ->  | C64: =IF(A64="","",VLOOKUP(A64,Data!$B$2:$F$4020,5,FALSE)) ->  | E64: =CONCATENATE(A64,D64) ->  | F64: =IF(ISNA(VLOOKUP(E64,Data!$A$2:$I$4020,7,FALSE)),"",VLOOKUP(E64,Data!$A$2:$I$4020,7,FALSE)) ->  | G64: =IF(ISNA(VLOOKUP(E64,Data!$A$2:$I$4020,9,FALSE)),"",VLOOKUP(E64,Data!$A$2:$I$4020,9,FALSE)) ->  | H64: =IF(ISNA(VLOOKUP(E64,Data!$A$2:$J$4020,10,FALSE)),"",VLOOKUP(E64,Data!$A$2:$J$4020,10,FALSE)) ->  | V64: =SUM(S64:U64) -> 0
B65: =IF(A65="","",VLOOKUP(A65,Data!$B$2:$D$4020,3,FALSE)) ->  | C65: =IF(A65="","",VLOOKUP(A65,Data!$B$2:$F$4020,5,FALSE)) ->  | E65: =CONCATENATE(A65,D65) ->  | F65: =IF(ISNA(VLOOKUP(E65,Data!$A$2:$I$4020,7,FALSE)),"",VLOOKUP(E65,Data!$A$2:$I$4020,7,FALSE)) ->  | G65: =IF(ISNA(VLOOKUP(E65,Data!$A$2:$I$4020,9,FALSE)),"",VLOOKUP(E65,Data!$A$2:$I$4020,9,FALSE)) ->  | H65: =IF(ISNA(VLOOKUP(E65,Data!$A$2:$J$4020,10,FALSE)),"",VLOOKUP(E65,Data!$A$2:$J$4020,10,FALSE)) ->  | V65: =SUM(S65:U65) -> 0
B66: =IF(A66="","",VLOOKUP(A66,Data!$B$2:$D$4020,3,FALSE)) ->  | C66: =IF(A66="","",VLOOKUP(A66,Data!$B$2:$F$4020,5,FALSE)) ->  | E66: =CONCATENATE(A66,D66) ->  | F66: =IF(ISNA(VLOOKUP(E66,Data!$A$2:$I$4020,7,FALSE)),"",VLOOKUP(E66,Data!$A$2:$I$4020,7,FALSE)) ->  | G66: =IF(ISNA(VLOOKUP(E66,Data!$A$2:$I$4020,9,FALSE)),"",VLOOKUP(E66,Data!$A$2:$I$4020,9,FALSE)) ->  | H66: =IF(ISNA(VLOOKUP(E66,Data!$A$2:$J$4020,10,FALSE)),"",VLOOKUP(E66,Data!$A$2:$J$4020,10,FALSE)) ->  | V66: =SUM(S66:U66) -> 0
B67: =IF(A67="","",VLOOKUP(A67,Data!$B$2:$D$4020,3,FALSE)) ->  | C67: =IF(A67="","",VLOOKUP(A67,Data!$B$2:$F$4020,5,FALSE)) ->  | E67: =CONCATENATE(A67,D67) ->  | F67: =IF(ISNA(VLOOKUP(E67,Data!$A$2:$I$4020,7,FALSE)),"",VLOOKUP(E67,Data!$A$2:$I$4020,7,FALSE)) ->  | G67: =IF(ISNA(VLOOKUP(E67,Data!$A$2:$I$4020,9,FALSE)),"",VLOOKUP(E67,Data!$A$2:$I$4020,9,FALSE)) ->  | H67: =IF(ISNA(VLOOKUP(E67,Data!$A$2:$J$4020,10,FALSE)),"",VLOOKUP(E67,Data!$A$2:$J$4020,10,FALSE)) ->  | V67: =SUM(S67:U67) -> 0
B68: =IF(A68="","",VLOOKUP(A68,Data!$B$2:$D$4020,3,FALSE)) ->  | C68: =IF(A68="","",VLOOKUP(A68,Data!$B$2:$F$4020,5,FALSE)) ->  | E68: =CONCATENATE(A68,D68) ->  | F68: =IF(ISNA(VLOOKUP(E68,Data!$A$2:$I$4020,7,FALSE)),"",VLOOKUP(E68,Data!$A$2:$I$4020,7,FALSE)) ->  | G68: =IF(ISNA(VLOOKUP(E68,Data!$A$2:$I$4020,9,FALSE)),"",VLOOKUP(E68,Data!$A$2:$I$4020,9,FALSE)) ->  | H68: =IF(ISNA(VLOOKUP(E68,Data!$A$2:$J$4020,10,FALSE)),"",VLOOKUP(E68,Data!$A$2:$J$4020,10,FALSE)) ->  | V68: =SUM(S68:U68) -> 0
B69: =IF(A69="","",VLOOKUP(A69,Data!$B$2:$D$4020,3,FALSE)) ->  | C69: =IF(A69="","",VLOOKUP(A69,Data!$B$2:$F$4020,5,FALSE)) ->  | E69: =CONCATENATE(A69,D69) ->  | F69: =IF(ISNA(VLOOKUP(E69,Data!$A$2:$I$4020,7,FALSE)),"",VLOOKUP(E69,Data!$A$2:$I$4020,7,FALSE)) ->  | G69: =IF(ISNA(VLOOKUP(E69,Data!$A$2:$I$4020,9,FALSE)),"",VLOOKUP(E69,Data!$A$2:$I$4020,9,FALSE)) ->  | H69: =IF(ISNA(VLOOKUP(E69,Data!$A$2:$J$4020,10,FALSE)),"",VLOOKUP(E69,Data!$A$2:$J$4020,10,FALSE)) ->  | V69: =SUM(S69:U69) -> 0
B70: =IF(A70="","",VLOOKUP(A70,Data!$B$2:$D$4020,3,FALSE)) ->  | C70: =IF(A70="","",VLOOKUP(A70,Data!$B$2:$F$4020,5,FALSE)) ->  | E70: =CONCATENATE(A70,D70) ->  | F70: =IF(ISNA(VLOOKUP(E70,Data!$A$2:$I$4020,7,FALSE)),"",VLOOKUP(E70,Data!$A$2:$I$4020,7,FALSE)) ->  | G70: =IF(ISNA(VLOOKUP(E70,Data!$A$2:$I$4020,9,FALSE)),"",VLOOKUP(E70,Data!$A$2:$I$4020,9,FALSE)) ->  | H70: =IF(ISNA(VLOOKUP(E70,Data!$A$2:$J$4020,10,FALSE)),"",VLOOKUP(E70,Data!$A$2:$J$4020,10,FALSE)) ->  | V70: =SUM(S70:U70) -> 0
B71: =IF(A71="","",VLOOKUP(A71,Data!$B$2:$D$4020,3,FALSE)) ->  | C71: =IF(A71="","",VLOOKUP(A71,Data!$B$2:$F$4020,5,FALSE)) ->  | E71: =CONCATENATE(A71,D71) ->  | F71: =IF(ISNA(VLOOKUP(E71,Data!$A$2:$I$4020,7,FALSE)),"",VLOOKUP(E71,Data!$A$2:$I$4020,7,FALSE)) ->  | G71: =IF(ISNA(VLOOKUP(E71,Data!$A$2:$I$4020,9,FALSE)),"",VLOOKUP(E71,Data!$A$2:$I$4020,9,FALSE)) ->  | H71: =IF(ISNA(VLOOKUP(E71,Data!$A$2:$J$4020,10,FALSE)),"",VLOOKUP(E71,Data!$A$2:$J$4020,10,FALSE)) ->  | V71: =SUM(S71:U71) -> 0
B72: =IF(A72="","",VLOOKUP(A72,Data!$B$2:$D$4020,3,FALSE)) ->  | C72: =IF(A72="","",VLOOKUP(A72,Data!$B$2:$F$4020,5,FALSE)) ->  | E72: =CONCATENATE(A72,D72) ->  | F72: =IF(ISNA(VLOOKUP(E72,Data!$A$2:$I$4020,7,FALSE)),"",VLOOKUP(E72,Data!$A$2:$I$4020,7,FALSE)) ->  | G72: =IF(ISNA(VLOOKUP(E72,Data!$A$2:$I$4020,9,FALSE)),"",VLOOKUP(E72,Data!$A$2:$I$4020,9,FALSE)) ->  | H72: =IF(ISNA(VLOOKUP(E72,Data!$A$2:$J$4020,10,FALSE)),"",VLOOKUP(E72,Data!$A$2:$J$4020,10,FALSE)) ->  | V72: =SUM(S72:U72) -> 0
B73: =IF(A73="","",VLOOKUP(A73,Data!$B$2:$D$4020,3,FALSE)) ->  | C73: =IF(A73="","",VLOOKUP(A73,Data!$B$2:$F$4020,5,FALSE)) ->  | E73: =CONCATENATE(A73,D73) ->  | F73: =IF(ISNA(VLOOKUP(E73,Data!$A$2:$I$4020,7,FALSE)),"",VLOOKUP(E73,Data!$A$2:$I$4020,7,FALSE)) ->  | G73: =IF(ISNA(VLOOKUP(E73,Data!$A$2:$I$4020,9,FALSE)),"",VLOOKUP(E73,Data!$A$2:$I$4020,9,FALSE)) ->  | H73: =IF(ISNA(VLOOKUP(E73,Data!$A$2:$J$4020,10,FALSE)),"",VLOOKUP(E73,Data!$A$2:$J$4020,10,FALSE)) ->  | V73: =SUM(S73:U73) -> 0
B74: =IF(A74="","",VLOOKUP(A74,Data!$B$2:$D$4020,3,FALSE)) ->  | C74: =IF(A74="","",VLOOKUP(A74,Data!$B$2:$F$4020,5,FALSE)) ->  | E74: =CONCATENATE(A74,D74) ->  | F74: =IF(ISNA(VLOOKUP(E74,Data!$A$2:$I$4020,7,FALSE)),"",VLOOKUP(E74,Data!$A$2:$I$4020,7,FALSE)) ->  | G74: =IF(ISNA(VLOOKUP(E74,Data!$A$2:$I$4020,9,FALSE)),"",VLOOKUP(E74,Data!$A$2:$I$4020,9,FALSE)) ->  | H74: =IF(ISNA(VLOOKUP(E74,Data!$A$2:$J$4020,10,FALSE)),"",VLOOKUP(E74,Data!$A$2:$J$4020,10,FALSE)) ->  | V74: =SUM(S74:U74) -> 0
B75: =IF(A75="","",VLOOKUP(A75,Data!$B$2:$D$4020,3,FALSE)) ->  | C75: =IF(A75="","",VLOOKUP(A75,Data!$B$2:$F$4020,5,FALSE)) ->  | E75: =CONCATENATE(A75,D75) ->  | F75: =IF(ISNA(VLOOKUP(E75,Data!$A$2:$I$4020,7,FALSE)),"",VLOOKUP(E75,Data!$A$2:$I$4020,7,FALSE)) ->  | G75: =IF(ISNA(VLOOKUP(E75,Data!$A$2:$I$4020,9,FALSE)),"",VLOOKUP(E75,Data!$A$2:$I$4020,9,FALSE)) ->  | H75: =IF(ISNA(VLOOKUP(E75,Data!$A$2:$J$4020,10,FALSE)),"",VLOOKUP(E75,Data!$A$2:$J$4020,10,FALSE)) ->  | V75: =SUM(S75:U75) -> 0
B76: =IF(A76="","",VLOOKUP(A76,Data!$B$2:$D$4020,3,FALSE)) ->  | C76: =IF(A76="","",VLOOKUP(A76,Data!$B$2:$F$4020,5,FALSE)) ->  | E76: =CONCATENATE(A76,D76) ->  | F76: =IF(ISNA(VLOOKUP(E76,Data!$A$2:$I$4020,7,FALSE)),"",VLOOKUP(E76,Data!$A$2:$I$4020,7,FALSE)) ->  | G76: =IF(ISNA(VLOOKUP(E76,Data!$A$2:$I$4020,9,FALSE)),"",VLOOKUP(E76,Data!$A$2:$I$4020,9,FALSE)) ->  | H76: =IF(ISNA(VLOOKUP(E76,Data!$A$2:$J$4020,10,FALSE)),"",VLOOKUP(E76,Data!$A$2:$J$4020,10,FALSE)) ->  | V76: =SUM(S76:U76) -> 0
B77: =IF(A77="","",VLOOKUP(A77,Data!$B$2:$D$4020,3,FALSE)) ->  | C77: =IF(A77="","",VLOOKUP(A77,Data!$B$2:$F$4020,5,FALSE)) ->  | E77: =CONCATENATE(A77,D77) ->  | F77: =IF(ISNA(VLOOKUP(E77,Data!$A$2:$I$4020,7,FALSE)),"",VLOOKUP(E77,Data!$A$2:$I$4020,7,FALSE)) ->  | G77: =IF(ISNA(VLOOKUP(E77,Data!$A$2:$I$4020,9,FALSE)),"",VLOOKUP(E77,Data!$A$2:$I$4020,9,FALSE)) ->  | H77: =IF(ISNA(VLOOKUP(E77,Data!$A$2:$J$4020,10,FALSE)),"",VLOOKUP(E77,Data!$A$2:$J$4020,10,FALSE)) ->  | V77: =SUM(S77:U77) -> 0
B78: =IF(A78="","",VLOOKUP(A78,Data!$B$2:$D$4020,3,FALSE)) ->  | C78: =IF(A78="","",VLOOKUP(A78,Data!$B$2:$F$4020,5,FALSE)) ->  | E78: =CONCATENATE(A78,D78) ->  | F78: =IF(ISNA(VLOOKUP(E78,Data!$A$2:$I$4020,7,FALSE)),"",VLOOKUP(E78,Data!$A$2:$I$4020,7,FALSE)) ->  | G78: =IF(ISNA(VLOOKUP(E78,Data!$A$2:$I$4020,9,FALSE)),"",VLOOKUP(E78,Data!$A$2:$I$4020,9,FALSE)) ->  | H78: =IF(ISNA(VLOOKUP(E78,Data!$A$2:$J$4020,10,FALSE)),"",VLOOKUP(E78,Data!$A$2:$J$4020,10,FALSE)) ->  | V78: =SUM(S78:U78) -> 0
B79: =IF(A79="","",VLOOKUP(A79,Data!$B$2:$D$4020,3,FALSE)) ->  | C79: =IF(A79="","",VLOOKUP(A79,Data!$B$2:$F$4020,5,FALSE)) ->  | E79: =CONCATENATE(A79,D79) ->  | F79: =IF(ISNA(VLOOKUP(E79,Data!$A$2:$I$4020,7,FALSE)),"",VLOOKUP(E79,Data!$A$2:$I$4020,7,FALSE)) ->  | G79: =IF(ISNA(VLOOKUP(E79,Data!$A$2:$I$4020,9,FALSE)),"",VLOOKUP(E79,Data!$A$2:$I$4020,9,FALSE)) ->  | H79: =IF(ISNA(VLOOKUP(E79,Data!$A$2:$J$4020,10,FALSE)),"",VLOOKUP(E79,Data!$A$2:$J$4020,10,FALSE)) ->  | V79: =SUM(S79:U79) -> 0
B80: =IF(A80="","",VLOOKUP(A80,Data!$B$2:$D$4020,3,FALSE)) ->  | C80: =IF(A80="","",VLOOKUP(A80,Data!$B$2:$F$4020,5,FALSE)) ->  | E80: =CONCATENATE(A80,D80) ->  | F80: =IF(ISNA(VLOOKUP(E80,Data!$A$2:$I$4020,7,FALSE)),"",VLOOKUP(E80,Data!$A$2:$I$4020,7,FALSE)) ->  | G80: =IF(ISNA(VLOOKUP(E80,Data!$A$2:$I$4020,9,FALSE)),"",VLOOKUP(E80,Data!$A$2:$I$4020,9,FALSE)) ->  | H80: =IF(ISNA(VLOOKUP(E80,Data!$A$2:$J$4020,10,FALSE)),"",VLOOKUP(E80,Data!$A$2:$J$4020,10,FALSE)) ->  | V80: =SUM(S80:U80) -> 0
B81: =IF(A81="","",VLOOKUP(A81,Data!$B$2:$D$4020,3,FALSE)) ->  | C81: =IF(A81="","",VLOOKUP(A81,Data!$B$2:$F$4020,5,FALSE)) ->  | E81: =CONCATENATE(A81,D81) ->  | F81: =IF(ISNA(VLOOKUP(E81,Data!$A$2:$I$4020,7,FALSE)),"",VLOOKUP(E81,Data!$A$2:$I$4020,7,FALSE)) ->  | G81: =IF(ISNA(VLOOKUP(E81,Data!$A$2:$I$4020,9,FALSE)),"",VLOOKUP(E81,Data!$A$2:$I$4020,9,FALSE)) ->  | H81: =IF(ISNA(VLOOKUP(E81,Data!$A$2:$J$4020,10,FALSE)),"",VLOOKUP(E81,Data!$A$2:$J$4020,10,FALSE)) ->  | V81: =SUM(S81:U81) -> 0
B82: =IF(A82="","",VLOOKUP(A82,Data!$B$2:$D$4020,3,FALSE)) ->  | C82: =IF(A82="","",VLOOKUP(A82,Data!$B$2:$F$4020,5,FALSE)) ->  | E82: =CONCATENATE(A82,D82) ->  | F82: =IF(ISNA(VLOOKUP(E82,Data!$A$2:$I$4020,7,FALSE)),"",VLOOKUP(E82,Data!$A$2:$I$4020,7,FALSE)) ->  | G82: =IF(ISNA(VLOOKUP(E82,Data!$A$2:$I$4020,9,FALSE)),"",VLOOKUP(E82,Data!$A$2:$I$4020,9,FALSE)) ->  | H82: =IF(ISNA(VLOOKUP(E82,Data!$A$2:$J$4020,10,FALSE)),"",VLOOKUP(E82,Data!$A$2:$J$4020,10,FALSE)) ->  | V82: =SUM(S82:U82) -> 0
B83: =IF(A83="","",VLOOKUP(A83,Data!$B$2:$D$4020,3,FALSE)) ->  | C83: =IF(A83="","",VLOOKUP(A83,Data!$B$2:$F$4020,5,FALSE)) ->  | E83: =CONCATENATE(A83,D83) ->  | F83: =IF(ISNA(VLOOKUP(E83,Data!$A$2:$I$4020,7,FALSE)),"",VLOOKUP(E83,Data!$A$2:$I$4020,7,FALSE)) ->  | G83: =IF(ISNA(VLOOKUP(E83,Data!$A$2:$I$4020,9,FALSE)),"",VLOOKUP(E83,Data!$A$2:$I$4020,9,FALSE)) ->  | H83: =IF(ISNA(VLOOKUP(E83,Data!$A$2:$J$4020,10,FALSE)),"",VLOOKUP(E83,Data!$A$2:$J$4020,10,FALSE)) ->  | V83: =SUM(S83:U83) -> 0
B84: =IF(A84="","",VLOOKUP(A84,Data!$B$2:$D$4020,3,FALSE)) ->  | C84: =IF(A84="","",VLOOKUP(A84,Data!$B$2:$F$4020,5,FALSE)) ->  | E84: =CONCATENATE(A84,D84) ->  | F84: =IF(ISNA(VLOOKUP(E84,Data!$A$2:$I$4020,7,FALSE)),"",VLOOKUP(E84,Data!$A$2:$I$4020,7,FALSE)) ->  | G84: =IF(ISNA(VLOOKUP(E84,Data!$A$2:$I$4020,9,FALSE)),"",VLOOKUP(E84,Data!$A$2:$I$4020,9,FALSE)) ->  | H84: =IF(ISNA(VLOOKUP(E84,Data!$A$2:$J$4020,10,FALSE)),"",VLOOKUP(E84,Data!$A$2:$J$4020,10,FALSE)) ->  | V84: =SUM(S84:U84) -> 0
B85: =IF(A85="","",VLOOKUP(A85,Data!$B$2:$D$4020,3,FALSE)) ->  | C85: =IF(A85="","",VLOOKUP(A85,Data!$B$2:$F$4020,5,FALSE)) ->  | E85: =CONCATENATE(A85,D85) ->  | F85: =IF(ISNA(VLOOKUP(E85,Data!$A$2:$I$4020,7,FALSE)),"",VLOOKUP(E85,Data!$A$2:$I$4020,7,FALSE)) ->  | G85: =IF(ISNA(VLOOKUP(E85,Data!$A$2:$I$4020,9,FALSE)),"",VLOOKUP(E85,Data!$A$2:$I$4020,9,FALSE)) ->  | H85: =IF(ISNA(VLOOKUP(E85,Data!$A$2:$J$4020,10,FALSE)),"",VLOOKUP(E85,Data!$A$2:$J$4020,10,FALSE)) ->  | V85: =SUM(S85:U85) -> 0
B86: =IF(A86="","",VLOOKUP(A86,Data!$B$2:$D$4020,3,FALSE)) ->  | C86: =IF(A86="","",VLOOKUP(A86,Data!$B$2:$F$4020,5,FALSE)) ->  | E86: =CONCATENATE(A86,D86) ->  | F86: =IF(ISNA(VLOOKUP(E86,Data!$A$2:$I$4020,7,FALSE)),"",VLOOKUP(E86,Data!$A$2:$I$4020,7,FALSE)) ->  | G86: =IF(ISNA(VLOOKUP(E86,Data!$A$2:$I$4020,9,FALSE)),"",VLOOKUP(E86,Data!$A$2:$I$4020,9,FALSE)) ->  | H86: =IF(ISNA(VLOOKUP(E86,Data!$A$2:$J$4020,10,FALSE)),"",VLOOKUP(E86,Data!$A$2:$J$4020,10,FALSE)) ->  | V86: =SUM(S86:U86) -> 0
B87: =IF(A87="","",VLOOKUP(A87,Data!$B$2:$D$4020,3,FALSE)) ->  | C87: =IF(A87="","",VLOOKUP(A87,Data!$B$2:$F$4020,5,FALSE)) ->  | E87: =CONCATENATE(A87,D87) ->  | F87: =IF(ISNA(VLOOKUP(E87,Data!$A$2:$I$4020,7,FALSE)),"",VLOOKUP(E87,Data!$A$2:$I$4020,7,FALSE)) ->  | G87: =IF(ISNA(VLOOKUP(E87,Data!$A$2:$I$4020,9,FALSE)),"",VLOOKUP(E87,Data!$A$2:$I$4020,9,FALSE)) ->  | H87: =IF(ISNA(VLOOKUP(E87,Data!$A$2:$J$4020,10,FALSE)),"",VLOOKUP(E87,Data!$A$2:$J$4020,10,FALSE)) ->  | V87: =SUM(S87:U87) -> 0
B88: =IF(A88="","",VLOOKUP(A88,Data!$B$2:$D$4020,3,FALSE)) ->  | C88: =IF(A88="","",VLOOKUP(A88,Data!$B$2:$F$4020,5,FALSE)) ->  | E88: =CONCATENATE(A88,D88) ->  | F88: =IF(ISNA(VLOOKUP(E88,Data!$A$2:$I$4020,7,FALSE)),"",VLOOKUP(E88,Data!$A$2:$I$4020,7,FALSE)) ->  | G88: =IF(ISNA(VLOOKUP(E88,Data!$A$2:$I$4020,9,FALSE)),"",VLOOKUP(E88,Data!$A$2:$I$4020,9,FALSE)) ->  | H88: =IF(ISNA(VLOOKUP(E88,Data!$A$2:$J$4020,10,FALSE)),"",VLOOKUP(E88,Data!$A$2:$J$4020,10,FALSE)) ->  | V88: =SUM(S88:U88) -> 0
B89: =IF(A89="","",VLOOKUP(A89,Data!$B$2:$D$4020,3,FALSE)) ->  | C89: =IF(A89="","",VLOOKUP(A89,Data!$B$2:$F$4020,5,FALSE)) ->  | E89: =CONCATENATE(A89,D89) ->  | F89: =IF(ISNA(VLOOKUP(E89,Data!$A$2:$I$4020,7,FALSE)),"",VLOOKUP(E89,Data!$A$2:$I$4020,7,FALSE)) ->  | G89: =IF(ISNA(VLOOKUP(E89,Data!$A$2:$I$4020,9,FALSE)),"",VLOOKUP(E89,Data!$A$2:$I$4020,9,FALSE)) ->  | H89: =IF(ISNA(VLOOKUP(E89,Data!$A$2:$J$4020,10,FALSE)),"",VLOOKUP(E89,Data!$A$2:$J$4020,10,FALSE)) ->  | V89: =SUM(S89:U89) -> 0
B90: =IF(A90="","",VLOOKUP(A90,Data!$B$2:$D$4020,3,FALSE)) ->  | C90: =IF(A90="","",VLOOKUP(A90,Data!$B$2:$F$4020,5,FALSE)) ->  | E90: =CONCATENATE(A90,D90) ->  | F90: =IF(ISNA(VLOOKUP(E90,Data!$A$2:$I$4020,7,FALSE)),"",VLOOKUP(E90,Data!$A$2:$I$4020,7,FALSE)) ->  | G90: =IF(ISNA(VLOOKUP(E90,Data!$A$2:$I$4020,9,FALSE)),"",VLOOKUP(E90,Data!$A$2:$I$4020,9,FALSE)) ->  | H90: =IF(ISNA(VLOOKUP(E90,Data!$A$2:$J$4020,10,FALSE)),"",VLOOKUP(E90,Data!$A$2:$J$4020,10,FALSE)) ->  | V90: =SUM(S90:U90) -> 0
B91: =IF(A91="","",VLOOKUP(A91,Data!$B$2:$D$4020,3,FALSE)) ->  | C91: =IF(A91="","",VLOOKUP(A91,Data!$B$2:$F$4020,5,FALSE)) ->  | E91: =CONCATENATE(A91,D91) ->  | F91: =IF(ISNA(VLOOKUP(E91,Data!$A$2:$I$4020,7,FALSE)),"",VLOOKUP(E91,Data!$A$2:$I$4020,7,FALSE)) ->  | G91: =IF(ISNA(VLOOKUP(E91,Data!$A$2:$I$4020,9,FALSE)),"",VLOOKUP(E91,Data!$A$2:$I$4020,9,FALSE)) ->  | H91: =IF(ISNA(VLOOKUP(E91,Data!$A$2:$J$4020,10,FALSE)),"",VLOOKUP(E91,Data!$A$2:$J$4020,10,FALSE)) ->  | V91: =SUM(S91:U91) -> 0
B92: =IF(A92="","",VLOOKUP(A92,Data!$B$2:$D$4020,3,FALSE)) ->  | C92: =IF(A92="","",VLOOKUP(A92,Data!$B$2:$F$4020,5,FALSE)) ->  | E92: =CONCATENATE(A92,D92) ->  | F92: =IF(ISNA(VLOOKUP(E92,Data!$A$2:$I$4020,7,FALSE)),"",VLOOKUP(E92,Data!$A$2:$I$4020,7,FALSE)) ->  | G92: =IF(ISNA(VLOOKUP(E92,Data!$A$2:$I$4020,9,FALSE)),"",VLOOKUP(E92,Data!$A$2:$I$4020,9,FALSE)) ->  | H92: =IF(ISNA(VLOOKUP(E92,Data!$A$2:$J$4020,10,FALSE)),"",VLOOKUP(E92,Data!$A$2:$J$4020,10,FALSE)) ->  | V92: =SUM(S92:U92) -> 0
B93: =IF(A93="","",VLOOKUP(A93,Data!$B$2:$D$4020,3,FALSE)) ->  | C93: =IF(A93="","",VLOOKUP(A93,Data!$B$2:$F$4020,5,FALSE)) ->  | E93: =CONCATENATE(A93,D93) ->  | F93: =IF(ISNA(VLOOKUP(E93,Data!$A$2:$I$4020,7,FALSE)),"",VLOOKUP(E93,Data!$A$2:$I$4020,7,FALSE)) ->  | G93: =IF(ISNA(VLOOKUP(E93,Data!$A$2:$I$4020,9,FALSE)),"",VLOOKUP(E93,Data!$A$2:$I$4020,9,FALSE)) ->  | H93: =IF(ISNA(VLOOKUP(E93,Data!$A$2:$J$4020,10,FALSE)),"",VLOOKUP(E93,Data!$A$2:$J$4020,10,FALSE)) ->  | V93: =SUM(S93:U93) -> 0
B94: =IF(A94="","",VLOOKUP(A94,Data!$B$2:$D$4020,3,FALSE)) ->  | C94: =IF(A94="","",VLOOKUP(A94,Data!$B$2:$F$4020,5,FALSE)) ->  | E94: =CONCATENATE(A94,D94) ->  | F94: =IF(ISNA(VLOOKUP(E94,Data!$A$2:$I$4020,7,FALSE)),"",VLOOKUP(E94,Data!$A$2:$I$4020,7,FALSE)) ->  | G94: =IF(ISNA(VLOOKUP(E94,Data!$A$2:$I$4020,9,FALSE)),"",VLOOKUP(E94,Data!$A$2:$I$4020,9,FALSE)) ->  | H94: =IF(ISNA(VLOOKUP(E94,Data!$A$2:$J$4020,10,FALSE)),"",VLOOKUP(E94,Data!$A$2:$J$4020,10,FALSE)) ->  | V94: =SUM(S94:U94) -> 0
B95: =IF(A95="","",VLOOKUP(A95,Data!$B$2:$D$4020,3,FALSE)) ->  | C95: =IF(A95="","",VLOOKUP(A95,Data!$B$2:$F$4020,5,FALSE)) ->  | E95: =CONCATENATE(A95,D95) ->  | F95: =IF(ISNA(VLOOKUP(E95,Data!$A$2:$I$4020,7,FALSE)),"",VLOOKUP(E95,Data!$A$2:$I$4020,7,FALSE)) ->  | G95: =IF(ISNA(VLOOKUP(E95,Data!$A$2:$I$4020,9,FALSE)),"",VLOOKUP(E95,Data!$A$2:$I$4020,9,FALSE)) ->  | H95: =IF(ISNA(VLOOKUP(E95,Data!$A$2:$J$4020,10,FALSE)),"",VLOOKUP(E95,Data!$A$2:$J$4020,10,FALSE)) ->  | V95: =SUM(S95:U95) -> 0
B96: =IF(A96="","",VLOOKUP(A96,Data!$B$2:$D$4020,3,FALSE)) ->  | C96: =IF(A96="","",VLOOKUP(A96,Data!$B$2:$F$4020,5,FALSE)) ->  | E96: =CONCATENATE(A96,D96) ->  | F96: =IF(ISNA(VLOOKUP(E96,Data!$A$2:$I$4020,7,FALSE)),"",VLOOKUP(E96,Data!$A$2:$I$4020,7,FALSE)) ->  | G96: =IF(ISNA(VLOOKUP(E96,Data!$A$2:$I$4020,9,FALSE)),"",VLOOKUP(E96,Data!$A$2:$I$4020,9,FALSE)) ->  | H96: =IF(ISNA(VLOOKUP(E96,Data!$A$2:$J$4020,10,FALSE)),"",VLOOKUP(E96,Data!$A$2:$J$4020,10,FALSE)) ->  | V96: =SUM(S96:U96) -> 0
B97: =IF(A97="","",VLOOKUP(A97,Data!$B$2:$D$4020,3,FALSE)) ->  | C97: =IF(A97="","",VLOOKUP(A97,Data!$B$2:$F$4020,5,FALSE)) ->  | E97: =CONCATENATE(A97,D97) ->  | F97: =IF(ISNA(VLOOKUP(E97,Data!$A$2:$I$4020,7,FALSE)),"",VLOOKUP(E97,Data!$A$2:$I$4020,7,FALSE)) ->  | G97: =IF(ISNA(VLOOKUP(E97,Data!$A$2:$I$4020,9,FALSE)),"",VLOOKUP(E97,Data!$A$2:$I$4020,9,FALSE)) ->  | H97: =IF(ISNA(VLOOKUP(E97,Data!$A$2:$J$4020,10,FALSE)),"",VLOOKUP(E97,Data!$A$2:$J$4020,10,FALSE)) ->  | V97: =SUM(S97:U97) -> 0
B98: =IF(A98="","",VLOOKUP(A98,Data!$B$2:$D$4020,3,FALSE)) ->  | C98: =IF(A98="","",VLOOKUP(A98,Data!$B$2:$F$4020,5,FALSE)) ->  | E98: =CONCATENATE(A98,D98) ->  | F98: =IF(ISNA(VLOOKUP(E98,Data!$A$2:$I$4020,7,FALSE)),"",VLOOKUP(E98,Data!$A$2:$I$4020,7,FALSE)) ->  | G98: =IF(ISNA(VLOOKUP(E98,Data!$A$2:$I$4020,9,FALSE)),"",VLOOKUP(E98,Data!$A$2:$I$4020,9,FALSE)) ->  | H98: =IF(ISNA(VLOOKUP(E98,Data!$A$2:$J$4020,10,FALSE)),"",VLOOKUP(E98,Data!$A$2:$J$4020,10,FALSE)) ->  | V98: =SUM(S98:U98) -> 0
B99: =IF(A99="","",VLOOKUP(A99,Data!$B$2:$D$4020,3,FALSE)) ->  | C99: =IF(A99="","",VLOOKUP(A99,Data!$B$2:$F$4020,5,FALSE)) ->  | E99: =CONCATENATE(A99,D99) ->  | F99: =IF(ISNA(VLOOKUP(E99,Data!$A$2:$I$4020,7,FALSE)),"",VLOOKUP(E99,Data!$A$2:$I$4020,7,FALSE)) ->  | G99: =IF(ISNA(VLOOKUP(E99,Data!$A$2:$I$4020,9,FALSE)),"",VLOOKUP(E99,Data!$A$2:$I$4020,9,FALSE)) ->  | H99: =IF(ISNA(VLOOKUP(E99,Data!$A$2:$J$4020,10,FALSE)),"",VLOOKUP(E99,Data!$A$2:$J$4020,10,FALSE)) ->  | V99: =SUM(S99:U99) -> 0
B100: =IF(A100="","",VLOOKUP(A100,Data!$B$2:$D$4020,3,FALSE)) ->  | C100: =IF(A100="","",VLOOKUP(A100,Data!$B$2:$F$4020,5,FALSE)) ->  | E100: =CONCATENATE(A100,D100) ->  | F100: =IF(ISNA(VLOOKUP(E100,Data!$A$2:$I$4020,7,FALSE)),"",VLOOKUP(E100,Data!$A$2:$I$4020,7,FALSE)) ->  | G100: =IF(ISNA(VLOOKUP(E100,Data!$A$2:$I$4020,9,FALSE)),"",VLOOKUP(E100,Data!$A$2:$I$4020,9,FALSE)) ->  | H100: =IF(ISNA(VLOOKUP(E100,Data!$A$2:$J$4020,10,FALSE)),"",VLOOKUP(E100,Data!$A$2:$J$4020,10,FALSE)) ->  | V100: =SUM(S100:U100) -> 0
B101: =IF(A101="","",VLOOKUP(A101,Data!$B$2:$D$4020,3,FALSE)) ->  | C101: =IF(A101="","",VLOOKUP(A101,Data!$B$2:$F$4020,5,FALSE)) ->  | E101: =CONCATENATE(A101,D101) ->  | F101: =IF(ISNA(VLOOKUP(E101,Data!$A$2:$I$4020,7,FALSE)),"",VLOOKUP(E101,Data!$A$2:$I$4020,7,FALSE)) ->  | G101: =IF(ISNA(VLOOKUP(E101,Data!$A$2:$I$4020,9,FALSE)),"",VLOOKUP(E101,Data!$A$2:$I$4020,9,FALSE)) ->  | H101: =IF(ISNA(VLOOKUP(E101,Data!$A$2:$J$4020,10,FALSE)),"",VLOOKUP(E101,Data!$A$2:$J$4020,10,FALSE)) ->  | V101: =SUM(S101:U101) -> 0
B102: =IF(A102="","",VLOOKUP(A102,Data!$B$2:$D$4020,3,FALSE)) ->  | C102: =IF(A102="","",VLOOKUP(A102,Data!$B$2:$F$4020,5,FALSE)) ->  | E102: =CONCATENATE(A102,D102) ->  | F102: =IF(ISNA(VLOOKUP(E102,Data!$A$2:$I$4020,7,FALSE)),"",VLOOKUP(E102,Data!$A$2:$I$4020,7,FALSE)) ->  | G102: =IF(ISNA(VLOOKUP(E102,Data!$A$2:$I$4020,9,FALSE)),"",VLOOKUP(E102,Data!$A$2:$I$4020,9,FALSE)) ->  | H102: =IF(ISNA(VLOOKUP(E102,Data!$A$2:$J$4020,10,FALSE)),"",VLOOKUP(E102,Data!$A$2:$J$4020,10,FALSE)) ->  | V102: =SUM(S102:U102) -> 0
B103: =IF(A103="","",VLOOKUP(A103,Data!$B$2:$D$4020,3,FALSE)) ->  | C103: =IF(A103="","",VLOOKUP(A103,Data!$B$2:$F$4020,5,FALSE)) ->  | E103: =CONCATENATE(A103,D103) ->  | F103: =IF(ISNA(VLOOKUP(E103,Data!$A$2:$I$4020,7,FALSE)),"",VLOOKUP(E103,Data!$A$2:$I$4020,7,FALSE)) ->  | G103: =IF(ISNA(VLOOKUP(E103,Data!$A$2:$I$4020,9,FALSE)),"",VLOOKUP(E103,Data!$A$2:$I$4020,9,FALSE)) ->  | H103: =IF(ISNA(VLOOKUP(E103,Data!$A$2:$J$4020,10,FALSE)),"",VLOOKUP(E103,Data!$A$2:$J$4020,10,FALSE)) ->  | V103: =SUM(S103:U103) -> 0
B104: =IF(A104="","",VLOOKUP(A104,Data!$B$2:$D$4020,3,FALSE)) ->  | C104: =IF(A104="","",VLOOKUP(A104,Data!$B$2:$F$4020,5,FALSE)) ->  | E104: =CONCATENATE(A104,D104) ->  | F104: =IF(ISNA(VLOOKUP(E104,Data!$A$2:$I$4020,7,FALSE)),"",VLOOKUP(E104,Data!$A$2:$I$4020,7,FALSE)) ->  | G104: =IF(ISNA(VLOOKUP(E104,Data!$A$2:$I$4020,9,FALSE)),"",VLOOKUP(E104,Data!$A$2:$I$4020,9,FALSE)) ->  | H104: =IF(ISNA(VLOOKUP(E104,Data!$A$2:$J$4020,10,FALSE)),"",VLOOKUP(E104,Data!$A$2:$J$4020,10,FALSE)) ->  | V104: =SUM(S104:U104) -> 0
B105: =IF(A105="","",VLOOKUP(A105,Data!$B$2:$D$4020,3,FALSE)) ->  | C105: =IF(A105="","",VLOOKUP(A105,Data!$B$2:$F$4020,5,FALSE)) ->  | E105: =CONCATENATE(A105,D105) ->  | F105: =IF(ISNA(VLOOKUP(E105,Data!$A$2:$I$4020,7,FALSE)),"",VLOOKUP(E105,Data!$A$2:$I$4020,7,FALSE)) ->  | G105: =IF(ISNA(VLOOKUP(E105,Data!$A$2:$I$4020,9,FALSE)),"",VLOOKUP(E105,Data!$A$2:$I$4020,9,FALSE)) ->  | H105: =IF(ISNA(VLOOKUP(E105,Data!$A$2:$J$4020,10,FALSE)),"",VLOOKUP(E105,Data!$A$2:$J$4020,10,FALSE)) ->  | V105: =SUM(S105:U105) -> 0
B106: =IF(A106="","",VLOOKUP(A106,Data!$B$2:$D$4020,3,FALSE)) ->  | C106: =IF(A106="","",VLOOKUP(A106,Data!$B$2:$F$4020,5,FALSE)) ->  | E106: =CONCATENATE(A106,D106) ->  | F106: =IF(ISNA(VLOOKUP(E106,Data!$A$2:$I$4020,7,FALSE)),"",VLOOKUP(E106,Data!$A$2:$I$4020,7,FALSE)) ->  | G106: =IF(ISNA(VLOOKUP(E106,Data!$A$2:$I$4020,9,FALSE)),"",VLOOKUP(E106,Data!$A$2:$I$4020,9,FALSE)) ->  | H106: =IF(ISNA(VLOOKUP(E106,Data!$A$2:$J$4020,10,FALSE)),"",VLOOKUP(E106,Data!$A$2:$J$4020,10,FALSE)) ->  | V106: =SUM(S106:U106) -> 0
B107: =IF(A107="","",VLOOKUP(A107,Data!$B$2:$D$4020,3,FALSE)) ->  | C107: =IF(A107="","",VLOOKUP(A107,Data!$B$2:$F$4020,5,FALSE)) ->  | E107: =CONCATENATE(A107,D107) ->  | F107: =IF(ISNA(VLOOKUP(E107,Data!$A$2:$I$4020,7,FALSE)),"",VLOOKUP(E107,Data!$A$2:$I$4020,7,FALSE)) ->  | G107: =IF(ISNA(VLOOKUP(E107,Data!$A$2:$I$4020,9,FALSE)),"",VLOOKUP(E107,Data!$A$2:$I$4020,9,FALSE)) ->  | H107: =IF(ISNA(VLOOKUP(E107,Data!$A$2:$J$4020,10,FALSE)),"",VLOOKUP(E107,Data!$A$2:$J$4020,10,FALSE)) ->  | V107: =SUM(S107:U107) -> 0
B108: =IF(A108="","",VLOOKUP(A108,Data!$B$2:$D$4020,3,FALSE)) ->  | C108: =IF(A108="","",VLOOKUP(A108,Data!$B$2:$F$4020,5,FALSE)) ->  | E108: =CONCATENATE(A108,D108) ->  | F108: =IF(ISNA(VLOOKUP(E108,Data!$A$2:$I$4020,7,FALSE)),"",VLOOKUP(E108,Data!$A$2:$I$4020,7,FALSE)) ->  | G108: =IF(ISNA(VLOOKUP(E108,Data!$A$2:$I$4020,9,FALSE)),"",VLOOKUP(E108,Data!$A$2:$I$4020,9,FALSE)) ->  | H108: =IF(ISNA(VLOOKUP(E108,Data!$A$2:$J$4020,10,FALSE)),"",VLOOKUP(E108,Data!$A$2:$J$4020,10,FALSE)) ->  | V108: =SUM(S108:U108) -> 0
B109: =IF(A109="","",VLOOKUP(A109,Data!$B$2:$D$4020,3,FALSE)) ->  | C109: =IF(A109="","",VLOOKUP(A109,Data!$B$2:$F$4020,5,FALSE)) ->  | E109: =CONCATENATE(A109,D109) ->  | F109: =IF(ISNA(VLOOKUP(E109,Data!$A$2:$I$4020,7,FALSE)),"",VLOOKUP(E109,Data!$A$2:$I$4020,7,FALSE)) ->  | G109: =IF(ISNA(VLOOKUP(E109,Data!$A$2:$I$4020,9,FALSE)),"",VLOOKUP(E109,Data!$A$2:$I$4020,9,FALSE)) ->  | H109: =IF(ISNA(VLOOKUP(E109,Data!$A$2:$J$4020,10,FALSE)),"",VLOOKUP(E109,Data!$A$2:$J$4020,10,FALSE)) ->  | V109: =SUM(S109:U109) -> 0
B110: =IF(A110="","",VLOOKUP(A110,Data!$B$2:$D$4020,3,FALSE)) ->  | C110: =IF(A110="","",VLOOKUP(A110,Data!$B$2:$F$4020,5,FALSE)) ->  | E110: =CONCATENATE(A110,D110) ->  | F110: =IF(ISNA(VLOOKUP(E110,Data!$A$2:$I$4020,7,FALSE)),"",VLOOKUP(E110,Data!$A$2:$I$4020,7,FALSE)) ->  | G110: =IF(ISNA(VLOOKUP(E110,Data!$A$2:$I$4020,9,FALSE)),"",VLOOKUP(E110,Data!$A$2:$I$4020,9,FALSE)) ->  | H110: =IF(ISNA(VLOOKUP(E110,Data!$A$2:$J$4020,10,FALSE)),"",VLOOKUP(E110,Data!$A$2:$J$4020,10,FALSE)) ->  | V110: =SUM(S110:U110) -> 0
B111: =IF(A111="","",VLOOKUP(A111,Data!$B$2:$D$4020,3,FALSE)) ->  | C111: =IF(A111="","",VLOOKUP(A111,Data!$B$2:$F$4020,5,FALSE)) ->  | E111: =CONCATENATE(A111,D111) ->  | F111: =IF(ISNA(VLOOKUP(E111,Data!$A$2:$I$4020,7,FALSE)),"",VLOOKUP(E111,Data!$A$2:$I$4020,7,FALSE)) ->  | G111: =IF(ISNA(VLOOKUP(E111,Data!$A$2:$I$4020,9,FALSE)),"",VLOOKUP(E111,Data!$A$2:$I$4020,9,FALSE)) ->  | H111: =IF(ISNA(VLOOKUP(E111,Data!$A$2:$J$4020,10,FALSE)),"",VLOOKUP(E111,Data!$A$2:$J$4020,10,FALSE)) ->  | V111: =SUM(S111:U111) -> 0
B112: =IF(A112="","",VLOOKUP(A112,Data!$B$2:$D$4020,3,FALSE)) ->  | C112: =IF(A112="","",VLOOKUP(A112,Data!$B$2:$F$4020,5,FALSE)) ->  | E112: =CONCATENATE(A112,D112) ->  | F112: =IF(ISNA(VLOOKUP(E112,Data!$A$2:$I$4020,7,FALSE)),"",VLOOKUP(E112,Data!$A$2:$I$4020,7,FALSE)) ->  | G112: =IF(ISNA(VLOOKUP(E112,Data!$A$2:$I$4020,9,FALSE)),"",VLOOKUP(E112,Data!$A$2:$I$4020,9,FALSE)) ->  | H112: =IF(ISNA(VLOOKUP(E112,Data!$A$2:$J$4020,10,FALSE)),"",VLOOKUP(E112,Data!$A$2:$J$4020,10,FALSE)) ->  | V112: =SUM(S112:U112) -> 0
B113: =IF(A113="","",VLOOKUP(A113,Data!$B$2:$D$4020,3,FALSE)) ->  | C113: =IF(A113="","",VLOOKUP(A113,Data!$B$2:$F$4020,5,FALSE)) ->  | E113: =CONCATENATE(A113,D113) ->  | F113: =IF(ISNA(VLOOKUP(E113,Data!$A$2:$I$4020,7,FALSE)),"",VLOOKUP(E113,Data!$A$2:$I$4020,7,FALSE)) ->  | G113: =IF(ISNA(VLOOKUP(E113,Data!$A$2:$I$4020,9,FALSE)),"",VLOOKUP(E113,Data!$A$2:$I$4020,9,FALSE)) ->  | H113: =IF(ISNA(VLOOKUP(E113,Data!$A$2:$J$4020,10,FALSE)),"",VLOOKUP(E113,Data!$A$2:$J$4020,10,FALSE)) ->  | V113: =SUM(S113:U113) -> 0
B114: =IF(A114="","",VLOOKUP(A114,Data!$B$2:$D$4020,3,FALSE)) ->  | C114: =IF(A114="","",VLOOKUP(A114,Data!$B$2:$F$4020,5,FALSE)) ->  | E114: =CONCATENATE(A114,D114) ->  | F114: =IF(ISNA(VLOOKUP(E114,Data!$A$2:$I$4020,7,FALSE)),"",VLOOKUP(E114,Data!$A$2:$I$4020,7,FALSE)) ->  | G114: =IF(ISNA(VLOOKUP(E114,Data!$A$2:$I$4020,9,FALSE)),"",VLOOKUP(E114,Data!$A$2:$I$4020,9,FALSE)) ->  | H114: =IF(ISNA(VLOOKUP(E114,Data!$A$2:$J$4020,10,FALSE)),"",VLOOKUP(E114,Data!$A$2:$J$4020,10,FALSE)) ->  | V114: =SUM(S114:U114) -> 0
B115: =IF(A115="","",VLOOKUP(A115,Data!$B$2:$D$4020,3,FALSE)) ->  | C115: =IF(A115="","",VLOOKUP(A115,Data!$B$2:$F$4020,5,FALSE)) ->  | E115: =CONCATENATE(A115,D115) ->  | F115: =IF(ISNA(VLOOKUP(E115,Data!$A$2:$I$4020,7,FALSE)),"",VLOOKUP(E115,Data!$A$2:$I$4020,7,FALSE)) ->  | G115: =IF(ISNA(VLOOKUP(E115,Data!$A$2:$I$4020,9,FALSE)),"",VLOOKUP(E115,Data!$A$2:$I$4020,9,FALSE)) ->  | H115: =IF(ISNA(VLOOKUP(E115,Data!$A$2:$J$4020,10,FALSE)),"",VLOOKUP(E115,Data!$A$2:$J$4020,10,FALSE)) ->  | V115: =SUM(S115:U115) -> 0
B116: =IF(A116="","",VLOOKUP(A116,Data!$B$2:$D$4020,3,FALSE)) ->  | C116: =IF(A116="","",VLOOKUP(A116,Data!$B$2:$F$4020,5,FALSE)) ->  | E116: =CONCATENATE(A116,D116) ->  | F116: =IF(ISNA(VLOOKUP(E116,Data!$A$2:$I$4020,7,FALSE)),"",VLOOKUP(E116,Data!$A$2:$I$4020,7,FALSE)) ->  | G116: =IF(ISNA(VLOOKUP(E116,Data!$A$2:$I$4020,9,FALSE)),"",VLOOKUP(E116,Data!$A$2:$I$4020,9,FALSE)) ->  | H116: =IF(ISNA(VLOOKUP(E116,Data!$A$2:$J$4020,10,FALSE)),"",VLOOKUP(E116,Data!$A$2:$J$4020,10,FALSE)) ->  | V116: =SUM(S116:U116) -> 0
B117: =IF(A117="","",VLOOKUP(A117,Data!$B$2:$D$4020,3,FALSE)) ->  | C117: =IF(A117="","",VLOOKUP(A117,Data!$B$2:$F$4020,5,FALSE)) ->  | E117: =CONCATENATE(A117,D117) ->  | F117: =IF(ISNA(VLOOKUP(E117,Data!$A$2:$I$4020,7,FALSE)),"",VLOOKUP(E117,Data!$A$2:$I$4020,7,FALSE)) ->  | G117: =IF(ISNA(VLOOKUP(E117,Data!$A$2:$I$4020,9,FALSE)),"",VLOOKUP(E117,Data!$A$2:$I$4020,9,FALSE)) ->  | H117: =IF(ISNA(VLOOKUP(E117,Data!$A$2:$J$4020,10,FALSE)),"",VLOOKUP(E117,Data!$A$2:$J$4020,10,FALSE)) ->  | V117: =SUM(S117:U117) -> 0
B118: =IF(A118="","",VLOOKUP(A118,Data!$B$2:$D$4020,3,FALSE)) ->  | C118: =IF(A118="","",VLOOKUP(A118,Data!$B$2:$F$4020,5,FALSE)) ->  | E118: =CONCATENATE(A118,D118) ->  | F118: =IF(ISNA(VLOOKUP(E118,Data!$A$2:$I$4020,7,FALSE)),"",VLOOKUP(E118,Data!$A$2:$I$4020,7,FALSE)) ->  | G118: =IF(ISNA(VLOOKUP(E118,Data!$A$2:$I$4020,9,FALSE)),"",VLOOKUP(E118,Data!$A$2:$I$4020,9,FALSE)) ->  | H118: =IF(ISNA(VLOOKUP(E118,Data!$A$2:$J$4020,10,FALSE)),"",VLOOKUP(E118,Data!$A$2:$J$4020,10,FALSE)) ->  | V118: =SUM(S118:U118) -> 0
B119: =IF(A119="","",VLOOKUP(A119,Data!$B$2:$D$4020,3,FALSE)) ->  | C119: =IF(A119="","",VLOOKUP(A119,Data!$B$2:$F$4020,5,FALSE)) ->  | E119: =CONCATENATE(A119,D119) ->  | F119: =IF(ISNA(VLOOKUP(E119,Data!$A$2:$I$4020,7,FALSE)),"",VLOOKUP(E119,Data!$A$2:$I$4020,7,FALSE)) ->  | G119: =IF(ISNA(VLOOKUP(E119,Data!$A$2:$I$4020,9,FALSE)),"",VLOOKUP(E119,Data!$A$2:$I$4020,9,FALSE)) ->  | H119: =IF(ISNA(VLOOKUP(E119,Data!$A$2:$J$4020,10,FALSE)),"",VLOOKUP(E119,Data!$A$2:$J$4020,10,FALSE)) ->  | V119: =SUM(S119:U119) -> 0
B120: =IF(A120="","",VLOOKUP(A120,Data!$B$2:$D$4020,3,FALSE)) ->  | C120: =IF(A120="","",VLOOKUP(A120,Data!$B$2:$F$4020,5,FALSE)) ->  | E120: =CONCATENATE(A120,D120) ->  | F120: =IF(ISNA(VLOOKUP(E120,Data!$A$2:$I$4020,7,FALSE)),"",VLOOKUP(E120,Data!$A$2:$I$4020,7,FALSE)) ->  | G120: =IF(ISNA(VLOOKUP(E120,Data!$A$2:$I$4020,9,FALSE)),"",VLOOKUP(E120,Data!$A$2:$I$4020,9,FALSE)) ->  | H120: =IF(ISNA(VLOOKUP(E120,Data!$A$2:$J$4020,10,FALSE)),"",VLOOKUP(E120,Data!$A$2:$J$4020,10,FALSE)) ->  | V120: =SUM(S120:U120) -> 0
B121: =IF(A121="","",VLOOKUP(A121,Data!$B$2:$D$4020,3,FALSE)) ->  | C121: =IF(A121="","",VLOOKUP(A121,Data!$B$2:$F$4020,5,FALSE)) ->  | E121: =CONCATENATE(A121,D121) ->  | F121: =IF(ISNA(VLOOKUP(E121,Data!$A$2:$I$4020,7,FALSE)),"",VLOOKUP(E121,Data!$A$2:$I$4020,7,FALSE)) ->  | G121: =IF(ISNA(VLOOKUP(E121,Data!$A$2:$I$4020,9,FALSE)),"",VLOOKUP(E121,Data!$A$2:$I$4020,9,FALSE)) ->  | H121: =IF(ISNA(VLOOKUP(E121,Data!$A$2:$J$4020,10,FALSE)),"",VLOOKUP(E121,Data!$A$2:$J$4020,10,FALSE)) ->  | V121: =SUM(S121:U121) -> 0
B122: =IF(A122="","",VLOOKUP(A122,Data!$B$2:$D$4020,3,FALSE)) ->  | C122: =IF(A122="","",VLOOKUP(A122,Data!$B$2:$F$4020,5,FALSE)) ->  | E122: =CONCATENATE(A122,D122) ->  | F122: =IF(ISNA(VLOOKUP(E122,Data!$A$2:$I$4020,7,FALSE)),"",VLOOKUP(E122,Data!$A$2:$I$4020,7,FALSE)) ->  | G122: =IF(ISNA(VLOOKUP(E122,Data!$A$2:$I$4020,9,FALSE)),"",VLOOKUP(E122,Data!$A$2:$I$4020,9,FALSE)) ->  | H122: =IF(ISNA(VLOOKUP(E122,Data!$A$2:$J$4020,10,FALSE)),"",VLOOKUP(E122,Data!$A$2:$J$4020,10,FALSE)) ->  | V122: =SUM(S122:U122) -> 0
B123: =IF(A123="","",VLOOKUP(A123,Data!$B$2:$D$4020,3,FALSE)) ->  | C123: =IF(A123="","",VLOOKUP(A123,Data!$B$2:$F$4020,5,FALSE)) ->  | E123: =CONCATENATE(A123,D123) ->  | F123: =IF(ISNA(VLOOKUP(E123,Data!$A$2:$I$4020,7,FALSE)),"",VLOOKUP(E123,Data!$A$2:$I$4020,7,FALSE)) ->  | G123: =IF(ISNA(VLOOKUP(E123,Data!$A$2:$I$4020,9,FALSE)),"",VLOOKUP(E123,Data!$A$2:$I$4020,9,FALSE)) ->  | H123: =IF(ISNA(VLOOKUP(E123,Data!$A$2:$J$4020,10,FALSE)),"",VLOOKUP(E123,Data!$A$2:$J$4020,10,FALSE)) ->  | V123: =SUM(S123:U123) -> 0
B124: =IF(A124="","",VLOOKUP(A124,Data!$B$2:$D$4020,3,FALSE)) ->  | C124: =IF(A124="","",VLOOKUP(A124,Data!$B$2:$F$4020,5,FALSE)) ->  | E124: =CONCATENATE(A124,D124) ->  | F124: =IF(ISNA(VLOOKUP(E124,Data!$A$2:$I$4020,7,FALSE)),"",VLOOKUP(E124,Data!$A$2:$I$4020,7,FALSE)) ->  | G124: =IF(ISNA(VLOOKUP(E124,Data!$A$2:$I$4020,9,FALSE)),"",VLOOKUP(E124,Data!$A$2:$I$4020,9,FALSE)) ->  | H124: =IF(ISNA(VLOOKUP(E124,Data!$A$2:$J$4020,10,FALSE)),"",VLOOKUP(E124,Data!$A$2:$J$4020,10,FALSE)) ->  | V124: =SUM(S124:U124) -> 0
B125: =IF(A125="","",VLOOKUP(A125,Data!$B$2:$D$4020,3,FALSE)) ->  | C125: =IF(A125="","",VLOOKUP(A125,Data!$B$2:$F$4020,5,FALSE)) ->  | E125: =CONCATENATE(A125,D125) ->  | F125: =IF(ISNA(VLOOKUP(E125,Data!$A$2:$I$4020,7,FALSE)),"",VLOOKUP(E125,Data!$A$2:$I$4020,7,FALSE)) ->  | G125: =IF(ISNA(VLOOKUP(E125,Data!$A$2:$I$4020,9,FALSE)),"",VLOOKUP(E125,Data!$A$2:$I$4020,9,FALSE)) ->  | H125: =IF(ISNA(VLOOKUP(E125,Data!$A$2:$J$4020,10,FALSE)),"",VLOOKUP(E125,Data!$A$2:$J$4020,10,FALSE)) ->  | V125: =SUM(S125:U125) -> 0
B126: =IF(A126="","",VLOOKUP(A126,Data!$B$2:$D$4020,3,FALSE)) ->  | C126: =IF(A126="","",VLOOKUP(A126,Data!$B$2:$F$4020,5,FALSE)) ->  | E126: =CONCATENATE(A126,D126) ->  | F126: =IF(ISNA(VLOOKUP(E126,Data!$A$2:$I$4020,7,FALSE)),"",VLOOKUP(E126,Data!$A$2:$I$4020,7,FALSE)) ->  | G126: =IF(ISNA(VLOOKUP(E126,Data!$A$2:$I$4020,9,FALSE)),"",VLOOKUP(E126,Data!$A$2:$I$4020,9,FALSE)) ->  | H126: =IF(ISNA(VLOOKUP(E126,Data!$A$2:$J$4020,10,FALSE)),"",VLOOKUP(E126,Data!$A$2:$J$4020,10,FALSE)) ->  | V126: =SUM(S126:U126) -> 0
B127: =IF(A127="","",VLOOKUP(A127,Data!$B$2:$D$4020,3,FALSE)) ->  | C127: =IF(A127="","",VLOOKUP(A127,Data!$B$2:$F$4020,5,FALSE)) ->  | E127: =CONCATENATE(A127,D127) ->  | F127: =IF(ISNA(VLOOKUP(E127,Data!$A$2:$I$4020,7,FALSE)),"",VLOOKUP(E127,Data!$A$2:$I$4020,7,FALSE)) ->  | G127: =IF(ISNA(VLOOKUP(E127,Data!$A$2:$I$4020,9,FALSE)),"",VLOOKUP(E127,Data!$A$2:$I$4020,9,FALSE)) ->  | H127: =IF(ISNA(VLOOKUP(E127,Data!$A$2:$J$4020,10,FALSE)),"",VLOOKUP(E127,Data!$A$2:$J$4020,10,FALSE)) ->  | V127: =SUM(S127:U127) -> 0
B128: =IF(A128="","",VLOOKUP(A128,Data!$B$2:$D$4020,3,FALSE)) ->  | C128: =IF(A128="","",VLOOKUP(A128,Data!$B$2:$F$4020,5,FALSE)) ->  | E128: =CONCATENATE(A128,D128) ->  | F128: =IF(ISNA(VLOOKUP(E128,Data!$A$2:$I$4020,7,FALSE)),"",VLOOKUP(E128,Data!$A$2:$I$4020,7,FALSE)) ->  | G128: =IF(ISNA(VLOOKUP(E128,Data!$A$2:$I$4020,9,FALSE)),"",VLOOKUP(E128,Data!$A$2:$I$4020,9,FALSE)) ->  | H128: =IF(ISNA(VLOOKUP(E128,Data!$A$2:$J$4020,10,FALSE)),"",VLOOKUP(E128,Data!$A$2:$J$4020,10,FALSE)) ->  | V128: =SUM(S128:U128) -> 0
B129: =IF(A129="","",VLOOKUP(A129,Data!$B$2:$D$4020,3,FALSE)) ->  | C129: =IF(A129="","",VLOOKUP(A129,Data!$B$2:$F$4020,5,FALSE)) ->  | E129: =CONCATENATE(A129,D129) ->  | F129: =IF(ISNA(VLOOKUP(E129,Data!$A$2:$I$4020,7,FALSE)),"",VLOOKUP(E129,Data!$A$2:$I$4020,7,FALSE)) ->  | G129: =IF(ISNA(VLOOKUP(E129,Data!$A$2:$I$4020,9,FALSE)),"",VLOOKUP(E129,Data!$A$2:$I$4020,9,FALSE)) ->  | H129: =IF(ISNA(VLOOKUP(E129,Data!$A$2:$J$4020,10,FALSE)),"",VLOOKUP(E129,Data!$A$2:$J$4020,10,FALSE)) ->  | V129: =SUM(S129:U129) -> 0
B130: =IF(A130="","",VLOOKUP(A130,Data!$B$2:$D$4020,3,FALSE)) ->  | C130: =IF(A130="","",VLOOKUP(A130,Data!$B$2:$F$4020,5,FALSE)) ->  | E130: =CONCATENATE(A130,D130) ->  | F130: =IF(ISNA(VLOOKUP(E130,Data!$A$2:$I$4020,7,FALSE)),"",VLOOKUP(E130,Data!$A$2:$I$4020,7,FALSE)) ->  | G130: =IF(ISNA(VLOOKUP(E130,Data!$A$2:$I$4020,9,FALSE)),"",VLOOKUP(E130,Data!$A$2:$I$4020,9,FALSE)) ->  | H130: =IF(ISNA(VLOOKUP(E130,Data!$A$2:$J$4020,10,FALSE)),"",VLOOKUP(E130,Data!$A$2:$J$4020,10,FALSE)) ->  | V130: =SUM(S130:U130) -> 0
B131: =IF(A131="","",VLOOKUP(A131,Data!$B$2:$D$4020,3,FALSE)) ->  | C131: =IF(A131="","",VLOOKUP(A131,Data!$B$2:$F$4020,5,FALSE)) ->  | E131: =CONCATENATE(A131,D131) ->  | F131: =IF(ISNA(VLOOKUP(E131,Data!$A$2:$I$4020,7,FALSE)),"",VLOOKUP(E131,Data!$A$2:$I$4020,7,FALSE)) ->  | G131: =IF(ISNA(VLOOKUP(E131,Data!$A$2:$I$4020,9,FALSE)),"",VLOOKUP(E131,Data!$A$2:$I$4020,9,FALSE)) ->  | H131: =IF(ISNA(VLOOKUP(E131,Data!$A$2:$J$4020,10,FALSE)),"",VLOOKUP(E131,Data!$A$2:$J$4020,10,FALSE)) ->  | V131: =SUM(S131:U131) -> 0
B132: =IF(A132="","",VLOOKUP(A132,Data!$B$2:$D$4020,3,FALSE)) ->  | C132: =IF(A132="","",VLOOKUP(A132,Data!$B$2:$F$4020,5,FALSE)) ->  | E132: =CONCATENATE(A132,D132) ->  | F132: =IF(ISNA(VLOOKUP(E132,Data!$A$2:$I$4020,7,FALSE)),"",VLOOKUP(E132,Data!$A$2:$I$4020,7,FALSE)) ->  | G132: =IF(ISNA(VLOOKUP(E132,Data!$A$2:$I$4020,9,FALSE)),"",VLOOKUP(E132,Data!$A$2:$I$4020,9,FALSE)) ->  | H132: =IF(ISNA(VLOOKUP(E132,Data!$A$2:$J$4020,10,FALSE)),"",VLOOKUP(E132,Data!$A$2:$J$4020,10,FALSE)) ->  | V132: =SUM(S132:U132) -> 0
B133: =IF(A133="","",VLOOKUP(A133,Data!$B$2:$D$4020,3,FALSE)) ->  | C133: =IF(A133="","",VLOOKUP(A133,Data!$B$2:$F$4020,5,FALSE)) ->  | E133: =CONCATENATE(A133,D133) ->  | F133: =IF(ISNA(VLOOKUP(E133,Data!$A$2:$I$4020,7,FALSE)),"",VLOOKUP(E133,Data!$A$2:$I$4020,7,FALSE)) ->  | G133: =IF(ISNA(VLOOKUP(E133,Data!$A$2:$I$4020,9,FALSE)),"",VLOOKUP(E133,Data!$A$2:$I$4020,9,FALSE)) ->  | H133: =IF(ISNA(VLOOKUP(E133,Data!$A$2:$J$4020,10,FALSE)),"",VLOOKUP(E133,Data!$A$2:$J$4020,10,FALSE)) ->  | V133: =SUM(S133:U133) -> 0
B134: =IF(A134="","",VLOOKUP(A134,Data!$B$2:$D$4020,3,FALSE)) ->  | C134: =IF(A134="","",VLOOKUP(A134,Data!$B$2:$F$4020,5,FALSE)) ->  | E134: =CONCATENATE(A134,D134) ->  | F134: =IF(ISNA(VLOOKUP(E134,Data!$A$2:$I$4020,7,FALSE)),"",VLOOKUP(E134,Data!$A$2:$I$4020,7,FALSE)) ->  | G134: =IF(ISNA(VLOOKUP(E134,Data!$A$2:$I$4020,9,FALSE)),"",VLOOKUP(E134,Data!$A$2:$I$4020,9,FALSE)) ->  | H134: =IF(ISNA(VLOOKUP(E134,Data!$A$2:$J$4020,10,FALSE)),"",VLOOKUP(E134,Data!$A$2:$J$4020,10,FALSE)) ->  | V134: =SUM(S134:U134) -> 0
B135: =IF(A135="","",VLOOKUP(A135,Data!$B$2:$D$4020,3,FALSE)) ->  | C135: =IF(A135="","",VLOOKUP(A135,Data!$B$2:$F$4020,5,FALSE)) ->  | E135: =CONCATENATE(A135,D135) ->  | F135: =IF(ISNA(VLOOKUP(E135,Data!$A$2:$I$4020,7,FALSE)),"",VLOOKUP(E135,Data!$A$2:$I$4020,7,FALSE)) ->  | G135: =IF(ISNA(VLOOKUP(E135,Data!$A$2:$I$4020,9,FALSE)),"",VLOOKUP(E135,Data!$A$2:$I$4020,9,FALSE)) ->  | H135: =IF(ISNA(VLOOKUP(E135,Data!$A$2:$J$4020,10,FALSE)),"",VLOOKUP(E135,Data!$A$2:$J$4020,10,FALSE)) ->  | V135: =SUM(S135:U135) -> 0
B136: =IF(A136="","",VLOOKUP(A136,Data!$B$2:$D$4020,3,FALSE)) ->  | C136: =IF(A136="","",VLOOKUP(A136,Data!$B$2:$F$4020,5,FALSE)) ->  | E136: =CONCATENATE(A136,D136) ->  | F136: =IF(ISNA(VLOOKUP(E136,Data!$A$2:$I$4020,7,FALSE)),"",VLOOKUP(E136,Data!$A$2:$I$4020,7,FALSE)) ->  | G136: =IF(ISNA(VLOOKUP(E136,Data!$A$2:$I$4020,9,FALSE)),"",VLOOKUP(E136,Data!$A$2:$I$4020,9,FALSE)) ->  | H136: =IF(ISNA(VLOOKUP(E136,Data!$A$2:$J$4020,10,FALSE)),"",VLOOKUP(E136,Data!$A$2:$J$4020,10,FALSE)) ->  | V136: =SUM(S136:U136) -> 0
B137: =IF(A137="","",VLOOKUP(A137,Data!$B$2:$D$4020,3,FALSE)) ->  | C137: =IF(A137="","",VLOOKUP(A137,Data!$B$2:$F$4020,5,FALSE)) ->  | E137: =CONCATENATE(A137,D137) ->  | F137: =IF(ISNA(VLOOKUP(E137,Data!$A$2:$I$4020,7,FALSE)),"",VLOOKUP(E137,Data!$A$2:$I$4020,7,FALSE)) ->  | G137: =IF(ISNA(VLOOKUP(E137,Data!$A$2:$I$4020,9,FALSE)),"",VLOOKUP(E137,Data!$A$2:$I$4020,9,FALSE)) ->  | H137: =IF(ISNA(VLOOKUP(E137,Data!$A$2:$J$4020,10,FALSE)),"",VLOOKUP(E137,Data!$A$2:$J$4020,10,FALSE)) ->  | V137: =SUM(S137:U137) -> 0
B138: =IF(A138="","",VLOOKUP(A138,Data!$B$2:$D$4020,3,FALSE)) ->  | C138: =IF(A138="","",VLOOKUP(A138,Data!$B$2:$F$4020,5,FALSE)) ->  | E138: =CONCATENATE(A138,D138) ->  | F138: =IF(ISNA(VLOOKUP(E138,Data!$A$2:$I$4020,7,FALSE)),"",VLOOKUP(E138,Data!$A$2:$I$4020,7,FALSE)) ->  | G138: =IF(ISNA(VLOOKUP(E138,Data!$A$2:$I$4020,9,FALSE)),"",VLOOKUP(E138,Data!$A$2:$I$4020,9,FALSE)) ->  | H138: =IF(ISNA(VLOOKUP(E138,Data!$A$2:$J$4020,10,FALSE)),"",VLOOKUP(E138,Data!$A$2:$J$4020,10,FALSE)) ->  | V138: =SUM(S138:U138) -> 0
B139: =IF(A139="","",VLOOKUP(A139,Data!$B$2:$D$4020,3,FALSE)) ->  | C139: =IF(A139="","",VLOOKUP(A139,Data!$B$2:$F$4020,5,FALSE)) ->  | E139: =CONCATENATE(A139,D139) ->  | F139: =IF(ISNA(VLOOKUP(E139,Data!$A$2:$I$4020,7,FALSE)),"",VLOOKUP(E139,Data!$A$2:$I$4020,7,FALSE)) ->  | G139: =IF(ISNA(VLOOKUP(E139,Data!$A$2:$I$4020,9,FALSE)),"",VLOOKUP(E139,Data!$A$2:$I$4020,9,FALSE)) ->  | H139: =IF(ISNA(VLOOKUP(E139,Data!$A$2:$J$4020,10,FALSE)),"",VLOOKUP(E139,Data!$A$2:$J$4020,10,FALSE)) ->  | V139: =SUM(S139:U139) -> 0
B140: =IF(A140="","",VLOOKUP(A140,Data!$B$2:$D$4020,3,FALSE)) ->  | C140: =IF(A140="","",VLOOKUP(A140,Data!$B$2:$F$4020,5,FALSE)) ->  | E140: =CONCATENATE(A140,D140) ->  | F140: =IF(ISNA(VLOOKUP(E140,Data!$A$2:$I$4020,7,FALSE)),"",VLOOKUP(E140,Data!$A$2:$I$4020,7,FALSE)) ->  | G140: =IF(ISNA(VLOOKUP(E140,Data!$A$2:$I$4020,9,FALSE)),"",VLOOKUP(E140,Data!$A$2:$I$4020,9,FALSE)) ->  | H140: =IF(ISNA(VLOOKUP(E140,Data!$A$2:$J$4020,10,FALSE)),"",VLOOKUP(E140,Data!$A$2:$J$4020,10,FALSE)) ->  | V140: =SUM(S140:U140) -> 0
B141: =IF(A141="","",VLOOKUP(A141,Data!$B$2:$D$4020,3,FALSE)) ->  | C141: =IF(A141="","",VLOOKUP(A141,Data!$B$2:$F$4020,5,FALSE)) ->  | E141: =CONCATENATE(A141,D141) ->  | F141: =IF(ISNA(VLOOKUP(E141,Data!$A$2:$I$4020,7,FALSE)),"",VLOOKUP(E141,Data!$A$2:$I$4020,7,FALSE)) ->  | G141: =IF(ISNA(VLOOKUP(E141,Data!$A$2:$I$4020,9,FALSE)),"",VLOOKUP(E141,Data!$A$2:$I$4020,9,FALSE)) ->  | H141: =IF(ISNA(VLOOKUP(E141,Data!$A$2:$J$4020,10,FALSE)),"",VLOOKUP(E141,Data!$A$2:$J$4020,10,FALSE)) ->  | V141: =SUM(S141:U141) -> 0
B142: =IF(A142="","",VLOOKUP(A142,Data!$B$2:$D$4020,3,FALSE)) ->  | C142: =IF(A142="","",VLOOKUP(A142,Data!$B$2:$F$4020,5,FALSE)) ->  | E142: =CONCATENATE(A142,D142) ->  | F142: =IF(ISNA(VLOOKUP(E142,Data!$A$2:$I$4020,7,FALSE)),"",VLOOKUP(E142,Data!$A$2:$I$4020,7,FALSE)) ->  | G142: =IF(ISNA(VLOOKUP(E142,Data!$A$2:$I$4020,9,FALSE)),"",VLOOKUP(E142,Data!$A$2:$I$4020,9,FALSE)) ->  | H142: =IF(ISNA(VLOOKUP(E142,Data!$A$2:$J$4020,10,FALSE)),"",VLOOKUP(E142,Data!$A$2:$J$4020,10,FALSE)) ->  | V142: =SUM(S142:U142) -> 0
B143: =IF(A143="","",VLOOKUP(A143,Data!$B$2:$D$4020,3,FALSE)) ->  | C143: =IF(A143="","",VLOOKUP(A143,Data!$B$2:$F$4020,5,FALSE)) ->  | E143: =CONCATENATE(A143,D143) ->  | F143: =IF(ISNA(VLOOKUP(E143,Data!$A$2:$I$4020,7,FALSE)),"",VLOOKUP(E143,Data!$A$2:$I$4020,7,FALSE)) ->  | G143: =IF(ISNA(VLOOKUP(E143,Data!$A$2:$I$4020,9,FALSE)),"",VLOOKUP(E143,Data!$A$2:$I$4020,9,FALSE)) ->  | H143: =IF(ISNA(VLOOKUP(E143,Data!$A$2:$J$4020,10,FALSE)),"",VLOOKUP(E143,Data!$A$2:$J$4020,10,FALSE)) ->  | V143: =SUM(S143:U143) -> 0
B144: =IF(A144="","",VLOOKUP(A144,Data!$B$2:$D$4020,3,FALSE)) ->  | C144: =IF(A144="","",VLOOKUP(A144,Data!$B$2:$F$4020,5,FALSE)) ->  | E144: =CONCATENATE(A144,D144) ->  | F144: =IF(ISNA(VLOOKUP(E144,Data!$A$2:$I$4020,7,FALSE)),"",VLOOKUP(E144,Data!$A$2:$I$4020,7,FALSE)) ->  | G144: =IF(ISNA(VLOOKUP(E144,Data!$A$2:$I$4020,9,FALSE)),"",VLOOKUP(E144,Data!$A$2:$I$4020,9,FALSE)) ->  | H144: =IF(ISNA(VLOOKUP(E144,Data!$A$2:$J$4020,10,FALSE)),"",VLOOKUP(E144,Data!$A$2:$J$4020,10,FALSE)) ->  | V144: =SUM(S144:U144) -> 0
B145: =IF(A145="","",VLOOKUP(A145,Data!$B$2:$D$4020,3,FALSE)) ->  | C145: =IF(A145="","",VLOOKUP(A145,Data!$B$2:$F$4020,5,FALSE)) ->  | E145: =CONCATENATE(A145,D145) ->  | F145: =IF(ISNA(VLOOKUP(E145,Data!$A$2:$I$4020,7,FALSE)),"",VLOOKUP(E145,Data!$A$2:$I$4020,7,FALSE)) ->  | G145: =IF(ISNA(VLOOKUP(E145,Data!$A$2:$I$4020,9,FALSE)),"",VLOOKUP(E145,Data!$A$2:$I$4020,9,FALSE)) ->  | H145: =IF(ISNA(VLOOKUP(E145,Data!$A$2:$J$4020,10,FALSE)),"",VLOOKUP(E145,Data!$A$2:$J$4020,10,FALSE)) ->  | V145: =SUM(S145:U145) -> 0
B146: =IF(A146="","",VLOOKUP(A146,Data!$B$2:$D$4020,3,FALSE)) ->  | C146: =IF(A146="","",VLOOKUP(A146,Data!$B$2:$F$4020,5,FALSE)) ->  | E146: =CONCATENATE(A146,D146) ->  | F146: =IF(ISNA(VLOOKUP(E146,Data!$A$2:$I$4020,7,FALSE)),"",VLOOKUP(E146,Data!$A$2:$I$4020,7,FALSE)) ->  | G146: =IF(ISNA(VLOOKUP(E146,Data!$A$2:$I$4020,9,FALSE)),"",VLOOKUP(E146,Data!$A$2:$I$4020,9,FALSE)) ->  | H146: =IF(ISNA(VLOOKUP(E146,Data!$A$2:$J$4020,10,FALSE)),"",VLOOKUP(E146,Data!$A$2:$J$4020,10,FALSE)) ->  | V146: =SUM(S146:U146) -> 0
B147: =IF(A147="","",VLOOKUP(A147,Data!$B$2:$D$4020,3,FALSE)) ->  | C147: =IF(A147="","",VLOOKUP(A147,Data!$B$2:$F$4020,5,FALSE)) ->  | E147: =CONCATENATE(A147,D147) ->  | F147: =IF(ISNA(VLOOKUP(E147,Data!$A$2:$I$4020,7,FALSE)),"",VLOOKUP(E147,Data!$A$2:$I$4020,7,FALSE)) ->  | G147: =IF(ISNA(VLOOKUP(E147,Data!$A$2:$I$4020,9,FALSE)),"",VLOOKUP(E147,Data!$A$2:$I$4020,9,FALSE)) ->  | H147: =IF(ISNA(VLOOKUP(E147,Data!$A$2:$J$4020,10,FALSE)),"",VLOOKUP(E147,Data!$A$2:$J$4020,10,FALSE)) ->  | V147: =SUM(S147:U147) -> 0
B148: =IF(A148="","",VLOOKUP(A148,Data!$B$2:$D$4020,3,FALSE)) ->  | C148: =IF(A148="","",VLOOKUP(A148,Data!$B$2:$F$4020,5,FALSE)) ->  | E148: =CONCATENATE(A148,D148) ->  | F148: =IF(ISNA(VLOOKUP(E148,Data!$A$2:$I$4020,7,FALSE)),"",VLOOKUP(E148,Data!$A$2:$I$4020,7,FALSE)) ->  | G148: =IF(ISNA(VLOOKUP(E148,Data!$A$2:$I$4020,9,FALSE)),"",VLOOKUP(E148,Data!$A$2:$I$4020,9,FALSE)) ->  | H148: =IF(ISNA(VLOOKUP(E148,Data!$A$2:$J$4020,10,FALSE)),"",VLOOKUP(E148,Data!$A$2:$J$4020,10,FALSE)) ->  | V148: =SUM(S148:U148) -> 0
B149: =IF(A149="","",VLOOKUP(A149,Data!$B$2:$D$4020,3,FALSE)) ->  | C149: =IF(A149="","",VLOOKUP(A149,Data!$B$2:$F$4020,5,FALSE)) ->  | E149: =CONCATENATE(A149,D149) ->  | F149: =IF(ISNA(VLOOKUP(E149,Data!$A$2:$I$4020,7,FALSE)),"",VLOOKUP(E149,Data!$A$2:$I$4020,7,FALSE)) ->  | G149: =IF(ISNA(VLOOKUP(E149,Data!$A$2:$I$4020,9,FALSE)),"",VLOOKUP(E149,Data!$A$2:$I$4020,9,FALSE)) ->  | H149: =IF(ISNA(VLOOKUP(E149,Data!$A$2:$J$4020,10,FALSE)),"",VLOOKUP(E149,Data!$A$2:$J$4020,10,FALSE)) ->  | V149: =SUM(S149:U149) -> 0
B150: =IF(A150="","",VLOOKUP(A150,Data!$B$2:$D$4020,3,FALSE)) ->  | C150: =IF(A150="","",VLOOKUP(A150,Data!$B$2:$F$4020,5,FALSE)) ->  | E150: =CONCATENATE(A150,D150) ->  | F150: =IF(ISNA(VLOOKUP(E150,Data!$A$2:$I$4020,7,FALSE)),"",VLOOKUP(E150,Data!$A$2:$I$4020,7,FALSE)) ->  | G150: =IF(ISNA(VLOOKUP(E150,Data!$A$2:$I$4020,9,FALSE)),"",VLOOKUP(E150,Data!$A$2:$I$4020,9,FALSE)) ->  | H150: =IF(ISNA(VLOOKUP(E150,Data!$A$2:$J$4020,10,FALSE)),"",VLOOKUP(E150,Data!$A$2:$J$4020,10,FALSE)) ->  | V150: =SUM(S150:U150) -> 0
B151: =IF(A151="","",VLOOKUP(A151,Data!$B$2:$D$4020,3,FALSE)) ->  | C151: =IF(A151="","",VLOOKUP(A151,Data!$B$2:$F$4020,5,FALSE)) ->  | E151: =CONCATENATE(A151,D151) ->  | F151: =IF(ISNA(VLOOKUP(E151,Data!$A$2:$I$4020,7,FALSE)),"",VLOOKUP(E151,Data!$A$2:$I$4020,7,FALSE)) ->  | G151: =IF(ISNA(VLOOKUP(E151,Data!$A$2:$I$4020,9,FALSE)),"",VLOOKUP(E151,Data!$A$2:$I$4020,9,FALSE)) ->  | H151: =IF(ISNA(VLOOKUP(E151,Data!$A$2:$J$4020,10,FALSE)),"",VLOOKUP(E151,Data!$A$2:$J$4020,10,FALSE)) ->  | V151: =SUM(S151:U151) -> 0
B152: =IF(A152="","",VLOOKUP(A152,Data!$B$2:$D$4020,3,FALSE)) ->  | C152: =IF(A152="","",VLOOKUP(A152,Data!$B$2:$F$4020,5,FALSE)) ->  | E152: =CONCATENATE(A152,D152) ->  | F152: =IF(ISNA(VLOOKUP(E152,Data!$A$2:$I$4020,7,FALSE)),"",VLOOKUP(E152,Data!$A$2:$I$4020,7,FALSE)) ->  | G152: =IF(ISNA(VLOOKUP(E152,Data!$A$2:$I$4020,9,FALSE)),"",VLOOKUP(E152,Data!$A$2:$I$4020,9,FALSE)) ->  | H152: =IF(ISNA(VLOOKUP(E152,Data!$A$2:$J$4020,10,FALSE)),"",VLOOKUP(E152,Data!$A$2:$J$4020,10,FALSE)) ->  | V152: =SUM(S152:U152) -> 0
B153: =IF(A153="","",VLOOKUP(A153,Data!$B$2:$D$4020,3,FALSE)) ->  | C153: =IF(A153="","",VLOOKUP(A153,Data!$B$2:$F$4020,5,FALSE)) ->  | E153: =CONCATENATE(A153,D153) ->  | F153: =IF(ISNA(VLOOKUP(E153,Data!$A$2:$I$4020,7,FALSE)),"",VLOOKUP(E153,Data!$A$2:$I$4020,7,FALSE)) ->  | G153: =IF(ISNA(VLOOKUP(E153,Data!$A$2:$I$4020,9,FALSE)),"",VLOOKUP(E153,Data!$A$2:$I$4020,9,FALSE)) ->  | H153: =IF(ISNA(VLOOKUP(E153,Data!$A$2:$J$4020,10,FALSE)),"",VLOOKUP(E153,Data!$A$2:$J$4020,10,FALSE)) ->  | V153: =SUM(S153:U153) -> 0
B154: =IF(A154="","",VLOOKUP(A154,Data!$B$2:$D$4020,3,FALSE)) ->  | C154: =IF(A154="","",VLOOKUP(A154,Data!$B$2:$F$4020,5,FALSE)) ->  | E154: =CONCATENATE(A154,D154) ->  | F154: =IF(ISNA(VLOOKUP(E154,Data!$A$2:$I$4020,7,FALSE)),"",VLOOKUP(E154,Data!$A$2:$I$4020,7,FALSE)) ->  | G154: =IF(ISNA(VLOOKUP(E154,Data!$A$2:$I$4020,9,FALSE)),"",VLOOKUP(E154,Data!$A$2:$I$4020,9,FALSE)) ->  | H154: =IF(ISNA(VLOOKUP(E154,Data!$A$2:$J$4020,10,FALSE)),"",VLOOKUP(E154,Data!$A$2:$J$4020,10,FALSE)) ->  | V154: =SUM(S154:U154) -> 0
B155: =IF(A155="","",VLOOKUP(A155,Data!$B$2:$D$4020,3,FALSE)) ->  | C155: =IF(A155="","",VLOOKUP(A155,Data!$B$2:$F$4020,5,FALSE)) ->  | E155: =CONCATENATE(A155,D155) ->  | F155: =IF(ISNA(VLOOKUP(E155,Data!$A$2:$I$4020,7,FALSE)),"",VLOOKUP(E155,Data!$A$2:$I$4020,7,FALSE)) ->  | G155: =IF(ISNA(VLOOKUP(E155,Data!$A$2:$I$4020,9,FALSE)),"",VLOOKUP(E155,Data!$A$2:$I$4020,9,FALSE)) ->  | H155: =IF(ISNA(VLOOKUP(E155,Data!$A$2:$J$4020,10,FALSE)),"",VLOOKUP(E155,Data!$A$2:$J$4020,10,FALSE)) ->  | V155: =SUM(S155:U155) -> 0
B156: =IF(A156="","",VLOOKUP(A156,Data!$B$2:$D$4020,3,FALSE)) ->  | C156: =IF(A156="","",VLOOKUP(A156,Data!$B$2:$F$4020,5,FALSE)) ->  | E156: =CONCATENATE(A156,D156) ->  | F156: =IF(ISNA(VLOOKUP(E156,Data!$A$2:$I$4020,7,FALSE)),"",VLOOKUP(E156,Data!$A$2:$I$4020,7,FALSE)) ->  | G156: =IF(ISNA(VLOOKUP(E156,Data!$A$2:$I$4020,9,FALSE)),"",VLOOKUP(E156,Data!$A$2:$I$4020,9,FALSE)) ->  | H156: =IF(ISNA(VLOOKUP(E156,Data!$A$2:$J$4020,10,FALSE)),"",VLOOKUP(E156,Data!$A$2:$J$4020,10,FALSE)) ->  | V156: =SUM(S156:U156) -> 0
B157: =IF(A157="","",VLOOKUP(A157,Data!$B$2:$D$4020,3,FALSE)) ->  | C157: =IF(A157="","",VLOOKUP(A157,Data!$B$2:$F$4020,5,FALSE)) ->  | E157: =CONCATENATE(A157,D157) ->  | F157: =IF(ISNA(VLOOKUP(E157,Data!$A$2:$I$4020,7,FALSE)),"",VLOOKUP(E157,Data!$A$2:$I$4020,7,FALSE)) ->  | G157: =IF(ISNA(VLOOKUP(E157,Data!$A$2:$I$4020,9,FALSE)),"",VLOOKUP(E157,Data!$A$2:$I$4020,9,FALSE)) ->  | H157: =IF(ISNA(VLOOKUP(E157,Data!$A$2:$J$4020,10,FALSE)),"",VLOOKUP(E157,Data!$A$2:$J$4020,10,FALSE)) ->  | V157: =SUM(S157:U157) -> 0
B158: =IF(A158="","",VLOOKUP(A158,Data!$B$2:$D$4020,3,FALSE)) ->  | C158: =IF(A158="","",VLOOKUP(A158,Data!$B$2:$F$4020,5,FALSE)) ->  | E158: =CONCATENATE(A158,D158) ->  | F158: =IF(ISNA(VLOOKUP(E158,Data!$A$2:$I$4020,7,FALSE)),"",VLOOKUP(E158,Data!$A$2:$I$4020,7,FALSE)) ->  | G158: =IF(ISNA(VLOOKUP(E158,Data!$A$2:$I$4020,9,FALSE)),"",VLOOKUP(E158,Data!$A$2:$I$4020,9,FALSE)) ->  | H158: =IF(ISNA(VLOOKUP(E158,Data!$A$2:$J$4020,10,FALSE)),"",VLOOKUP(E158,Data!$A$2:$J$4020,10,FALSE)) ->  | V158: =SUM(S158:U158) -> 0
B159: =IF(A159="","",VLOOKUP(A159,Data!$B$2:$D$4020,3,FALSE)) ->  | C159: =IF(A159="","",VLOOKUP(A159,Data!$B$2:$F$4020,5,FALSE)) ->  | E159: =CONCATENATE(A159,D159) ->  | F159: =IF(ISNA(VLOOKUP(E159,Data!$A$2:$I$4020,7,FALSE)),"",VLOOKUP(E159,Data!$A$2:$I$4020,7,FALSE)) ->  | G159: =IF(ISNA(VLOOKUP(E159,Data!$A$2:$I$4020,9,FALSE)),"",VLOOKUP(E159,Data!$A$2:$I$4020,9,FALSE)) ->  | H159: =IF(ISNA(VLOOKUP(E159,Data!$A$2:$J$4020,10,FALSE)),"",VLOOKUP(E159,Data!$A$2:$J$4020,10,FALSE)) ->  | V159: =SUM(S159:U159) -> 0
B160: =IF(A160="","",VLOOKUP(A160,Data!$B$2:$D$4020,3,FALSE)) ->  | C160: =IF(A160="","",VLOOKUP(A160,Data!$B$2:$F$4020,5,FALSE)) ->  | E160: =CONCATENATE(A160,D160) ->  | F160: =IF(ISNA(VLOOKUP(E160,Data!$A$2:$I$4020,7,FALSE)),"",VLOOKUP(E160,Data!$A$2:$I$4020,7,FALSE)) ->  | G160: =IF(ISNA(VLOOKUP(E160,Data!$A$2:$I$4020,9,FALSE)),"",VLOOKUP(E160,Data!$A$2:$I$4020,9,FALSE)) ->  | H160: =IF(ISNA(VLOOKUP(E160,Data!$A$2:$J$4020,10,FALSE)),"",VLOOKUP(E160,Data!$A$2:$J$4020,10,FALSE)) ->  | V160: =SUM(S160:U160) -> 0
B161: =IF(A161="","",VLOOKUP(A161,Data!$B$2:$D$4020,3,FALSE)) ->  | C161: =IF(A161="","",VLOOKUP(A161,Data!$B$2:$F$4020,5,FALSE)) ->  | E161: =CONCATENATE(A161,D161) ->  | F161: =IF(ISNA(VLOOKUP(E161,Data!$A$2:$I$4020,7,FALSE)),"",VLOOKUP(E161,Data!$A$2:$I$4020,7,FALSE)) ->  | G161: =IF(ISNA(VLOOKUP(E161,Data!$A$2:$I$4020,9,FALSE)),"",VLOOKUP(E161,Data!$A$2:$I$4020,9,FALSE)) ->  | H161: =IF(ISNA(VLOOKUP(E161,Data!$A$2:$J$4020,10,FALSE)),"",VLOOKUP(E161,Data!$A$2:$J$4020,10,FALSE)) ->  | V161: =SUM(S161:U161) -> 0
B162: =IF(A162="","",VLOOKUP(A162,Data!$B$2:$D$4020,3,FALSE)) ->  | C162: =IF(A162="","",VLOOKUP(A162,Data!$B$2:$F$4020,5,FALSE)) ->  | E162: =CONCATENATE(A162,D162) ->  | F162: =IF(ISNA(VLOOKUP(E162,Data!$A$2:$I$4020,7,FALSE)),"",VLOOKUP(E162,Data!$A$2:$I$4020,7,FALSE)) ->  | G162: =IF(ISNA(VLOOKUP(E162,Data!$A$2:$I$4020,9,FALSE)),"",VLOOKUP(E162,Data!$A$2:$I$4020,9,FALSE)) ->  | H162: =IF(ISNA(VLOOKUP(E162,Data!$A$2:$J$4020,10,FALSE)),"",VLOOKUP(E162,Data!$A$2:$J$4020,10,FALSE)) ->  | V162: =SUM(S162:U162) -> 0
B163: =IF(A163="","",VLOOKUP(A163,Data!$B$2:$D$4020,3,FALSE)) ->  | C163: =IF(A163="","",VLOOKUP(A163,Data!$B$2:$F$4020,5,FALSE)) ->  | E163: =CONCATENATE(A163,D163) ->  | F163: =IF(ISNA(VLOOKUP(E163,Data!$A$2:$I$4020,7,FALSE)),"",VLOOKUP(E163,Data!$A$2:$I$4020,7,FALSE)) ->  | G163: =IF(ISNA(VLOOKUP(E163,Data!$A$2:$I$4020,9,FALSE)),"",VLOOKUP(E163,Data!$A$2:$I$4020,9,FALSE)) ->  | H163: =IF(ISNA(VLOOKUP(E163,Data!$A$2:$J$4020,10,FALSE)),"",VLOOKUP(E163,Data!$A$2:$J$4020,10,FALSE)) ->  | V163: =SUM(S163:U163) -> 0
B164: =IF(A164="","",VLOOKUP(A164,Data!$B$2:$D$4020,3,FALSE)) ->  | C164: =IF(A164="","",VLOOKUP(A164,Data!$B$2:$F$4020,5,FALSE)) ->  | E164: =CONCATENATE(A164,D164) ->  | F164: =IF(ISNA(VLOOKUP(E164,Data!$A$2:$I$4020,7,FALSE)),"",VLOOKUP(E164,Data!$A$2:$I$4020,7,FALSE)) ->  | G164: =IF(ISNA(VLOOKUP(E164,Data!$A$2:$I$4020,9,FALSE)),"",VLOOKUP(E164,Data!$A$2:$I$4020,9,FALSE)) ->  | H164: =IF(ISNA(VLOOKUP(E164,Data!$A$2:$J$4020,10,FALSE)),"",VLOOKUP(E164,Data!$A$2:$J$4020,10,FALSE)) ->  | V164: =SUM(S164:U164) -> 0
B165: =IF(A165="","",VLOOKUP(A165,Data!$B$2:$D$4020,3,FALSE)) ->  | C165: =IF(A165="","",VLOOKUP(A165,Data!$B$2:$F$4020,5,FALSE)) ->  | E165: =CONCATENATE(A165,D165) ->  | F165: =IF(ISNA(VLOOKUP(E165,Data!$A$2:$I$4020,7,FALSE)),"",VLOOKUP(E165,Data!$A$2:$I$4020,7,FALSE)) ->  | G165: =IF(ISNA(VLOOKUP(E165,Data!$A$2:$I$4020,9,FALSE)),"",VLOOKUP(E165,Data!$A$2:$I$4020,9,FALSE)) ->  | H165: =IF(ISNA(VLOOKUP(E165,Data!$A$2:$J$4020,10,FALSE)),"",VLOOKUP(E165,Data!$A$2:$J$4020,10,FALSE)) ->  | V165: =SUM(S165:U165) -> 0
B166: =IF(A166="","",VLOOKUP(A166,Data!$B$2:$D$4020,3,FALSE)) ->  | C166: =IF(A166="","",VLOOKUP(A166,Data!$B$2:$F$4020,5,FALSE)) ->  | E166: =CONCATENATE(A166,D166) ->  | F166: =IF(ISNA(VLOOKUP(E166,Data!$A$2:$I$4020,7,FALSE)),"",VLOOKUP(E166,Data!$A$2:$I$4020,7,FALSE)) ->  | G166: =IF(ISNA(VLOOKUP(E166,Data!$A$2:$I$4020,9,FALSE)),"",VLOOKUP(E166,Data!$A$2:$I$4020,9,FALSE)) ->  | H166: =IF(ISNA(VLOOKUP(E166,Data!$A$2:$J$4020,10,FALSE)),"",VLOOKUP(E166,Data!$A$2:$J$4020,10,FALSE)) ->  | V166: =SUM(S166:U166) -> 0
B167: =IF(A167="","",VLOOKUP(A167,Data!$B$2:$D$4020,3,FALSE)) ->  | C167: =IF(A167="","",VLOOKUP(A167,Data!$B$2:$F$4020,5,FALSE)) ->  | E167: =CONCATENATE(A167,D167) ->  | F167: =IF(ISNA(VLOOKUP(E167,Data!$A$2:$I$4020,7,FALSE)),"",VLOOKUP(E167,Data!$A$2:$I$4020,7,FALSE)) ->  | G167: =IF(ISNA(VLOOKUP(E167,Data!$A$2:$I$4020,9,FALSE)),"",VLOOKUP(E167,Data!$A$2:$I$4020,9,FALSE)) ->  | H167: =IF(ISNA(VLOOKUP(E167,Data!$A$2:$J$4020,10,FALSE)),"",VLOOKUP(E167,Data!$A$2:$J$4020,10,FALSE)) ->  | V167: =SUM(S167:U167) -> 0
B168: =IF(A168="","",VLOOKUP(A168,Data!$B$2:$D$4020,3,FALSE)) ->  | C168: =IF(A168="","",VLOOKUP(A168,Data!$B$2:$F$4020,5,FALSE)) ->  | E168: =CONCATENATE(A168,D168) ->  | F168: =IF(ISNA(VLOOKUP(E168,Data!$A$2:$I$4020,7,FALSE)),"",VLOOKUP(E168,Data!$A$2:$I$4020,7,FALSE)) ->  | G168: =IF(ISNA(VLOOKUP(E168,Data!$A$2:$I$4020,9,FALSE)),"",VLOOKUP(E168,Data!$A$2:$I$4020,9,FALSE)) ->  | H168: =IF(ISNA(VLOOKUP(E168,Data!$A$2:$J$4020,10,FALSE)),"",VLOOKUP(E168,Data!$A$2:$J$4020,10,FALSE)) ->  | V168: =SUM(S168:U168) -> 0
B169: =IF(A169="","",VLOOKUP(A169,Data!$B$2:$D$4020,3,FALSE)) ->  | C169: =IF(A169="","",VLOOKUP(A169,Data!$B$2:$F$4020,5,FALSE)) ->  | E169: =CONCATENATE(A169,D169) ->  | F169: =IF(ISNA(VLOOKUP(E169,Data!$A$2:$I$4020,7,FALSE)),"",VLOOKUP(E169,Data!$A$2:$I$4020,7,FALSE)) ->  | G169: =IF(ISNA(VLOOKUP(E169,Data!$A$2:$I$4020,9,FALSE)),"",VLOOKUP(E169,Data!$A$2:$I$4020,9,FALSE)) ->  | H169: =IF(ISNA(VLOOKUP(E169,Data!$A$2:$J$4020,10,FALSE)),"",VLOOKUP(E169,Data!$A$2:$J$4020,10,FALSE)) ->  | V169: =SUM(S169:U169) -> 0
B170: =IF(A170="","",VLOOKUP(A170,Data!$B$2:$D$4020,3,FALSE)) ->  | C170: =IF(A170="","",VLOOKUP(A170,Data!$B$2:$F$4020,5,FALSE)) ->  | E170: =CONCATENATE(A170,D170) ->  | F170: =IF(ISNA(VLOOKUP(E170,Data!$A$2:$I$4020,7,FALSE)),"",VLOOKUP(E170,Data!$A$2:$I$4020,7,FALSE)) ->  | G170: =IF(ISNA(VLOOKUP(E170,Data!$A$2:$I$4020,9,FALSE)),"",VLOOKUP(E170,Data!$A$2:$I$4020,9,FALSE)) ->  | H170: =IF(ISNA(VLOOKUP(E170,Data!$A$2:$J$4020,10,FALSE)),"",VLOOKUP(E170,Data!$A$2:$J$4020,10,FALSE)) ->  | V170: =SUM(S170:U170) -> 0
B171: =IF(A171="","",VLOOKUP(A171,Data!$B$2:$D$4020,3,FALSE)) ->  | C171: =IF(A171="","",VLOOKUP(A171,Data!$B$2:$F$4020,5,FALSE)) ->  | E171: =CONCATENATE(A171,D171) ->  | F171: =IF(ISNA(VLOOKUP(E171,Data!$A$2:$I$4020,7,FALSE)),"",VLOOKUP(E171,Data!$A$2:$I$4020,7,FALSE)) ->  | G171: =IF(ISNA(VLOOKUP(E171,Data!$A$2:$I$4020,9,FALSE)),"",VLOOKUP(E171,Data!$A$2:$I$4020,9,FALSE)) ->  | H171: =IF(ISNA(VLOOKUP(E171,Data!$A$2:$J$4020,10,FALSE)),"",VLOOKUP(E171,Data!$A$2:$J$4020,10,FALSE)) ->  | V171: =SUM(S171:U171) -> 0
B172: =IF(A172="","",VLOOKUP(A172,Data!$B$2:$D$4020,3,FALSE)) ->  | C172: =IF(A172="","",VLOOKUP(A172,Data!$B$2:$F$4020,5,FALSE)) ->  | E172: =CONCATENATE(A172,D172) ->  | F172: =IF(ISNA(VLOOKUP(E172,Data!$A$2:$I$4020,7,FALSE)),"",VLOOKUP(E172,Data!$A$2:$I$4020,7,FALSE)) ->  | G172: =IF(ISNA(VLOOKUP(E172,Data!$A$2:$I$4020,9,FALSE)),"",VLOOKUP(E172,Data!$A$2:$I$4020,9,FALSE)) ->  | H172: =IF(ISNA(VLOOKUP(E172,Data!$A$2:$J$4020,10,FALSE)),"",VLOOKUP(E172,Data!$A$2:$J$4020,10,FALSE)) ->  | V172: =SUM(S172:U172) -> 0
B173: =IF(A173="","",VLOOKUP(A173,Data!$B$2:$D$4020,3,FALSE)) ->  | C173: =IF(A173="","",VLOOKUP(A173,Data!$B$2:$F$4020,5,FALSE)) ->  | E173: =CONCATENATE(A173,D173) ->  | F173: =IF(ISNA(VLOOKUP(E173,Data!$A$2:$I$4020,7,FALSE)),"",VLOOKUP(E173,Data!$A$2:$I$4020,7,FALSE)) ->  | G173: =IF(ISNA(VLOOKUP(E173,Data!$A$2:$I$4020,9,FALSE)),"",VLOOKUP(E173,Data!$A$2:$I$4020,9,FALSE)) ->  | H173: =IF(ISNA(VLOOKUP(E173,Data!$A$2:$J$4020,10,FALSE)),"",VLOOKUP(E173,Data!$A$2:$J$4020,10,FALSE)) ->  | V173: =SUM(S173:U173) -> 0
B174: =IF(A174="","",VLOOKUP(A174,Data!$B$2:$D$4020,3,FALSE)) ->  | C174: =IF(A174="","",VLOOKUP(A174,Data!$B$2:$F$4020,5,FALSE)) ->  | E174: =CONCATENATE(A174,D174) ->  | F174: =IF(ISNA(VLOOKUP(E174,Data!$A$2:$I$4020,7,FALSE)),"",VLOOKUP(E174,Data!$A$2:$I$4020,7,FALSE)) ->  | G174: =IF(ISNA(VLOOKUP(E174,Data!$A$2:$I$4020,9,FALSE)),"",VLOOKUP(E174,Data!$A$2:$I$4020,9,FALSE)) ->  | H174: =IF(ISNA(VLOOKUP(E174,Data!$A$2:$J$4020,10,FALSE)),"",VLOOKUP(E174,Data!$A$2:$J$4020,10,FALSE)) ->  | V174: =SUM(S174:U174) -> 0
B175: =IF(A175="","",VLOOKUP(A175,Data!$B$2:$D$4020,3,FALSE)) ->  | C175: =IF(A175="","",VLOOKUP(A175,Data!$B$2:$F$4020,5,FALSE)) ->  | E175: =CONCATENATE(A175,D175) ->  | F175: =IF(ISNA(VLOOKUP(E175,Data!$A$2:$I$4020,7,FALSE)),"",VLOOKUP(E175,Data!$A$2:$I$4020,7,FALSE)) ->  | G175: =IF(ISNA(VLOOKUP(E175,Data!$A$2:$I$4020,9,FALSE)),"",VLOOKUP(E175,Data!$A$2:$I$4020,9,FALSE)) ->  | H175: =IF(ISNA(VLOOKUP(E175,Data!$A$2:$J$4020,10,FALSE)),"",VLOOKUP(E175,Data!$A$2:$J$4020,10,FALSE)) ->  | V175: =SUM(S175:U175) -> 0
B176: =IF(A176="","",VLOOKUP(A176,Data!$B$2:$D$4020,3,FALSE)) ->  | C176: =IF(A176="","",VLOOKUP(A176,Data!$B$2:$F$4020,5,FALSE)) ->  | E176: =CONCATENATE(A176,D176) ->  | F176: =IF(ISNA(VLOOKUP(E176,Data!$A$2:$I$4020,7,FALSE)),"",VLOOKUP(E176,Data!$A$2:$I$4020,7,FALSE)) ->  | G176: =IF(ISNA(VLOOKUP(E176,Data!$A$2:$I$4020,9,FALSE)),"",VLOOKUP(E176,Data!$A$2:$I$4020,9,FALSE)) ->  | H176: =IF(ISNA(VLOOKUP(E176,Data!$A$2:$J$4020,10,FALSE)),"",VLOOKUP(E176,Data!$A$2:$J$4020,10,FALSE)) ->  | V176: =SUM(S176:U176) -> 0
B177: =IF(A177="","",VLOOKUP(A177,Data!$B$2:$D$4020,3,FALSE)) ->  | C177: =IF(A177="","",VLOOKUP(A177,Data!$B$2:$F$4020,5,FALSE)) ->  | E177: =CONCATENATE(A177,D177) ->  | F177: =IF(ISNA(VLOOKUP(E177,Data!$A$2:$I$4020,7,FALSE)),"",VLOOKUP(E177,Data!$A$2:$I$4020,7,FALSE)) ->  | G177: =IF(ISNA(VLOOKUP(E177,Data!$A$2:$I$4020,9,FALSE)),"",VLOOKUP(E177,Data!$A$2:$I$4020,9,FALSE)) ->  | H177: =IF(ISNA(VLOOKUP(E177,Data!$A$2:$J$4020,10,FALSE)),"",VLOOKUP(E177,Data!$A$2:$J$4020,10,FALSE)) ->  | V177: =SUM(S177:U177) -> 0
B178: =IF(A178="","",VLOOKUP(A178,Data!$B$2:$D$4020,3,FALSE)) ->  | C178: =IF(A178="","",VLOOKUP(A178,Data!$B$2:$F$4020,5,FALSE)) ->  | E178: =CONCATENATE(A178,D178) ->  | F178: =IF(ISNA(VLOOKUP(E178,Data!$A$2:$I$4020,7,FALSE)),"",VLOOKUP(E178,Data!$A$2:$I$4020,7,FALSE)) ->  | G178: =IF(ISNA(VLOOKUP(E178,Data!$A$2:$I$4020,9,FALSE)),"",VLOOKUP(E178,Data!$A$2:$I$4020,9,FALSE)) ->  | H178: =IF(ISNA(VLOOKUP(E178,Data!$A$2:$J$4020,10,FALSE)),"",VLOOKUP(E178,Data!$A$2:$J$4020,10,FALSE)) ->  | V178: =SUM(S178:U178) -> 0
B179: =IF(A179="","",VLOOKUP(A179,Data!$B$2:$D$4020,3,FALSE)) ->  | C179: =IF(A179="","",VLOOKUP(A179,Data!$B$2:$F$4020,5,FALSE)) ->  | E179: =CONCATENATE(A179,D179) ->  | F179: =IF(ISNA(VLOOKUP(E179,Data!$A$2:$I$4020,7,FALSE)),"",VLOOKUP(E179,Data!$A$2:$I$4020,7,FALSE)) ->  | G179: =IF(ISNA(VLOOKUP(E179,Data!$A$2:$I$4020,9,FALSE)),"",VLOOKUP(E179,Data!$A$2:$I$4020,9,FALSE)) ->  | H179: =IF(ISNA(VLOOKUP(E179,Data!$A$2:$J$4020,10,FALSE)),"",VLOOKUP(E179,Data!$A$2:$J$4020,10,FALSE)) ->  | V179: =SUM(S179:U179) -> 0
B180: =IF(A180="","",VLOOKUP(A180,Data!$B$2:$D$4020,3,FALSE)) ->  | C180: =IF(A180="","",VLOOKUP(A180,Data!$B$2:$F$4020,5,FALSE)) ->  | E180: =CONCATENATE(A180,D180) ->  | F180: =IF(ISNA(VLOOKUP(E180,Data!$A$2:$I$4020,7,FALSE)),"",VLOOKUP(E180,Data!$A$2:$I$4020,7,FALSE)) ->  | G180: =IF(ISNA(VLOOKUP(E180,Data!$A$2:$I$4020,9,FALSE)),"",VLOOKUP(E180,Data!$A$2:$I$4020,9,FALSE)) ->  | H180: =IF(ISNA(VLOOKUP(E180,Data!$A$2:$J$4020,10,FALSE)),"",VLOOKUP(E180,Data!$A$2:$J$4020,10,FALSE)) ->  | V180: =SUM(S180:U180) -> 0
B181: =IF(A181="","",VLOOKUP(A181,Data!$B$2:$D$4020,3,FALSE)) ->  | C181: =IF(A181="","",VLOOKUP(A181,Data!$B$2:$F$4020,5,FALSE)) ->  | E181: =CONCATENATE(A181,D181) ->  | F181: =IF(ISNA(VLOOKUP(E181,Data!$A$2:$I$4020,7,FALSE)),"",VLOOKUP(E181,Data!$A$2:$I$4020,7,FALSE)) ->  | G181: =IF(ISNA(VLOOKUP(E181,Data!$A$2:$I$4020,9,FALSE)),"",VLOOKUP(E181,Data!$A$2:$I$4020,9,FALSE)) ->  | H181: =IF(ISNA(VLOOKUP(E181,Data!$A$2:$J$4020,10,FALSE)),"",VLOOKUP(E181,Data!$A$2:$J$4020,10,FALSE)) ->  | V181: =SUM(S181:U181) -> 0
B182: =IF(A182="","",VLOOKUP(A182,Data!$B$2:$D$4020,3,FALSE)) ->  | C182: =IF(A182="","",VLOOKUP(A182,Data!$B$2:$F$4020,5,FALSE)) ->  | E182: =CONCATENATE(A182,D182) ->  | F182: =IF(ISNA(VLOOKUP(E182,Data!$A$2:$I$4020,7,FALSE)),"",VLOOKUP(E182,Data!$A$2:$I$4020,7,FALSE)) ->  | G182: =IF(ISNA(VLOOKUP(E182,Data!$A$2:$I$4020,9,FALSE)),"",VLOOKUP(E182,Data!$A$2:$I$4020,9,FALSE)) ->  | H182: =IF(ISNA(VLOOKUP(E182,Data!$A$2:$J$4020,10,FALSE)),"",VLOOKUP(E182,Data!$A$2:$J$4020,10,FALSE)) ->  | V182: =SUM(S182:U182) -> 0
B183: =IF(A183="","",VLOOKUP(A183,Data!$B$2:$D$4020,3,FALSE)) ->  | C183: =IF(A183="","",VLOOKUP(A183,Data!$B$2:$F$4020,5,FALSE)) ->  | E183: =CONCATENATE(A183,D183) ->  | F183: =IF(ISNA(VLOOKUP(E183,Data!$A$2:$I$4020,7,FALSE)),"",VLOOKUP(E183,Data!$A$2:$I$4020,7,FALSE)) ->  | G183: =IF(ISNA(VLOOKUP(E183,Data!$A$2:$I$4020,9,FALSE)),"",VLOOKUP(E183,Data!$A$2:$I$4020,9,FALSE)) ->  | H183: =IF(ISNA(VLOOKUP(E183,Data!$A$2:$J$4020,10,FALSE)),"",VLOOKUP(E183,Data!$A$2:$J$4020,10,FALSE)) ->  | V183: =SUM(S183:U183) -> 0
B184: =IF(A184="","",VLOOKUP(A184,Data!$B$2:$D$4020,3,FALSE)) ->  | C184: =IF(A184="","",VLOOKUP(A184,Data!$B$2:$F$4020,5,FALSE)) ->  | E184: =CONCATENATE(A184,D184) ->  | F184: =IF(ISNA(VLOOKUP(E184,Data!$A$2:$I$4020,7,FALSE)),"",VLOOKUP(E184,Data!$A$2:$I$4020,7,FALSE)) ->  | G184: =IF(ISNA(VLOOKUP(E184,Data!$A$2:$I$4020,9,FALSE)),"",VLOOKUP(E184,Data!$A$2:$I$4020,9,FALSE)) ->  | H184: =IF(ISNA(VLOOKUP(E184,Data!$A$2:$J$4020,10,FALSE)),"",VLOOKUP(E184,Data!$A$2:$J$4020,10,FALSE)) ->  | V184: =SUM(S184:U184) -> 0
B185: =IF(A185="","",VLOOKUP(A185,Data!$B$2:$D$4020,3,FALSE)) ->  | C185: =IF(A185="","",VLOOKUP(A185,Data!$B$2:$F$4020,5,FALSE)) ->  | E185: =CONCATENATE(A185,D185) ->  | F185: =IF(ISNA(VLOOKUP(E185,Data!$A$2:$I$4020,7,FALSE)),"",VLOOKUP(E185,Data!$A$2:$I$4020,7,FALSE)) ->  | G185: =IF(ISNA(VLOOKUP(E185,Data!$A$2:$I$4020,9,FALSE)),"",VLOOKUP(E185,Data!$A$2:$I$4020,9,FALSE)) ->  | H185: =IF(ISNA(VLOOKUP(E185,Data!$A$2:$J$4020,10,FALSE)),"",VLOOKUP(E185,Data!$A$2:$J$4020,10,FALSE)) ->  | V185: =SUM(S185:U185) -> 0
B186: =IF(A186="","",VLOOKUP(A186,Data!$B$2:$D$4020,3,FALSE)) ->  | C186: =IF(A186="","",VLOOKUP(A186,Data!$B$2:$F$4020,5,FALSE)) ->  | E186: =CONCATENATE(A186,D186) ->  | F186: =IF(ISNA(VLOOKUP(E186,Data!$A$2:$I$4020,7,FALSE)),"",VLOOKUP(E186,Data!$A$2:$I$4020,7,FALSE)) ->  | G186: =IF(ISNA(VLOOKUP(E186,Data!$A$2:$I$4020,9,FALSE)),"",VLOOKUP(E186,Data!$A$2:$I$4020,9,FALSE)) ->  | H186: =IF(ISNA(VLOOKUP(E186,Data!$A$2:$J$4020,10,FALSE)),"",VLOOKUP(E186,Data!$A$2:$J$4020,10,FALSE)) ->  | V186: =SUM(S186:U186) -> 0
B187: =IF(A187="","",VLOOKUP(A187,Data!$B$2:$D$4020,3,FALSE)) ->  | C187: =IF(A187="","",VLOOKUP(A187,Data!$B$2:$F$4020,5,FALSE)) ->  | E187: =CONCATENATE(A187,D187) ->  | F187: =IF(ISNA(VLOOKUP(E187,Data!$A$2:$I$4020,7,FALSE)),"",VLOOKUP(E187,Data!$A$2:$I$4020,7,FALSE)) ->  | G187: =IF(ISNA(VLOOKUP(E187,Data!$A$2:$I$4020,9,FALSE)),"",VLOOKUP(E187,Data!$A$2:$I$4020,9,FALSE)) ->  | H187: =IF(ISNA(VLOOKUP(E187,Data!$A$2:$J$4020,10,FALSE)),"",VLOOKUP(E187,Data!$A$2:$J$4020,10,FALSE)) ->  | V187: =SUM(S187:U187) -> 0
B188: =IF(A188="","",VLOOKUP(A188,Data!$B$2:$D$4020,3,FALSE)) ->  | C188: =IF(A188="","",VLOOKUP(A188,Data!$B$2:$F$4020,5,FALSE)) ->  | E188: =CONCATENATE(A188,D188) ->  | F188: =IF(ISNA(VLOOKUP(E188,Data!$A$2:$I$4020,7,FALSE)),"",VLOOKUP(E188,Data!$A$2:$I$4020,7,FALSE)) ->  | G188: =IF(ISNA(VLOOKUP(E188,Data!$A$2:$I$4020,9,FALSE)),"",VLOOKUP(E188,Data!$A$2:$I$4020,9,FALSE)) ->  | H188: =IF(ISNA(VLOOKUP(E188,Data!$A$2:$J$4020,10,FALSE)),"",VLOOKUP(E188,Data!$A$2:$J$4020,10,FALSE)) ->  | V188: =SUM(S188:U188) -> 0
B189: =IF(A189="","",VLOOKUP(A189,Data!$B$2:$D$4020,3,FALSE)) ->  | C189: =IF(A189="","",VLOOKUP(A189,Data!$B$2:$F$4020,5,FALSE)) ->  | E189: =CONCATENATE(A189,D189) ->  | F189: =IF(ISNA(VLOOKUP(E189,Data!$A$2:$I$4020,7,FALSE)),"",VLOOKUP(E189,Data!$A$2:$I$4020,7,FALSE)) ->  | G189: =IF(ISNA(VLOOKUP(E189,Data!$A$2:$I$4020,9,FALSE)),"",VLOOKUP(E189,Data!$A$2:$I$4020,9,FALSE)) ->  | H189: =IF(ISNA(VLOOKUP(E189,Data!$A$2:$J$4020,10,FALSE)),"",VLOOKUP(E189,Data!$A$2:$J$4020,10,FALSE)) ->  | V189: =SUM(S189:U189) -> 0
B190: =IF(A190="","",VLOOKUP(A190,Data!$B$2:$D$4020,3,FALSE)) ->  | C190: =IF(A190="","",VLOOKUP(A190,Data!$B$2:$F$4020,5,FALSE)) ->  | E190: =CONCATENATE(A190,D190) ->  | F190: =IF(ISNA(VLOOKUP(E190,Data!$A$2:$I$4020,7,FALSE)),"",VLOOKUP(E190,Data!$A$2:$I$4020,7,FALSE)) ->  | G190: =IF(ISNA(VLOOKUP(E190,Data!$A$2:$I$4020,9,FALSE)),"",VLOOKUP(E190,Data!$A$2:$I$4020,9,FALSE)) ->  | H190: =IF(ISNA(VLOOKUP(E190,Data!$A$2:$J$4020,10,FALSE)),"",VLOOKUP(E190,Data!$A$2:$J$4020,10,FALSE)) ->  | V190: =SUM(S190:U190) -> 0
B191: =IF(A191="","",VLOOKUP(A191,Data!$B$2:$D$4020,3,FALSE)) ->  | C191: =IF(A191="","",VLOOKUP(A191,Data!$B$2:$F$4020,5,FALSE)) ->  | E191: =CONCATENATE(A191,D191) ->  | F191: =IF(ISNA(VLOOKUP(E191,Data!$A$2:$I$4020,7,FALSE)),"",VLOOKUP(E191,Data!$A$2:$I$4020,7,FALSE)) ->  | G191: =IF(ISNA(VLOOKUP(E191,Data!$A$2:$I$4020,9,FALSE)),"",VLOOKUP(E191,Data!$A$2:$I$4020,9,FALSE)) ->  | H191: =IF(ISNA(VLOOKUP(E191,Data!$A$2:$J$4020,10,FALSE)),"",VLOOKUP(E191,Data!$A$2:$J$4020,10,FALSE)) ->  | V191: =SUM(S191:U191) -> 0
B192: =IF(A192="","",VLOOKUP(A192,Data!$B$2:$D$4020,3,FALSE)) ->  | C192: =IF(A192="","",VLOOKUP(A192,Data!$B$2:$F$4020,5,FALSE)) ->  | E192: =CONCATENATE(A192,D192) ->  | F192: =IF(ISNA(VLOOKUP(E192,Data!$A$2:$I$4020,7,FALSE)),"",VLOOKUP(E192,Data!$A$2:$I$4020,7,FALSE)) ->  | G192: =IF(ISNA(VLOOKUP(E192,Data!$A$2:$I$4020,9,FALSE)),"",VLOOKUP(E192,Data!$A$2:$I$4020,9,FALSE)) ->  | H192: =IF(ISNA(VLOOKUP(E192,Data!$A$2:$J$4020,10,FALSE)),"",VLOOKUP(E192,Data!$A$2:$J$4020,10,FALSE)) ->  | V192: =SUM(S192:U192) -> 0
B193: =IF(A193="","",VLOOKUP(A193,Data!$B$2:$D$4020,3,FALSE)) ->  | C193: =IF(A193="","",VLOOKUP(A193,Data!$B$2:$F$4020,5,FALSE)) ->  | E193: =CONCATENATE(A193,D193) ->  | F193: =IF(ISNA(VLOOKUP(E193,Data!$A$2:$I$4020,7,FALSE)),"",VLOOKUP(E193,Data!$A$2:$I$4020,7,FALSE)) ->  | G193: =IF(ISNA(VLOOKUP(E193,Data!$A$2:$I$4020,9,FALSE)),"",VLOOKUP(E193,Data!$A$2:$I$4020,9,FALSE)) ->  | H193: =IF(ISNA(VLOOKUP(E193,Data!$A$2:$J$4020,10,FALSE)),"",VLOOKUP(E193,Data!$A$2:$J$4020,10,FALSE)) ->  | V193: =SUM(S193:U193) -> 0
B194: =IF(A194="","",VLOOKUP(A194,Data!$B$2:$D$4020,3,FALSE)) ->  | C194: =IF(A194="","",VLOOKUP(A194,Data!$B$2:$F$4020,5,FALSE)) ->  | E194: =CONCATENATE(A194,D194) ->  | F194: =IF(ISNA(VLOOKUP(E194,Data!$A$2:$I$4020,7,FALSE)),"",VLOOKUP(E194,Data!$A$2:$I$4020,7,FALSE)) ->  | G194: =IF(ISNA(VLOOKUP(E194,Data!$A$2:$I$4020,9,FALSE)),"",VLOOKUP(E194,Data!$A$2:$I$4020,9,FALSE)) ->  | H194: =IF(ISNA(VLOOKUP(E194,Data!$A$2:$J$4020,10,FALSE)),"",VLOOKUP(E194,Data!$A$2:$J$4020,10,FALSE)) ->  | V194: =SUM(S194:U194) -> 0
B195: =IF(A195="","",VLOOKUP(A195,Data!$B$2:$D$4020,3,FALSE)) ->  | C195: =IF(A195="","",VLOOKUP(A195,Data!$B$2:$F$4020,5,FALSE)) ->  | E195: =CONCATENATE(A195,D195) ->  | F195: =IF(ISNA(VLOOKUP(E195,Data!$A$2:$I$4020,7,FALSE)),"",VLOOKUP(E195,Data!$A$2:$I$4020,7,FALSE)) ->  | G195: =IF(ISNA(VLOOKUP(E195,Data!$A$2:$I$4020,9,FALSE)),"",VLOOKUP(E195,Data!$A$2:$I$4020,9,FALSE)) ->  | H195: =IF(ISNA(VLOOKUP(E195,Data!$A$2:$J$4020,10,FALSE)),"",VLOOKUP(E195,Data!$A$2:$J$4020,10,FALSE)) ->  | V195: =SUM(S195:U195) -> 0
B196: =IF(A196="","",VLOOKUP(A196,Data!$B$2:$D$4020,3,FALSE)) ->  | C196: =IF(A196="","",VLOOKUP(A196,Data!$B$2:$F$4020,5,FALSE)) ->  | E196: =CONCATENATE(A196,D196) ->  | F196: =IF(ISNA(VLOOKUP(E196,Data!$A$2:$I$4020,7,FALSE)),"",VLOOKUP(E196,Data!$A$2:$I$4020,7,FALSE)) ->  | G196: =IF(ISNA(VLOOKUP(E196,Data!$A$2:$I$4020,9,FALSE)),"",VLOOKUP(E196,Data!$A$2:$I$4020,9,FALSE)) ->  | H196: =IF(ISNA(VLOOKUP(E196,Data!$A$2:$J$4020,10,FALSE)),"",VLOOKUP(E196,Data!$A$2:$J$4020,10,FALSE)) ->  | V196: =SUM(S196:U196) -> 0
B197: =IF(A197="","",VLOOKUP(A197,Data!$B$2:$D$4020,3,FALSE)) ->  | C197: =IF(A197="","",VLOOKUP(A197,Data!$B$2:$F$4020,5,FALSE)) ->  | E197: =CONCATENATE(A197,D197) ->  | F197: =IF(ISNA(VLOOKUP(E197,Data!$A$2:$I$4020,7,FALSE)),"",VLOOKUP(E197,Data!$A$2:$I$4020,7,FALSE)) ->  | G197: =IF(ISNA(VLOOKUP(E197,Data!$A$2:$I$4020,9,FALSE)),"",VLOOKUP(E197,Data!$A$2:$I$4020,9,FALSE)) ->  | H197: =IF(ISNA(VLOOKUP(E197,Data!$A$2:$J$4020,10,FALSE)),"",VLOOKUP(E197,Data!$A$2:$J$4020,10,FALSE)) ->  | V197: =SUM(S197:U197) -> 0
B198: =IF(A198="","",VLOOKUP(A198,Data!$B$2:$D$4020,3,FALSE)) ->  | C198: =IF(A198="","",VLOOKUP(A198,Data!$B$2:$F$4020,5,FALSE)) ->  | E198: =CONCATENATE(A198,D198) ->  | F198: =IF(ISNA(VLOOKUP(E198,Data!$A$2:$I$4020,7,FALSE)),"",VLOOKUP(E198,Data!$A$2:$I$4020,7,FALSE)) ->  | G198: =IF(ISNA(VLOOKUP(E198,Data!$A$2:$I$4020,9,FALSE)),"",VLOOKUP(E198,Data!$A$2:$I$4020,9,FALSE)) ->  | H198: =IF(ISNA(VLOOKUP(E198,Data!$A$2:$J$4020,10,FALSE)),"",VLOOKUP(E198,Data!$A$2:$J$4020,10,FALSE)) ->  | V198: =SUM(S198:U198) -> 0
B199: =IF(A199="","",VLOOKUP(A199,Data!$B$2:$D$4020,3,FALSE)) ->  | C199: =IF(A199="","",VLOOKUP(A199,Data!$B$2:$F$4020,5,FALSE)) ->  | E199: =CONCATENATE(A199,D199) ->  | F199: =IF(ISNA(VLOOKUP(E199,Data!$A$2:$I$4020,7,FALSE)),"",VLOOKUP(E199,Data!$A$2:$I$4020,7,FALSE)) ->  | G199: =IF(ISNA(VLOOKUP(E199,Data!$A$2:$I$4020,9,FALSE)),"",VLOOKUP(E199,Data!$A$2:$I$4020,9,FALSE)) ->  | H199: =IF(ISNA(VLOOKUP(E199,Data!$A$2:$J$4020,10,FALSE)),"",VLOOKUP(E199,Data!$A$2:$J$4020,10,FALSE)) ->  | V199: =SUM(S199:U199) -> 0
B200: =IF(A200="","",VLOOKUP(A200,Data!$B$2:$D$4020,3,FALSE)) ->  | C200: =IF(A200="","",VLOOKUP(A200,Data!$B$2:$F$4020,5,FALSE)) ->  | E200: =CONCATENATE(A200,D200) ->  | F200: =IF(ISNA(VLOOKUP(E200,Data!$A$2:$I$4020,7,FALSE)),"",VLOOKUP(E200,Data!$A$2:$I$4020,7,FALSE)) ->  | G200: =IF(ISNA(VLOOKUP(E200,Data!$A$2:$I$4020,9,FALSE)),"",VLOOKUP(E200,Data!$A$2:$I$4020,9,FALSE)) ->  | H200: =IF(ISNA(VLOOKUP(E200,Data!$A$2:$J$4020,10,FALSE)),"",VLOOKUP(E200,Data!$A$2:$J$4020,10,FALSE)) ->  | V200: =SUM(S200:U200) -> 0
B201: =IF(A201="","",VLOOKUP(A201,Data!$B$2:$D$4020,3,FALSE)) ->  | C201: =IF(A201="","",VLOOKUP(A201,Data!$B$2:$F$4020,5,FALSE)) ->  | E201: =CONCATENATE(A201,D201) ->  | F201: =IF(ISNA(VLOOKUP(E201,Data!$A$2:$I$4020,7,FALSE)),"",VLOOKUP(E201,Data!$A$2:$I$4020,7,FALSE)) ->  | G201: =IF(ISNA(VLOOKUP(E201,Data!$A$2:$I$4020,9,FALSE)),"",VLOOKUP(E201,Data!$A$2:$I$4020,9,FALSE)) ->  | H201: =IF(ISNA(VLOOKUP(E201,Data!$A$2:$J$4020,10,FALSE)),"",VLOOKUP(E201,Data!$A$2:$J$4020,10,FALSE)) ->  | V201: =SUM(S201:U201) -> 0
B202: =IF(A202="","",VLOOKUP(A202,Data!$B$2:$D$4020,3,FALSE)) ->  | C202: =IF(A202="","",VLOOKUP(A202,Data!$B$2:$F$4020,5,FALSE)) ->  | E202: =CONCATENATE(A202,D202) ->  | F202: =IF(ISNA(VLOOKUP(E202,Data!$A$2:$I$4020,7,FALSE)),"",VLOOKUP(E202,Data!$A$2:$I$4020,7,FALSE)) ->  | G202: =IF(ISNA(VLOOKUP(E202,Data!$A$2:$I$4020,9,FALSE)),"",VLOOKUP(E202,Data!$A$2:$I$4020,9,FALSE)) ->  | H202: =IF(ISNA(VLOOKUP(E202,Data!$A$2:$J$4020,10,FALSE)),"",VLOOKUP(E202,Data!$A$2:$J$4020,10,FALSE)) ->  | V202: =SUM(S202:U202) -> 0
... 495 more rows

Sheet Work Information
A1: Importance of System Functionality
A2: Criteria | B2: Guiding Question | C2: Categories | D2: Score | E2: Asset Functionality if System Fails | F2: Back Up System | G2: Examples
A3: Importance of System Functionality | B3: What is the probable impact on the asset's functionality if the system/component that requires work fails? | C3: 5 - Significant - No Back Up | D3: 5 | E3: Significantly reduced for entire asset | F3: No back up system is available | G3: Substructure is compromised
C4: 4 - Significant - Limited Back Up | D4: 4 | E4: Significantly reduced for entire asset | F4: Limited back up system is in place, but does not fully restore functionality or cannot be in place for an extended period of time | G4: Power outage
C5: 3 - Moderate - Incovenient Back Up | D5: 3 | E5: Reduced for part of asset | F5: Back up system is available and can be in place for an extended period of time, but is inconvenient for occupants | G5: One of two washrooms are not functional
C6: 2 - Moderate - Back Up Available | D6: 2 | E6: Reduced for part of asset | F6: Back up system is available and can be in place indefinitely if required, with slight inconvenience for occupants | G6: One of many toilets or sinks are not functional
C7: 0 - None - Back Up Not Required | D7: 0 | E7: Functionality is not reduced | F7: No back up system is required | G7: One of many water fountains are not functional
A10: Condition of System
A11: Criteria | B11: Guiding Question | C11: Categories | D11: Score | G11: Examples
A12: Condition of System | B12: What is the condition of the system/component requiring work? | C12: 5 - Failed/Imminent | D12: 5 | F12: System/component has failed, or is expected to fail at any moment
C13: 3 - Poor | D13: 3 | F13: System/component is expected to fail in the short-term
C14: 0 - Good | D14: 0 | F14: System/component is not expected to fail in the short-term
C15: 0 - Excellent | D15: 0 | F15: System/component is in excellent condition
A18: Reason for Work
A19: Criteria | B19: Guiding Question | C19: Categories | D19: Score | F19: Work is required to: | G19: Examples
A20: Reason for Work | B20: Why is the work required? | C20: 5 - Health and Safety/Legislation | D20: 5 | F20: Meet legal requirements and/or address significant health and safety concerns | G20: Hazardous material abatement, mandatory for building code compliance
C21: 5 - Ensure Reliability | D21: 5 | F21: Ensure the asset remains functional in order to minimize disruptions to the program/service | G21: Reliability/ Suite Renewal is required to make units rentable
C22: 5 - Impacts Revenue | D22: 5 | F22: Prevent the loss of income | G22: Suite Renewals for unrentable suites
C23: 4 - Lifecycle Requirements | D23: 4 | F23: Meet the prescribed maintenance of the system/component | G23: Lifecycle
C24: 3 - Operational Efficiencies | D24: 3 | F24: Achieve cost savings in operations | G24: Energy efficiency, capacity restacks
C25: 2 - Responsible Stewardship | D25: 2 | F25: Proactively maintain assets, but not critical to functionality of the asset | G25: Hazardous material abatement (contained), or building code compliance (not immediately required)
C26: 1 - Aesthetic Preservation | D26: 1 | F26: Prevent or address deterioration, or enhance appearance | G26: paint upgrades
A29: Impact of Failure on Occupants
A30: Criteria | B30: Guiding Question | C30: Categories | D30: Score | E30: Safety Criticality | F30: Program/service impact | G30: Examples
A31: Impact of Failure on Occupants | B31: What is the probable impact on the occupants or the program/service if the work is not completed? | C31: 5 - Critical | D31: 5 | E31: Serious injury or death may occur | F31: Total shut down of program/service may occur | G31: Extensive mold is present, potential fire hazard, roof collapse
C32: 3 - Moderate | D32: 3 | E32: Moderate | F32: Building environment is impacted | G32: Ventilation system fails, sidewalk is cracking, guardrail is broken
C33: 0 - No impact | D33: 0 | E33: None | F33: None | G33: Peeling of paint

Sheet Data (hidden)
A1: Concatenate | B1: Project ID | C1: Address | D1: Org ID | E1: Housing Organization | F1: Site Name | G1: Municipality | H1: Postal | I1: Building Ownership | J1: Program Group
A2: =CONCATENATE(B2,C2) -> 22952751000841 Street | B2: 229527510008 | C2: 41 Street | D2: ACF | E2: Acadia Foundation | F2: Consort Lodge | G2: Consort | H2: T0C1B0 | I2: Housing Provider | J2: Seniors Lodge Program
A3: =CONCATENATE(B3,C3) -> 248327510151Units 1 - 50 at Box 160 | B3: 248327510151 | C3: Units 1 - 50 at Box 160 | D3: ACF | E3: Acadia Foundation | F3: Hanna Lodge | G3: Hanna | H3: T0J1P0 | I3: Housing Provider | J3: Seniors Lodge Program
A4: 263627516030Units 101 - 115, 201 - 214 Bag 3000 | B4: 263627516030 | C4: Units 101 - 115, 201 - 214 Bag 3000 | D4: ACF | E4: Acadia Foundation | F4: Oyen Lodge | G4: Oyen | H4: T0J2J0 | I4: Housing Provider | J4: Seniors Lodge Program
A5: 300000001086815 East Lake Boulevard | B5: 300000001086 | C5: 815 East Lake Boulevard | D5: A103 | E5: Airdrie Housing Limited | F5: East Lake Apartments | G5: Airdrie | H5: T4A 2G4 | I5: Housing Provider | J5: None
A6: 2218273860025505 - Macleod Trail S.W. | B6: 221827386002 | C6: 5505 - Macleod Trail S.W. | D6: CNW | E6: Awo Taan Healing Lodge Society | F6: Women's Emergency Shelter | G6: Calgary | H6: T2H2Y6 | I6: Housing Provider | J6: Specialized Housing
A7: 1301273100014316 - 50A Avenue | B7: 130127310001 | C7: 4316 - 50A Avenue | D7: BAR | E7: Barrhead & District Social Housing Association | F7: Barrhead 1 | G7: Barrhead | H7: T7N1J5 | I7: Alberta Social Housing Corporation | J7: Community Housing Program
A8: 1301273100014312 - 50A Avenue | B8: 130127310001 | C8: 4312 - 50A Avenue | D8: BAR | E8: Barrhead & District Social Housing Association | F8: Barrhead 1 | G8: Barrhead | H8: T7N1J5 | I8: Alberta Social Housing Corporation | J8: Community Housing Program
A9: 1301273100014308 - 50A Avenue | B9: 130127310001 | C9: 4308 - 50A Avenue | D9: BAR | E9: Barrhead & District Social Housing Association | F9: Barrhead 1 | G9: Barrhead | H9: T7N1J5 | I9: Alberta Social Housing Corporation | J9: Community Housing Program
A10: 1301273100014304A/B - 50A Avenue | B10: 130127310001 | C10: 4304A/B - 50A Avenue | D10: BAR | E10: Barrhead & District Social Housing Association | F10: Barrhead 1 | G10: Barrhead | H10: T7N1J5 | I10: Alberta Social Housing Corporation | J10: Community Housing Program
A11: 1301273100014314 - 50A Avenue | B11: 130127310001 | C11: 4314 - 50A Avenue | D11: BAR | E11: Barrhead & District Social Housing Association | F11: Barrhead 1 | G11: Barrhead | H11: T7N1J5 | I11: Alberta Social Housing Corporation | J11: Community Housing Program
A12: 1301273100014306 - 50A Avenue | B12: 130127310001 | C12: 4306 - 50A Avenue | D12: BAR | E12: Barrhead & District Social Housing Association | F12: Barrhead 1 | G12: Barrhead | H12: T7N1J5 | I12: Alberta Social Housing Corporation | J12: Community Housing Program
A13: 1301273100014310 - 50A Avenue | B13: 130127310001 | C13: 4310 - 50A Avenue | D13: BAR | E13: Barrhead & District Social Housing Association | F13: Barrhead 1 | G13: Barrhead | H13: T7N1J5 | I13: Alberta Social Housing Corporation | J13: Community Housing Program
A14: 1301275521315125 - 45 Street | B14: 130127552131 | C14: 5125 - 45 Street | D14: BAR | E14: Barrhead & District Social Housing Association | F14: Golden Crest Manor | G14: Barrhead | H14: T7N1M5 | I14: Alberta Social Housing Corporation | J14: Seniors Self Contained Program
A15: 1301275120994321 - 52 Avenue | B15: 130127512099 | C15: 4321 - 52 Avenue | D15: BAR | E15: Barrhead & District Social Housing Association | F15: Hillcrest Lodge | G15: Barrhead | H15: T7N1M6 | I15: Housing Provider | J15: Seniors Lodge Program
A16: 1301275120994321 52 Avenue | B16: 130127512099 | C16: 4321 52 Avenue | D16: BAR | E16: Barrhead & District Social Housing Association | F16: Hillcrest Lodge | G16: Barrhead | H16: T7N1M6 | I16: Alberta Social Housing Corporation | J16: Seniors Lodge Program
A17: 132927552073#10 Park Drive | B17: 132927552073 | C17: #10 Park Drive | D17: BAR | E17: Barrhead & District Social Housing Association | F17: James & Della Roach Manor | G17: Fort Assiniboine | H17: T0G1A0 | I17: Alberta Social Housing Corporation | J17: Seniors Self Contained Program
A18: 1301275500265120 - 43 Street | B18: 130127550026 | C18: 5120 - 43 Street | D18: BAR | E18: Barrhead & District Social Housing Association | F18: Jubilee Manor | G18: Barrhead | H18: T7N1M7 | I18: Alberta Social Housing Corporation | J18: Seniors Self Contained Program
A19: 1301275122024310 - 51 Avenue | B19: 130127512202 | C19: 4310 - 51 Avenue | D19: BAR | E19: Barrhead & District Social Housing Association | F19: Klondike Place | G19: Barrhead | H19: T7N1P7 | I19: Housing Provider | J19: Seniors Lodge Program
A20: 1301275522695127 - 47 Street | B20: 130127552269 | C20: 5127 - 47 Street | D20: BAR | E20: Barrhead & District Social Housing Association | F20: Pembina Court | G20: Barrhead | H20: T7N1M3 | I20: Alberta Social Housing Corporation | J20: Seniors Self Contained Program
A21: 137327312248102A-102D Assiniboine Drive | B21: 137327312248 | C21: 102A-102D Assiniboine Drive | D21: BAR | E21: Barrhead & District Social Housing Association | F21: Swan Hills I | G21: Swan Hills | H21: T0G2C0 | I21: Alberta Social Housing Corporation | J21: Community Housing Program
A22: 137327312248102E-102H Assiniboine Drive | B22: 137327312248 | C22: 102E-102H Assiniboine Drive | D22: BAR | E22: Barrhead & District Social Housing Association | F22: Swan Hills I | G22: Swan Hills | H22: T0G2C0 | I22: Alberta Social Housing Corporation | J22: Community Housing Program
A23: 169127510203429 - 5 Avenue | B23: 169127510203 | C23: 429 - 5 Avenue | D23: BRF | E23: Battle River Foundation | F23: Battle River Lodge | G23: Wainwright | H23: T9W2R1 | I23: Housing Provider | J23: Seniors Lodge Program
A24: 1689275521555803 - 52 Street | B24: 168927552155 | C24: 5803 - 52 Street | D24: BEA | E24: Beaver Foundation | F24: Beaver Manor | G24: Viking | H24: T0B4N0 | I24: Alberta Social Housing Corporation | J24: Seniors Self Contained Program
A25: 1685275521185860 - 50 Street | B25: 168527552118 | C25: 5860 - 50 Street | D25: BEA | E25: Beaver Foundation | F25: Beaverhill Heritage Apartments | G25: Tofield | H25: T0B4J0 | I25: Alberta Social Housing Corporation | J25: Seniors Self Contained Program
A26: 1642275120504820 - 52 Avenue | B26: 164227512050 | C26: 4820 - 52 Avenue | D26: BEA | E26: Beaver Foundation | F26: Holden Lodge | G26: Holden | H26: T0B2C0 | I26: Alberta Social Housing Corporation | J26: Seniors Lodge Program
A27: 1665275521195019 - 53 Avenue | B27: 166527552119 | C27: 5019 - 53 Avenue | D27: BEA | E27: Beaver Foundation | F27: Lions Golden Manor | G27: Ryley | H27: T0B4A0 | I27: Alberta Social Housing Corporation | J27: Seniors Self Contained Program
A28: 1665275523455019 - 53 Avenue | B28: 166527552345 | C28: 5019 - 53 Avenue | D28: BEA | E28: Beaver Foundation | F28: Lions Golden Manor II | G28: Ryley | H28: T0B4A0 | I28: Alberta Social Housing Corporation | J28: Seniors Self Contained Program
A29: 1642275521055203 - 51 Avenue | B29: 164227552105 | C29: 5203 - 51 Avenue | D29: BEA | E29: Beaver Foundation | F29: Northview Manor | G29: Holden | H29: T0B2C0 | I29: Alberta Social Housing Corporation | J29: Seniors Self Contained Program
A30: 1682275122215834 - 51 Street | B30: 168227512221 | C30: 5834 - 51 Street | D30: BEA | E30: Beaver Foundation | F30: Sunshine Villa | G30: Tofield | H30: T0B4J0 | I30: Housing Provider | J30: Seniors Lodge Program
A31: 1685275101955824 - 50 Street | B31: 168527510195 | C31: 5824 - 50 Street | D31: BEA | E31: Beaver Foundation | F31: Tofield Lodge | G31: Tofield | H31: T0B4J0 | I31: Alberta Social Housing Corporation | J31: Seniors Lodge Program
A32: 1689275102015128 - 57 Street | B32: 168927510201 | C32: 5128 - 57 Street | D32: BEA | E32: Beaver Foundation | F32: Vialta Lodge | G32: Viking | H32: T0B4N0 | I32: Housing Provider | J32: Seniors Lodge Program
A33: 2218275560371603 - 90 Avenue SW | B33: 221827556037 | C33: 1603 - 90 Avenue SW | D33: CJE | E33: Bertha Gold Jewish Seniors Residence | F33: Bertha Gold Jewish Seniors Residence | G33: Calgary | H33: T2V4V7 | I33: Alberta Social Housing Corporation | J33: Seniors Self Contained Program
A34: 221827556050240 Lincoln Way SW | B34: 221827556050 | C34: 240 Lincoln Way SW | D34: BCS | E34: Bethany Care Society | F34: Bethany Village | G34: Calgary | H34: T3E6X7 | I34: Alberta Social Housing Corporation | J34: Seniors Self Contained Program
A35: 30000000101787 College Circle | B35: 300000001017 | C35: 87 College Circle | D35: BCS | E35: Bethany Care Society | F35: Bethany CollegeSide Gardens | G35: Red Deer | H35: T4R0M2 | I35: Housing Provider | J35: Seniors Lodge Program
A36: 221827556033614 - 57 Avenue SW | B36: 221827556033 | C36: 614 - 57 Avenue SW | D36: BCS | E36: Bethany Care Society | F36: First Assembly Manor | G36: Calgary | H36: T2V0H4 | I36: Alberta Social Housing Corporation | J36: Seniors Self Contained Program
A37: 2218275561933118 - 34 Avenue NW | B37: 221827556193 | C37: 3118 - 34 Avenue NW | D37: BCS | E37: Bethany Care Society | F37: Foothills Manor | G37: Calgary | H37: T2L2A3 | I37: Alberta Social Housing Corporation | J37: Seniors Self Contained Program
A38: 2218275560621111 - 68 Avenue SW | B38: 221827556062 | C38: 1111 - 68 Avenue SW | D38: BCS | E38: Bethany Care Society | F38: Glenmore Manor | G38: Calgary | H38: T2V4X1 | I38: Alberta Social Housing Corporation | J38: Seniors Self Contained Program
A39: 2218275561908847 Fairmount Drive SE | B39: 221827556190 | C39: 8847 Fairmount Drive SE | D39: BCS | E39: Bethany Care Society | F39: Luther Place | G39: Calgary | H39: T2H0Z4 | I39: Alberta Social Housing Corporation | J39: Seniors Self Contained Program
A40: 2218275560612808 - 25 Street SW | B40: 221827556061 | C40: 2808 - 25 Street SW | D40: BCS | E40: Bethany Care Society | F40: Menno Court | G40: Calgary | H40: T3E1X9 | I40: Alberta Social Housing Corporation | J40: Seniors Self Contained Program
A41: 2218275500232637 - 25 Street SW | B41: 221827550023 | C41: 2637 - 25 Street SW | D41: BCS | E41: Bethany Care Society | F41: Menno Gardens | G41: Calgary | H41: T3E1X7 | I41: Alberta Social Housing Corporation | J41: Seniors Self Contained Program
A42: 221827466001916 - 18 A Street NW | B42: 221827466001 | C42: 916 - 18 A Street NW | D42: BCS | E42: Bethany Care Society | F42: Project I | G42: Calgary | H42: T2M0V5 | I42: Housing Provider | J42: Seniors Lodge Program
A43: 228627466003302 Quigley Drive | B43: 228627466003 | C43: 302 Quigley Drive | D43: BCS | E43: Bethany Care Society | F43: Project III | G43: Cochrane | H43: T4C1X9 | I43: Housing Provider | J43: Seniors Lodge Program
A44: 221827556142120 - 18 Avenue NE | B44: 221827556142 | C44: 120 - 18 Avenue NE | D44: BCS | E44: Bethany Care Society | F44: Rose Manor | G44: Calgary | H44: T2E1M9 | I44: Alberta Social Housing Corporation | J44: Seniors Self Contained Program
A45: 221827556143255 - 17 Avenue NE | B45: 221827556143 | C45: 255 - 17 Avenue NE | D45: BCS | E45: Bethany Care Society | F45: Sharon Manor | G45: Calgary | H45: T2E1L9 | I45: Alberta Social Housing Corporation | J45: Seniors Self Contained Program
A46: 1609275122235502 56 Avenue | B46: 160927512223 | C46: 5502 56 Avenue | D46: TBG | E46: Bethany Nursing Home of Camrose, Alberta | F46: Bashaw Meadows | G46: Bashaw | H46: T0B0H0 | I46: Housing Provider | J46: Seniors Lodge Program
A47: 163827552121Glenview & Lindgren Units 1-4 | B47: 163827552121 | C47: Glenview & Lindgren Units 1-4 | D47: TBG | E47: Bethany Nursing Home of Camrose, Alberta | F47: Beaver House | G47: Ferintosh | H47: T0B1M0 | I47: Alberta Social Housing Corporation | J47: Seniors Self Contained Program
A48: 1639275121074401 - 47 Street | B48: 163927512107 | C48: 4401 - 47 Street | D48: TBG | E48: Bethany Nursing Home of Camrose, Alberta | F48: Big Knife Lodge | G48: Forestburg | H48: T0B1N0 | I48: Alberta Social Housing Corporation | J48: Seniors Lodge Program
A49: 1639275522974401 - 47 Street | B49: 163927552297 | C49: 4401 - 47 Street | D49: TBG | E49: Bethany Nursing Home of Camrose, Alberta | F49: Big Knife Villa | G49: Forestburg | H49: T0B1N0 | I49: Alberta Social Housing Corporation | J49: Seniors Self Contained Program
A50: 1649275521505326 - 51 Avenue | B50: 164927552150 | C50: 5326 - 51 Avenue | D50: TBG | E50: Bethany Nursing Home of Camrose, Alberta | F50: Cameron Manor | G50: Lacombe | H50: T4L1J6 | I50: Alberta Social Housing Corporation | J50: Seniors Self Contained Program
A51: 16172731286492A Mt. Pleasant Drive | B51: 161727312864 | C51: 92A Mt. Pleasant Drive | D51: TBG | E51: Bethany Nursing Home of Camrose, Alberta | F51: Camrose 1 | G51: Camrose | H51: T4V2M6 | I51: Alberta Social Housing Corporation | J51: Community Housing Program
A52: 16172731286494A Mt. Pleasant Drive | B52: 161727312864 | C52: 94A Mt. Pleasant Drive | D52: TBG | E52: Bethany Nursing Home of Camrose, Alberta | F52: Camrose 1 | G52: Camrose | H52: T4V2M6 | I52: Alberta Social Housing Corporation | J52: Community Housing Program
A53: 16172731286496A Mt. Pleasant Drive | B53: 161727312864 | C53: 96A Mt. Pleasant Drive | D53: TBG | E53: Bethany Nursing Home of Camrose, Alberta | F53: Camrose 1 | G53: Camrose | H53: T4V2M6 | I53: Alberta Social Housing Corporation | J53: Community Housing Program
A54: 16172731286498A Mt. Pleasant Drive | B54: 161727312864 | C54: 98A Mt. Pleasant Drive | D54: TBG | E54: Bethany Nursing Home of Camrose, Alberta | F54: Camrose 1 | G54: Camrose | H54: T4V2M6 | I54: Alberta Social Housing Corporation | J54: Community Housing Program
A55: 161727312864107A Mt. Pleasant Drive | B55: 161727312864 | C55: 107A Mt. Pleasant Drive | D55: TBG | E55: Bethany Nursing Home of Camrose, Alberta | F55: Camrose 1 | G55: Camrose | H55: T4V2M8 | I55: Alberta Social Housing Corporation | J55: Community Housing Program
A56: 161727312864109A Mt. Pleasant Drive | B56: 161727312864 | C56: 109A Mt. Pleasant Drive | D56: TBG | E56: Bethany Nursing Home of Camrose, Alberta | F56: Camrose 1 | G56: Camrose | H56: T4V2M8 | I56: Alberta Social Housing Corporation | J56: Community Housing Program
A57: 161727312864111A Mt. Pleasant Drive | B57: 161727312864 | C57: 111A Mt. Pleasant Drive | D57: TBG | E57: Bethany Nursing Home of Camrose, Alberta | F57: Camrose 1 | G57: Camrose | H57: T4V2M8 | I57: Alberta Social Housing Corporation | J57: Community Housing Program
A58: 1617273120696705A Marler Drive | B58: 161727312069 | C58: 6705A Marler Drive | D58: TBG | E58: Bethany Nursing Home of Camrose, Alberta | F58: Camrose 2 | G58: Camrose | H58: T4V3R2 | I58: Alberta Social Housing Corporation | J58: Community Housing Program
A59: 1617273120696707A Marler Drive | B59: 161727312069 | C59: 6707A Marler Drive | D59: TBG | E59: Bethany Nursing Home of Camrose, Alberta | F59: Camrose 2 | G59: Camrose | H59: T4V3R2 | I59: Alberta Social Housing Corporation | J59: Community Housing Program
A60: 1617273120696709A Marler Drive | B60: 161727312069 | C60: 6709A Marler Drive | D60: TBG | E60: Bethany Nursing Home of Camrose, Alberta | F60: Camrose 2 | G60: Camrose | H60: T4V3R2 | I60: Alberta Social Housing Corporation | J60: Community Housing Program
A61: 1617273120696711A Marler Drive | B61: 161727312069 | C61: 6711A Marler Drive | D61: TBG | E61: Bethany Nursing Home of Camrose, Alberta | F61: Camrose 2 | G61: Camrose | H61: T4V3R2 | I61: Alberta Social Housing Corporation | J61: Community Housing Program
A62: 1617273120696713A Marler Drive | B62: 161727312069 | C62: 6713A Marler Drive | D62: TBG | E62: Bethany Nursing Home of Camrose, Alberta | F62: Camrose 2 | G62: Camrose | H62: T4V3R2 | I62: Alberta Social Housing Corporation | J62: Community Housing Program
A63: 1617273120805402A - 43 Avenue | B63: 161727312080 | C63: 5402A - 43 Avenue | D63: TBG | E63: Bethany Nursing Home of Camrose, Alberta | F63: Camrose 3 | G63: Camrose | H63: T4V4J8 | I63: Alberta Social Housing Corporation | J63: Community Housing Program
A64: 1617273120805406A - 43 Avenue | B64: 161727312080 | C64: 5406A - 43 Avenue | D64: TBG | E64: Bethany Nursing Home of Camrose, Alberta | F64: Camrose 3 | G64: Camrose | H64: T4V4J8 | I64: Alberta Social Housing Corporation | J64: Community Housing Program
A65: 1617273120805407A - 43 Avenue | B65: 161727312080 | C65: 5407A - 43 Avenue | D65: TBG | E65: Bethany Nursing Home of Camrose, Alberta | F65: Camrose 3 | G65: Camrose | H65: T4V4J9 | I65: Alberta Social Housing Corporation | J65: Community Housing Program
A66: 1617273120805410A - 43 Avenue | B66: 161727312080 | C66: 5410A - 43 Avenue | D66: TBG | E66: Bethany Nursing Home of Camrose, Alberta | F66: Camrose 3 | G66: Camrose | H66: T4V4J7 | I66: Alberta Social Housing Corporation | J66: Community Housing Program
A67: =CONCATENATE(B67,C67) -> 1617273120805401A - 43 Avenue | B67: 161727312080 | C67: 5401A - 43 Avenue | D67: TBG | E67: Bethany Nursing Home of Camrose, Alberta | F67: Camrose 3 | G67: Camrose | H67: T4V4J8 | I67: Alberta Social Housing Corporation | J67: Community Housing Program
A68: 163627552334101 Rutherford Avenue | B68: 163627552334 | C68: 101 Rutherford Avenue | D68: TBG | E68: Bethany Nursing Home of Camrose, Alberta | F68: Cozy Corner | G68: Heisler | H68: T0B2A0 | I68: Alberta Social Housing Corporation | J68: Seniors Self Contained Program
A69: 160727552061212 Main Street | B69: 160727552061 | C69: 212 Main Street | D69: TBG | E69: Bethany Nursing Home of Camrose, Alberta | F69: E.O. Lysne Manor | G69: Alliance | H69: T0B0A0 | I69: Alberta Social Housing Corporation | J69: Seniors Self Contained Program
A70: 1634275100135111 - 51 Avenue | B70: 163427510013 | C70: 5111 - 51 Avenue | D70: TBG | E70: Bethany Nursing Home of Camrose, Alberta | F70: Eckville Manor House | G70: Eckville | H70: T0M0X0 | I70: Alberta Social Housing Corporation | J70: Seniors Lodge Program
A71: 1651275522774808 50 Street Units 1 - 6 | B71: 165127552277 | C71: 4808 50 Street Units 1 - 6 | D71: TBG | E71: Bethany Nursing Home of Camrose, Alberta | F71: Frontier Manor | G71: Lougheed | H71: T0B2V0 | I71: Alberta Social Housing Corporation | J71: Seniors Self Contained Program
A72: 1609275502115015 - 53 Avenue | B72: 160927550211 | C72: 5015 - 53 Avenue | D72: TBG | E72: Bethany Nursing Home of Camrose, Alberta | F72: Heritage House 1 | G72: Bashaw | H72: T0B0H0 | I72: Alberta Social Housing Corporation | J72: Seniors Self Contained Program
A73: 1609275521775015 - 53 Avenue | B73: 160927552177 | C73: 5015 - 53 Avenue | D73: TBG | E73: Bethany Nursing Home of Camrose, Alberta | F73: Heritage House 2 | G73: Bashaw | H73: T0B0H0 | I73: Alberta Social Housing Corporation | J73: Seniors Self Contained Program
A74: 1617275521144912 - 56 Street | B74: 161727552114 | C74: 4912 - 56 Street | D74: TBG | E74: Bethany Nursing Home of Camrose, Alberta | F74: Heritage Manor | G74: Camrose | H74: T4V4C7 | I74: Alberta Social Housing Corporation | J74: Seniors Self Contained Program
A75: 1154275521515215 - 51 Street | B75: 115427552151 | C75: 5215 - 51 Street | D75: TBG | E75: Bethany Nursing Home of Camrose, Alberta | F75: John A. Smith Manor | G75: Millet | H75: T0C1Z0 | I75: Alberta Social Housing Corporation | J75: Seniors Self Contained Program
A76: 1197275521005203 - 55 Street | B76: 119727552100 | C76: 5203 - 55 Street | D76: TBG | E76: Bethany Nursing Home of Camrose, Alberta | F76: Kiwanis Kourt | G76: Wetaskiwin | H76: T9A2J6 | I76: Alberta Social Housing Corporation | J76: Seniors Self Contained Program
A77: 1649273100295 Fairway Drive | B77: 164927310029 | C77: 5 Fairway Drive | D77: TBG | E77: Bethany Nursing Home of Camrose, Alberta | F77: Lacombe 1 | G77: Lacombe | H77: T4L1R3 | I77: Alberta Social Housing Corporation | J77: Community Housing Program
A78: 16492731002913 Eagle Road | B78: 164927310029 | C78: 13 Eagle Road | D78: TBG | E78: Bethany Nursing Home of Camrose, Alberta | F78: Lacombe 1 | G78: Lacombe | H78: T4L1S2 | I78: Alberta Social Housing Corporation | J78: Community Housing Program
A79: 16492731002917 Eagle Road | B79: 164927310029 | C79: 17 Eagle Road | D79: TBG | E79: Bethany Nursing Home of Camrose, Alberta | F79: Lacombe 1 | G79: Lacombe | H79: T4L1S2 | I79: Alberta Social Housing Corporation | J79: Community Housing Program
A80: 16492731002918 Eagle Road | B80: 164927310029 | C80: 18 Eagle Road | D80: TBG | E80: Bethany Nursing Home of Camrose, Alberta | F80: Lacombe 1 | G80: Lacombe | H80: T4L1S2 | I80: Alberta Social Housing Corporation | J80: Community Housing Program
A81: 16492731230932 Woodland Drive | B81: 164927312309 | C81: 32 Woodland Drive | D81: TBG | E81: Bethany Nursing Home of Camrose, Alberta | F81: Lacombe 2 (FCLS) | G81: Lacombe | H81: T4L1V5 | I81: Alberta Social Housing Corporation | J81: Community Housing Program
A82: 16492731230926 Woodland Drive | B82: 164927312309 | C82: 26 Woodland Drive | D82: TBG | E82: Bethany Nursing Home of Camrose, Alberta | F82: Lacombe 2 (FCLS) | G82: Lacombe | H82: T4L1V5 | I82: Alberta Social Housing Corporation | J82: Community Housing Program
A83: 16492731230937 Woodland Drive | B83: 164927312309 | C83: 37 Woodland Drive | D83: TBG | E83: Bethany Nursing Home of Camrose, Alberta | F83: Lacombe 2 (FCLS) | G83: Lacombe | H83: T4L1V1 | I83: Alberta Social Housing Corporation | J83: Community Housing Program
A84: 16492731659431 Woodland Drive | B84: 164927316594 | C84: 31 Woodland Drive | D84: TBG | E84: Bethany Nursing Home of Camrose, Alberta | F84: Lacombe 3 (FCLS) | G84: Lacombe | H84: T4L1V1 | I84: Alberta Social Housing Corporation | J84: Community Housing Program
A85: 16492731662735 Woodland Drive | B85: 164927316627 | C85: 35 Woodland Drive | D85: TBG | E85: Bethany Nursing Home of Camrose, Alberta | F85: Lacombe 4 (FCLS) | G85: Lacombe | H85: T4L1V5 | I85: Alberta Social Housing Corporation | J85: Community Housing Program
A86: 1649275101574508 C.N.E. Trail | B86: 164927510157 | C86: 4508 C.N.E. Trail | D86: TBG | E86: Bethany Nursing Home of Camrose, Alberta | F86: Lacombe Lodge | G86: Lacombe | H86: T4L1V9 | I86: Housing Provider | J86: Seniors Lodge Program
A87: 1609275522495320 - 49 Street | B87: 160927552249 | C87: 5320 - 49 Street | D87: TBG | E87: Bethany Nursing Home of Camrose, Alberta | F87: Lakeside Home | G87: Bashaw | H87: T0B0H0 | I87: Alberta Social Housing Corporation | J87: Seniors Self Contained Program
A88: 1605275520094817 - 51 Street | B88: 160527552009 | C88: 4817 - 51 Street | D88: TBG | E88: Bethany Nursing Home of Camrose, Alberta | F88: Lakeview Manor | G88: Alix | H88: T0C0B0 | I88: Alberta Social Housing Corporation | J88: Seniors Self Contained Program
A89: 1605275520094817 - 51 Street | B89: 160527552009 | C89: 4817 - 51 Street | D89: TBG | E89: Bethany Nursing Home of Camrose, Alberta | F89: Lakeview Manor | G89: Alix | H89: T0C0B0 | I89: Alberta Social Housing Corporation | J89: Seniors Self Contained Program
A90: 165427552152Units 1 - 8 Carrol Ave | B90: 165427552152 | C90: Units 1 - 8 Carrol Ave | D90: TBG | E90: Bethany Nursing Home of Camrose, Alberta | F90: Lamerton Place | G90: Mirror | H90: T0B3C0 | I90: Alberta Social Housing Corporation | J90: Seniors Self Contained Program
A91: 1197275521945215 - 55 Avenue | B91: 119727552194 | C91: 5215 - 55 Avenue | D91: TBG | E91: Bethany Nursing Home of Camrose, Alberta | F91: Legion Arms | G91: Wetaskiwin | H91: T9A3A7 | I91: Alberta Social Housing Corporation | J91: Seniors Self Contained Program
A92: 163427556188Units 1-4 - 5105 52 Ave | B92: 163427556188 | C92: Units 1-4 - 5105 52 Ave | D92: TBG | E92: Bethany Nursing Home of Camrose, Alberta | F92: Lions Golden Villa | G92: Eckville | H92: T0M0X0 | I92: Alberta Social Housing Corporation | J92: Seniors Self Contained Program
A93: 163427556188Units 5-8 - 5107 52 Ave | B93: 163427556188 | C93: Units 5-8 - 5107 52 Ave | D93: TBG | E93: Bethany Nursing Home of Camrose, Alberta | F93: Lions Golden Villa | G93: Eckville | I93: Alberta Social Housing Corporation | J93: Seniors Self Contained Program
A94: 1197275521955410 - 39 Avenue | B94: 119727552195 | C94: 5410 - 39 Avenue | D94: TBG | E94: Bethany Nursing Home of Camrose, Alberta | F94: Luther Manor | G94: Wetaskiwin | H94: T9A3A6 | I94: Alberta Social Housing Corporation | J94: Seniors Self Contained Program
A95: 1647275520014030 - 57 Street | B95: 164727552001 | C95: 4030 - 57 Street | D95: TBG | E95: Bethany Nursing Home of Camrose, Alberta | F95: Manitou Manor | G95: Killam | H95: T0B2L0 | I95: Alberta Social Housing Corporation | J95: Seniors Self Contained Program
A96: 115427223095126 Porter Avenue | B96: 115427223095 | C96: 126 Porter Avenue | D96: TBG | E96: Bethany Nursing Home of Camrose, Alberta | F96: Millet R&N 2 | G96: Millet | H96: T0C1Z0 | I96: Alberta Social Housing Corporation | J96: Community Housing Program
A97: 165827552188207 Olstad Street Units 1-8 | B97: 165827552188 | C97: 207 Olstad Street Units 1-8 | D97: TBG | E97: Bethany Nursing Home of Camrose, Alberta | F97: Nordic Villa | G97: New Norway | H97: T0B3L0 | I97: Alberta Social Housing Corporation | J97: Seniors Self Contained Program
A98: 16102722601552 Avenue & 47 Street | B98: 161027226015 | C98: 52 Avenue & 47 Street | D98: TBG | E98: Bethany Nursing Home of Camrose, Alberta | F98: Oxford Court | G98: Bentley | H98: T0C0J0 | I98: Alberta Social Housing Corporation | J98: Community Housing Program
A99: 1617275522734709 - 50 Street | B99: 161727552273 | C99: 4709 - 50 Street | D99: TBG | E99: Bethany Nursing Home of Camrose, Alberta | F99: Park View Place | G99: Camrose | H99: T4V4C9 | I99: Alberta Social Housing Corporation | J99: Seniors Self Contained Program
A100: 1641275500675004 - 50 Street | B100: 164127550067 | C100: 5004 - 50 Street | D100: TBG | E100: Bethany Nursing Home of Camrose, Alberta | F100: Parkland Manor | G100: Hardisty | H100: T0B1V0 | I100: Alberta Social Housing Corporation | J100: Seniors Self Contained Program
A101: 1649275500054508 C.N.E. Trail | B101: 164927550005 | C101: 4508 C.N.E. Trail | D101: TBG | E101: Bethany Nursing Home of Camrose, Alberta | F101: Parkview Manor | G101: Lacombe | H101: T4L1V9 | I101: Alberta Social Housing Corporation | J101: Seniors Self Contained Program
A102: 1197275122204501 - 60 Street | B102: 119727512220 | C102: 4501 - 60 Street | D102: TBG | E102: Bethany Nursing Home of Camrose, Alberta | F102: Peace Hills Lodge (New) | G102: Wetaskiwin | H102: T9A1X7 | I102: Housing Provider | J102: Seniors Lodge Program
A103: 1673275523495001 51st Avenue | B103: 167327552349 | C103: 5001 51st Avenue | D103: TBG | E103: Bethany Nursing Home of Camrose, Alberta | F103: Prairie Rose Place | G103: Sedgewick | H103: T0B 4C0 | I103: Alberta Social Housing Corporation | J103: Seniors Self Contained Program
A104: 1617275121014318 - 53 Street | B104: 161727512101 | C104: 4318 - 53 Street | D104: TBG | E104: Bethany Nursing Home of Camrose, Alberta | F104: Rosealta Lodge | G104: Camrose | H104: T4V4G3 | I104: Alberta Social Housing Corporation | J104: Seniors Lodge Program
A105: 1611275520624651 Sanden Street | B105: 161127552062 | C105: 4651 Sanden Street | D105: TBG | E105: Bethany Nursing Home of Camrose, Alberta | F105: Sanden Court 1 | G105: Bawlf | H105: T0B0J0 | I105: Alberta Social Housing Corporation | J105: Seniors Self Contained Program
A106: 1611275521844655 Sanden Street | B106: 161127552184 | C106: 4655 Sanden Street | D106: TBG | E106: Bethany Nursing Home of Camrose, Alberta | F106: Sanden Court 2 | G106: Bawlf | H106: T0B0J0 | I106: Alberta Social Housing Corporation | J106: Seniors Self Contained Program
A107: 1649275561915002 - 51 Avenue | B107: 164927556191 | C107: 5002 - 51 Avenue | D107: TBG | E107: Bethany Nursing Home of Camrose, Alberta | F107: Spruce Terrace | G107: Lacombe | H107: T4L1B8 | I107: Alberta Social Housing Corporation | J107: Seniors Self Contained Program
A108: 1612275561854808 Shuller Avenue | B108: 161227556185 | C108: 4808 Shuller Avenue | D108: TBG | E108: Bethany Nursing Home of Camrose, Alberta | F108: Tower Manor | G108: Blackfalds | H108: T0M0J0 | I108: Alberta Social Housing Corporation | J108: Seniors Self Contained Program
A109: 1651275520634932 - 48 Street | B109: 165127552063 | C109: 4932 - 48 Street | D109: TBG | E109: Bethany Nursing Home of Camrose, Alberta | F109: Verdant Valley Villa | G109: Lougheed | H109: T0B2V0 | I109: Alberta Social Housing Corporation | J109: Seniors Self Contained Program
A110: 1684275521655110 50 Street Units 1 - 4 | B110: 168427552165 | C110: 5110 50 Street Units 1 - 4 | D110: TBG | E110: Bethany Nursing Home of Camrose, Alberta | F110: Wavy Lake Manor | G110: Flagstaff County | H110: T0B4H0 | I110: Alberta Social Housing Corporation | J110: Seniors Self Contained Program
A111: 1199275102085th Avenue & 4th Street | B111: 119927510208 | C111: 5th Avenue & 4th Street | D111: TBG | E111: Bethany Nursing Home of Camrose, Alberta | F111: West Pine Lodge | G111: Winfield | H111: T0C2X0 | I111: Alberta Social Housing Corporation | J111: Seniors Lodge Program
A112: 1629275500145001/5002 55 Street | B112: 162927550014 | C112: 5001/5002 55 Street | D112: TBG | E112: Bethany Nursing Home of Camrose, Alberta | F112: West Side Manor | G112: Daysland | H112: T0B1A0 | I112: Alberta Social Housing Corporation | J112: Seniors Self Contained Program
A113: 1629275500145003/5004 55 Street | B113: 162927550014 | C113: 5003/5004 55 Street | D113: TBG | E113: Bethany Nursing Home of Camrose, Alberta | F113: West Side Manor | G113: Daysland | H113: T0B1A0 | I113: Alberta Social Housing Corporation | J113: Seniors Self Contained Program
A114: 1629275500145005/5006 55 Street | B114: 162927550014 | C114: 5005/5006 55 Street | D114: TBG | E114: Bethany Nursing Home of Camrose, Alberta | F114: West Side Manor | G114: Daysland | H114: T0B1A0 | I114: Alberta Social Housing Corporation | J114: Seniors Self Contained Program
A115: 1629275500145007/5008 55 Street | B115: 162927550014 | C115: 5007/5008 55 Street | D115: TBG | E115: Bethany Nursing Home of Camrose, Alberta | F115: West Side Manor | G115: Daysland | H115: T0B1A0 | I115: Alberta Social Housing Corporation | J115: Seniors Self Contained Program
A116: 1629275500145009/5010 55 Street | B116: 162927550014 | C116: 5009/5010 55 Street | D116: TBG | E116: Bethany Nursing Home of Camrose, Alberta | F116: West Side Manor | G116: Daysland | H116: T0B1A0 | I116: Alberta Social Housing Corporation | J116: Seniors Self Contained Program
A117: 1629275500145011/5012 55 Street | B117: 162927550014 | C117: 5011/5012 55 Street | D117: TBG | E117: Bethany Nursing Home of Camrose, Alberta | F117: West Side Manor | G117: Daysland | H117: T0B1A0 | I117: Alberta Social Housing Corporation | J117: Seniors Self Contained Program
A118: 1629275500145013/5014 55 Street | B118: 162927550014 | C118: 5013/5014 55 Street | D118: TBG | E118: Bethany Nursing Home of Camrose, Alberta | F118: West Side Manor | G118: Daysland | H118: T0B1A0 | I118: Alberta Social Housing Corporation | J118: Seniors Self Contained Program
A119: 1629275500145015/5016 55 Street | B119: 162927550014 | C119: 5015/5016 55 Street | D119: TBG | E119: Bethany Nursing Home of Camrose, Alberta | F119: West Side Manor | G119: Daysland | H119: T0B1A0 | I119: Alberta Social Housing Corporation | J119: Seniors Self Contained Program
A120: 1629275500145017/5018 55 Street | B120: 162927550014 | C120: 5017/5018 55 Street | D120: TBG | E120: Bethany Nursing Home of Camrose, Alberta | F120: West Side Manor | G120: Daysland | H120: T0B1A0 | I120: Alberta Social Housing Corporation | J120: Seniors Self Contained Program
A121: 1629275500145019/5020 55 Street | B121: 162927550014 | C121: 5019/5020 55 Street | D121: TBG | E121: Bethany Nursing Home of Camrose, Alberta | F121: West Side Manor | G121: Daysland | H121: T0B1A0 | I121: Alberta Social Housing Corporation | J121: Seniors Self Contained Program
A122: 145402 52 Avenue | B122: 14 | C122: 5402 52 Avenue | D122: TBG | E122: Bethany Nursing Home of Camrose, Alberta | F122: Wetaskawin Meadows | G122: Wetaskiwin | H122: T9A 0X9 | I122: Other | J122: None
A123: 1197273100245420 - 55 Avenue | B123: 119727310024 | C123: 5420 - 55 Avenue | D123: TBG | E123: Bethany Nursing Home of Camrose, Alberta | F123: Wetaskiwin 1 | G123: Wetaskiwin | H123: T9A1A5 | I123: Alberta Social Housing Corporation | J123: Community Housing Program
A124: 1197273100245416 - 55 Avenue | B124: 119727310024 | C124: 5416 - 55 Avenue | D124: TBG | E124: Bethany Nursing Home of Camrose, Alberta | F124: Wetaskiwin 1 | G124: Wetaskiwin | H124: T9A1A5 | I124: Alberta Social Housing Corporation | J124: Community Housing Program
A125: 1197273100245412 - 55 Avenue | B125: 119727310024 | C125: 5412 - 55 Avenue | D125: TBG | E125: Bethany Nursing Home of Camrose, Alberta | F125: Wetaskiwin 1 | G125: Wetaskiwin | H125: T9A1A5 | I125: Alberta Social Housing Corporation | J125: Community Housing Program
A126: 1197273100245408 - 55 Avenue | B126: 119727310024 | C126: 5408 - 55 Avenue | D126: TBG | E126: Bethany Nursing Home of Camrose, Alberta | F126: Wetaskiwin 1 | G126: Wetaskiwin | H126: T9A1A5 | I126: Alberta Social Housing Corporation | J126: Community Housing Program
A127: 119727310024102 Lilac Crescent | B127: 119727310024 | C127: 102 Lilac Crescent | D127: TBG | E127: Bethany Nursing Home of Camrose, Alberta | F127: Wetaskiwin 1 | G127: Wetaskiwin | H127: T9A2E2 | I127: Alberta Social Housing Corporation | J127: Community Housing Program
A128: 119727310024106 Lilac Crescent | B128: 119727310024 | C128: 106 Lilac Crescent | D128: TBG | E128: Bethany Nursing Home of Camrose, Alberta | F128: Wetaskiwin 1 | G128: Wetaskiwin | H128: T9A2E2 | I128: Alberta Social Housing Corporation | J128: Community Housing Program
A129: 119727310024110 Lilac Crescent | B129: 119727310024 | C129: 110 Lilac Crescent | D129: TBG | E129: Bethany Nursing Home of Camrose, Alberta | F129: Wetaskiwin 1 | G129: Wetaskiwin | H129: T9A2E2 | I129: Alberta Social Housing Corporation | J129: Community Housing Program
A130: 119727310024118 Lilac Crescent | B130: 119727310024 | C130: 118 Lilac Crescent | D130: TBG | E130: Bethany Nursing Home of Camrose, Alberta | F130: Wetaskiwin 1 | G130: Wetaskiwin | H130: T9A2E2 | I130: Alberta Social Housing Corporation | J130: Community Housing Program
A131: =CONCATENATE(B131,C131) -> 119727310024114 Lilac Crescent | B131: 119727310024 | C131: 114 Lilac Crescent | D131: TBG | E131: Bethany Nursing Home of Camrose, Alberta | F131: Wetaskiwin 1 | G131: Wetaskiwin | H131: T9A2E2 | I131: Alberta Social Housing Corporation | J131: Community Housing Program
A132: 119727310024122 Lilac Crescent | B132: 119727310024 | C132: 122 Lilac Crescent | D132: TBG | E132: Bethany Nursing Home of Camrose, Alberta | F132: Wetaskiwin 1 | G132: Wetaskiwin | H132: T9A2E2 | I132: Alberta Social Housing Corporation | J132: Community Housing Program
A133: 1197273100525602 - 55A Street | B133: 119727310052 | C133: 5602 - 55A Street | D133: TBG | E133: Bethany Nursing Home of Camrose, Alberta | F133: Wetaskiwin 2 | G133: Wetaskiwin | H133: T9A2A9 | I133: Alberta Social Housing Corporation | J133: Community Housing Program
A134: 1197273100525606 - 55A Street | B134: 119727310052 | C134: 5606 - 55A Street | D134: TBG | E134: Bethany Nursing Home of Camrose, Alberta | F134: Wetaskiwin 2 | G134: Wetaskiwin | H134: T9A2A9 | I134: Alberta Social Housing Corporation | J134: Community Housing Program
A135: 1197273100525610 - 55A Street | B135: 119727310052 | C135: 5610 - 55A Street | D135: TBG | E135: Bethany Nursing Home of Camrose, Alberta | F135: Wetaskiwin 2 | G135: Wetaskiwin | H135: T9A2A9 | I135: Alberta Social Housing Corporation | J135: Community Housing Program
A136: 1197273100525601 - 55A Street | B136: 119727310052 | C136: 5601 - 55A Street | D136: TBG | E136: Bethany Nursing Home of Camrose, Alberta | F136: Wetaskiwin 2 | G136: Wetaskiwin | H136: T9A2A8 | I136: Alberta Social Housing Corporation | J136: Community Housing Program
A137: 1197273120765703 - 52 Street | B137: 119727312076 | C137: 5703 - 52 Street | D137: TBG | E137: Bethany Nursing Home of Camrose, Alberta | F137: Wetaskiwin 3 | G137: Wetaskiwin | H137: T9A3A1 | I137: Alberta Social Housing Corporation | J137: Community Housing Program
A138: 1197273122655634/36 - 55A Street | B138: 119727312265 | C138: 5634/36 - 55A Street | D138: TBG | E138: Bethany Nursing Home of Camrose, Alberta | F138: Wetaskiwin 4 (FCLS) | G138: Wetaskiwin | H138: T9A2A9 | I138: Alberta Social Housing Corporation | J138: Community Housing Program
A139: 1197273125733721 - 53 Street | B139: 119727312573 | C139: 3721 - 53 Street | D139: TBG | E139: Bethany Nursing Home of Camrose, Alberta | F139: Wetaskiwin 5 (FCLS) | G139: Wetaskiwin | H139: T9A2K6 | I139: Alberta Social Housing Corporation | J139: Community Housing Program
A140: 1197273125733740 - 54 Street | B140: 119727312573 | C140: 3740 - 54 Street | D140: TBG | E140: Bethany Nursing Home of Camrose, Alberta | F140: Wetaskiwin 5 (FCLS) | G140: Wetaskiwin | H140: T9A2L2 | I140: Alberta Social Housing Corporation | J140: Community Housing Program
A141: 1197273125733748 - 54 Street | B141: 119727312573 | C141: 3748 - 54 Street | D141: TBG | E141: Bethany Nursing Home of Camrose, Alberta | F141: Wetaskiwin 5 (FCLS) | G141: Wetaskiwin | H141: T9A2L2 | I141: Alberta Social Housing Corporation | J141: Community Housing Program
A142: 119727312573221 Garnet Crescent | B142: 119727312573 | C142: 221 Garnet Crescent | D142: TBG | E142: Bethany Nursing Home of Camrose, Alberta | F142: Wetaskiwin 5 (FCLS) | G142: Wetaskiwin | H142: T9A2S3 | I142: Alberta Social Housing Corporation | J142: Community Housing Program
A143: 119727312573217 Garnet Crescent | B143: 119727312573 | C143: 217 Garnet Crescent | D143: TBG | E143: Bethany Nursing Home of Camrose, Alberta | F143: Wetaskiwin 5 (FCLS) | G143: Wetaskiwin | H143: T9A2S3 | I143: Alberta Social Housing Corporation | J143: Community Housing Program
A144: 1197273125735614 - 55A Street | B144: 119727312573 | C144: 5614 - 55A Street | D144: TBG | E144: Bethany Nursing Home of Camrose, Alberta | F144: Wetaskiwin 5 (FCLS) | G144: Wetaskiwin | H144: T9A2A9 | I144: Alberta Social Housing Corporation | J144: Community Housing Program
A145: 164427552183103 Lady Helen Avenue Units 1 - 4 | B145: 164427552183 | C145: 103 Lady Helen Avenue Units 1 - 4 | D145: TBG | E145: Bethany Nursing Home of Camrose, Alberta | F145: Wheatland Manor | G145: Flagstaff County | H145: T0B1R0 | I145: Alberta Social Housing Corporation | J145: Seniors Self Contained Program
A146: 1617275500414912 - 53 Street | B146: 161727550041 | C146: 4912 - 53 Street | D146: TBG | E146: Bethany Nursing Home of Camrose, Alberta | F146: Wild Rose Villa | G146: Camrose | H146: T4V1Z1 | I146: Alberta Social Housing Corporation | J146: Seniors Self Contained Program
A147: 226127550043119 - 4 Ave East Units 1-10 | B147: 226127550043 | C147: 119 - 4 Ave East Units 1-10 | D147: BIG | E147: Big Country Housing Authority | F147: Cereal Country Cottages | G147: Cereal | H147: T0J0N0 | I147: Alberta Social Housing Corporation | J147: Seniors Self Contained Program
A148: 248327310011901 - 3 Street West | B148: 248327310011 | C148: 901 - 3 Street West | D148: BIG | E148: Big Country Housing Authority | F148: Hanna 1 | G148: Hanna | H148: T0J1P0 | I148: Alberta Social Housing Corporation | J148: Community Housing Program
A149: 248327310011905 - 3 Street West | B149: 248327310011 | C149: 905 - 3 Street West | D149: BIG | E149: Big Country Housing Authority | F149: Hanna 1 | G149: Hanna | H149: T0J1P0 | I149: Alberta Social Housing Corporation | J149: Community Housing Program
A150: 248327310011909 - 3 Street West | B150: 248327310011 | C150: 909 - 3 Street West | D150: BIG | E150: Big Country Housing Authority | F150: Hanna 1 | G150: Hanna | H150: T0J1P0 | I150: Alberta Social Housing Corporation | J150: Community Housing Program
A151: 248327310011913 - 3 Street West | B151: 248327310011 | C151: 913 - 3 Street West | D151: BIG | E151: Big Country Housing Authority | F151: Hanna 1 | G151: Hanna | H151: T0J1P0 | I151: Alberta Social Housing Corporation | J151: Community Housing Program
A152: 248327310011917 - 3 Street West | B152: 248327310011 | C152: 917 - 3 Street West | D152: BIG | E152: Big Country Housing Authority | F152: Hanna 1 | G152: Hanna | H152: T0J1P0 | I152: Alberta Social Housing Corporation | J152: Community Housing Program
A153: 248327310011921 - 3 Street West | B153: 248327310011 | C153: 921 - 3 Street West | D153: BIG | E153: Big Country Housing Authority | F153: Hanna 1 | G153: Hanna | H153: T0J1P0 | I153: Alberta Social Housing Corporation | J153: Community Housing Program
A154: 248327310011925 - 3 Street West | B154: 248327310011 | C154: 925 - 3 Street West | D154: BIG | E154: Big Country Housing Authority | F154: Hanna 1 | G154: Hanna | H154: T0J1P0 | I154: Alberta Social Housing Corporation | J154: Community Housing Program
A155: 248327310043321A - 4 Avenue East | B155: 248327310043 | C155: 321A - 4 Avenue East | D155: BIG | E155: Big Country Housing Authority | F155: Hanna 2 | G155: Hanna | H155: T0J1P0 | I155: Alberta Social Housing Corporation | J155: Community Housing Program
A156: 248327310043502A/B - 3 Street East | B156: 248327310043 | C156: 502A/B - 3 Street East | D156: BIG | E156: Big Country Housing Authority | F156: Hanna 2 | G156: Hanna | H156: T0J1P0 | I156: Alberta Social Housing Corporation | J156: Community Housing Program
A157: 248327310043504A/B - 3 Street East | B157: 248327310043 | C157: 504A/B - 3 Street East | D157: BIG | E157: Big Country Housing Authority | F157: Hanna 2 | G157: Hanna | H157: T0J1P0 | I157: Alberta Social Housing Corporation | J157: Community Housing Program
A158: 248327556001401 - 5 Street West | B158: 248327556001 | C158: 401 - 5 Street West | D158: BIG | E158: Big Country Housing Authority | F158: Parkview Manor 1 | G158: Hanna | H158: T0J1P0 | I158: Alberta Social Housing Corporation | J158: Seniors Self Contained Program
A159: 248327556108409 - 5 Street West | B159: 248327556108 | C159: 409 - 5 Street West | D159: BIG | E159: Big Country Housing Authority | F159: Parkview Manor 2 | G159: Hanna | H159: T0J1P0 | I159: Alberta Social Housing Corporation | J159: Seniors Self Contained Program
A160: 248327556170611 - 5 Avenue Unit 1 & 2 | B160: 248327556170 | C160: 611 - 5 Avenue Unit 1 & 2 | D160: BIG | E160: Big Country Housing Authority | F160: Parkview Villas | G160: Hanna | H160: T0J1P0 | I160: Alberta Social Housing Corporation | J160: Seniors Self Contained Program
A161: 248327556170611 - 5 Avenue West Unit 3 & 4 | B161: 248327556170 | C161: 611 - 5 Avenue West Unit 3 & 4 | D161: BIG | E161: Big Country Housing Authority | F161: Parkview Villas | G161: Hanna | H161: T0J1P0 | I161: Alberta Social Housing Corporation | J161: Seniors Self Contained Program
A162: 248327556170611 - 5 Avenue West Unit 5 & 6 | B162: 248327556170 | C162: 611 - 5 Avenue West Unit 5 & 6 | D162: BIG | E162: Big Country Housing Authority | F162: Parkview Villas | G162: Hanna | H162: T0J1P0 | I162: Alberta Social Housing Corporation | J162: Seniors Self Contained Program
A163: 248327556170611 - 5 Avenue West Unit 7 & 8 | B163: 248327556170 | C163: 611 - 5 Avenue West Unit 7 & 8 | D163: BIG | E163: Big Country Housing Authority | F163: Parkview Villas | G163: Hanna | H163: T0J1P0 | I163: Alberta Social Housing Corporation | J163: Seniors Self Contained Program
A164: 248327556170611 - 5 Avenue West Unit 9 & 10 | B164: 248327556170 | C164: 611 - 5 Avenue West Unit 9 & 10 | D164: BIG | E164: Big Country Housing Authority | F164: Parkview Villas | G164: Hanna | H164: T0J1P0 | I164: Alberta Social Housing Corporation | J164: Seniors Self Contained Program
A165: 1301273720175229 - 47 Street | B165: 130127372017 | C165: 5229 - 47 Street | D165: A197 | E165: Blue Heron Support Services Association | F165: John & Gerald House | G165: Barrhead | H165: T7N1H3 | I165: Housing Provider | J165: Specialized Housing
A166: 1253275520329805 - 105 Street | B166: 125327552032 | C166: 9805 - 105 Street | D166: BHF | E166: Boreal Housing Foundation | F166: Altenheim | G166: La Crete | H166: T0H2H0 | I166: Alberta Social Housing Corporation | J166: Seniors Self Contained Program
A167: 1253275522059802 - 104 Street | B167: 125327552205 | C167: 9802 - 104 Street | D167: BHF | E167: Boreal Housing Foundation | F167: Altenheim 2 | G167: La Crete | H167: T0H2H0 | I167: Alberta Social Housing Corporation | J167: Seniors Self Contained Program
A168: 1253275522059806 - 104 Street | B168: 125327552205 | C168: 9806 - 104 Street | D168: BHF | E168: Boreal Housing Foundation | F168: Altenheim 2 | G168: La Crete | H168: T0H2H0 | I168: Alberta Social Housing Corporation | J168: Seniors Self Contained Program
A169: 1253275522059816 - 104 Street | B169: 125327552205 | C169: 9816 - 104 Street | D169: BHF | E169: Boreal Housing Foundation | F169: Altenheim 2 | G169: La Crete | H169: T0H2H0 | I169: Alberta Social Housing Corporation | J169: Seniors Self Contained Program
A170: 1253275522059812 - 104 Street | B170: 125327552205 | C170: 9812 - 104 Street | D170: BHF | E170: Boreal Housing Foundation | F170: Altenheim 2 | G170: La Crete | H170: T0H2H0 | I170: Alberta Social Housing Corporation | J170: Seniors Self Contained Program
A171: 1253275523189805 - 105 Street | B171: 125327552318 | C171: 9805 - 105 Street | D171: BHF | E171: Boreal Housing Foundation | F171: Altenheim 3 | G171: La Crete | H171: T0H2H0 | I171: Alberta Social Housing Corporation | J171: Seniors Self Contained Program
A172: 1230275520575004 46 Ave Units 1 - 12 | B172: 123027552057 | C172: 5004 46 Ave Units 1 - 12 | D172: BHF | E172: Boreal Housing Foundation | F172: Fort Pioneer Homes | G172: Fort Vermilion | H172: T0H1N0 | I172: Alberta Social Housing Corporation | J172: Seniors Self Contained Program
A173: 1230273100084402 - 52 Avenue | B173: 123027310008 | C173: 4402 - 52 Avenue | D173: BHF | E173: Boreal Housing Foundation | F173: Fort Vermilion 1 | G173: Fort Vermilion | H173: T0H1N0 | I173: Housing Provider | J173: Community Housing Program
A174: 1230273100084332 - 52 Avenue | B174: 123027310008 | C174: 4332 - 52 Avenue | D174: BHF | E174: Boreal Housing Foundation | F174: Fort Vermilion 1 | G174: Fort Vermilion | H174: T0H1N0 | I174: Housing Provider | J174: Community Housing Program
A175: 1230273100084320 - 52 Avenue | B175: 123027310008 | C175: 4320 - 52 Avenue | D175: BHF | E175: Boreal Housing Foundation | F175: Fort Vermilion 1 | G175: Fort Vermilion | H175: T0H1N0 | I175: Housing Provider | J175: Community Housing Program
A176: 1230273100084306 - 52 Avenue | B176: 123027310008 | C176: 4306 - 52 Avenue | D176: BHF | E176: Boreal Housing Foundation | F176: Fort Vermilion 1 | G176: Fort Vermilion | H176: T0H1N0 | I176: Housing Provider | J176: Community Housing Program
A177: 1230273100085112 - 43 Street | B177: 123027310008 | C177: 5112 - 43 Street | D177: BHF | E177: Boreal Housing Foundation | F177: Fort Vermilion 1 | G177: Fort Vermilion | H177: T0H1N0 | I177: Housing Provider | J177: Community Housing Program
A178: 1230273100084331 - 52 Avenue | B178: 123027310008 | C178: 4331 - 52 Avenue | D178: BHF | E178: Boreal Housing Foundation | F178: Fort Vermilion 1 | G178: Fort Vermilion | H178: T0H1N0 | I178: Housing Provider | J178: Community Housing Program
A179: 1230273100095001 - 44 Street | B179: 123027310009 | C179: 5001 - 44 Street | D179: BHF | E179: Boreal Housing Foundation | F179: Fort Vermilion 2 | G179: Fort Vermilion | H179: T0H1N0 | I179: Housing Provider | J179: Community Housing Program
A180: 1230273100094303 - 50 Avenue | B180: 123027310009 | C180: 4303 - 50 Avenue | D180: BHF | E180: Boreal Housing Foundation | F180: Fort Vermilion 2 | G180: Fort Vermilion | H180: T0H1N0 | I180: Housing Provider | J180: Community Housing Program
A181: 1230273100095001 - 43 Street | B181: 123027310009 | C181: 5001 - 43 Street | D181: BHF | E181: Boreal Housing Foundation | F181: Fort Vermilion 2 | G181: Fort Vermilion | H181: T0H1N0 | I181: Housing Provider | J181: Community Housing Program
A182: 1230273100095101 - 43 Street | B182: 123027310009 | C182: 5101 - 43 Street | D182: BHF | E182: Boreal Housing Foundation | F182: Fort Vermilion 2 | G182: Fort Vermilion | H182: T0H1N0 | I182: Housing Provider | J182: Community Housing Program
A183: 1230273100094318 - 52 Avenue | B183: 123027310009 | C183: 4318 - 52 Avenue | D183: BHF | E183: Boreal Housing Foundation | F183: Fort Vermilion 2 | G183: Fort Vermilion | H183: T0H1N0 | I183: Housing Provider | J183: Community Housing Program
A184: 1230273100095005 - 44 Street | B184: 123027310009 | C184: 5005 - 44 Street | D184: BHF | E184: Boreal Housing Foundation | F184: Fort Vermilion 2 | G184: Fort Vermilion | H184: T0H1N0 | I184: Housing Provider | J184: Community Housing Program
A185: 1230273100095002 - 43 Street | B185: 123027310009 | C185: 5002 - 43 Street | D185: BHF | E185: Boreal Housing Foundation | F185: Fort Vermilion 2 | G185: Fort Vermilion | H185: T0H1N0 | I185: Housing Provider | J185: Community Housing Program
A186: 1230273100094305 Peace Place | B186: 123027310009 | C186: 4305 Peace Place | D186: BHF | E186: Boreal Housing Foundation | F186: Fort Vermilion 2 | G186: Fort Vermilion | H186: T0H1N0 | I186: Housing Provider | J186: Community Housing Program
A187: 1230273100094307 - 51 Avenue | B187: 123027310009 | C187: 4307 - 51 Avenue | D187: BHF | E187: Boreal Housing Foundation | F187: Fort Vermilion 2 | G187: Fort Vermilion | H187: T0H1N0 | I187: Housing Provider | J187: Community Housing Program
A188: 1230273100094317 - 52 Avenue | B188: 123027310009 | C188: 4317 - 52 Avenue | D188: BHF | E188: Boreal Housing Foundation | F188: Fort Vermilion 2 | G188: Fort Vermilion | H188: T0H1N0 | I188: Housing Provider | J188: Community Housing Program
A189: 1230273127334328 - 52 Avenue | B189: 123027312733 | C189: 4328 - 52 Avenue | D189: BHF | E189: Boreal Housing Foundation | F189: Fort Vermilion 3 (ATCO) | G189: Fort Vermilion | H189: T0H1N0 | I189: Housing Provider | J189: Community Housing Program
A190: 1230273127335006 - 44 Street | B190: 123027312733 | C190: 5006 - 44 Street | D190: BHF | E190: Boreal Housing Foundation | F190: Fort Vermilion 3 (ATCO) | G190: Fort Vermilion | H190: T0H1N0 | I190: Housing Provider | J190: Community Housing Program
A191: 1230273127334304 Peace Place | B191: 123027312733 | C191: 4304 Peace Place | D191: BHF | E191: Boreal Housing Foundation | F191: Fort Vermilion 3 (ATCO) | G191: Fort Vermilion | H191: T0H1N0 | I191: Housing Provider | J191: Community Housing Program
A192: 1230273127335104 - 43 Street | B192: 123027312733 | C192: 5104 - 43 Street | D192: BHF | E192: Boreal Housing Foundation | F192: Fort Vermilion 3 (ATCO) | G192: Fort Vermilion | H192: T0H1N0 | I192: Housing Provider | J192: Community Housing Program
A193: 1230273127334405 - 52 Avenue | B193: 123027312733 | C193: 4405 - 52 Avenue | D193: BHF | E193: Boreal Housing Foundation | F193: Fort Vermilion 3 (ATCO) | G193: Fort Vermilion | H193: T0H1N0 | I193: Housing Provider | J193: Community Housing Program
A194: 1230273127335014 - 44 Street | B194: 123027312733 | C194: 5014 - 44 Street | D194: BHF | E194: Boreal Housing Foundation | F194: Fort Vermilion 3 (ATCO) | G194: Fort Vermilion | H194: T0H1N0 | I194: Housing Provider | J194: Community Housing Program
A195: =CONCATENATE(B195,C195) -> 1230273127614501 River Road | B195: 123027312761 | C195: 4501 River Road | D195: BHF | E195: Boreal Housing Foundation | F195: Fort Vermilion 4 (Staff) | G195: Fort Vermilion | H195: T0H1N0 | I195: Alberta Social Housing Corporation | J195: Community Housing Program
A196: 1230273127774406 - 52 Avenue | B196: 123027312777 | C196: 4406 - 52 Avenue | D196: BHF | E196: Boreal Housing Foundation | F196: Fort Vermilion 5 | G196: Fort Vermilion | H196: T0H1N0 | I196: Housing Provider | J196: Community Housing Program
A197: 1230273127774314 - 52 Avenue | B197: 123027312777 | C197: 4314 - 52 Avenue | D197: BHF | E197: Boreal Housing Foundation | F197: Fort Vermilion 5 | G197: Fort Vermilion | H197: T0H1N0 | I197: Housing Provider | J197: Community Housing Program
A198: 1230273127775004 - 44 Street | B198: 123027312777 | C198: 5004 - 44 Street | D198: BHF | E198: Boreal Housing Foundation | F198: Fort Vermilion 5 | G198: Fort Vermilion | H198: T0H1N0 | I198: Housing Provider | J198: Community Housing Program
A199: 1230273127775114 - 43 Street | B199: 123027312777 | C199: 5114 - 43 Street | D199: BHF | E199: Boreal Housing Foundation | F199: Fort Vermilion 5 | G199: Fort Vermilion | H199: T0H1N0 | I199: Housing Provider | J199: Community Housing Program
A200: 1230273127775117 - 43 Street | B200: 123027312777 | C200: 5117 - 43 Street | D200: BHF | E200: Boreal Housing Foundation | F200: Fort Vermilion 5 | G200: Fort Vermilion | H200: T0H1N0 | I200: Housing Provider | J200: Community Housing Program
... 3820 more rows
